Workbook

Sheet Dashboard
B2: Salary variations participants excel survey
B5: Layout | O5: Totals | AU5: ="Time Spend On Excell | "& TEXT(Data_Dash!$T$5/Data_Dash!$T$4,"0,00%")&" off total data" -> Time Spend On Excell | 94,21% off total data
B6: Green tabels contain unfilterd data. Unless you use the scatterplot to exclude ranges. | AL6: top average salary
T7: Top Salary | U7: =MAX(Data!O:O) -> 200000 | AF7: By Country | AG7: =MAX(Data_Dash!W:W) -> 177600 | AM7: =INDEX(Data_Dash!V:V,MATCH(AG7,Data_Dash!W:W,0)) -> Lesotho
T8: Low Salary | U8: =MIN(Data!O:O) -> 1783.166904 | AF8: By Jobtype | AG8: =MAX(Data_Dash!A:A,) -> 87471.36338 | AM8: =INDEX(Data_Dash!B:B,MATCH(AG8,Data_Dash!A:A,0)) -> CXO or Top Mgmt.
T9: Average salary | U9: =AVERAGE(Data!O:O) -> 47356.99568 | AF9: By Experience | AG9: =AVERAGEIF(Data!M:M,_xlfn.MODE.SNGL(Data!M:M),Data!O:O) -> 36726.4294 | AM9: =_xlfn.MODE.SNGL(Data!M:M)&IF(_xlfn.MODE.SNGL(Data!M:M)>=2," Years"," Year") -> 5 Years
T10: Participants | U10: =COUNTIFS(Data!B:B,"ID"&"*",Data!O:O,"<>x") -> 1866
B12: Blue tabels contain filterd data that can be set below.
O13: ="Selection Totals | "& TEXT(Data_Dash!$T$5/Data_Dash!$T$4,"0,00%")&" off total data" -> Selection Totals | 94,21% off total data
B15: Orange tabels contain notes and tips. | T15: Average salary | U15: =AVERAGE(Tabel!B:B) -> 47356.99568 | AF15: Top Salary | AG15: =MAX(Tabel!B:B) -> 200000 | AM15: =INDEX(Tabel!$A:$A,MATCH(AG15,Tabel!$B:$B,0)+2) -> CXO or Top Mgmt.
T16: Off average total | U16: =U15/U9 -> 1 | AF16: Low Salary | AG16: =MIN(Tabel!B:B) -> 1783.166904 | AM16: =INDEX(Tabel!$A:$A,MATCH(AG16,Tabel!$B:$B,0)+2) -> Accountant
T17: Participants | U17: =COUNTIF(Tabel!A:A,"ID0"&"*")+COUNTIF(Tabel!A:A,"ID1"&"*") -> 1866
B19: Main data filters
B20: Auto clear filters | O20: Additional Graphs and Settings | AR20: ="Salary By Job Type | "& TEXT(Data_Dash!$T$5/Data_Dash!$T$4,"0,00%")&" off total data" -> Salary By Job Type | 94,21% off total data
P24: Select up to 10 country's from the list below to compare them in a graph. These country's will be saved, but can be adjusted at any time.
R28: Country selections
Q29: 1 | AB29: 9 | AD29: 6 | AO29: 1
Q31: 2 | AB31: 4 | AD31: 7 | AO31: 1
Q33: 3 | AB33: 2 | AD33: 8 | AO33: 1
Q35: 4 | AB35: 5 | AD35: 9 | AO35: 1
Q37: 5 | AB37: 1 | AC37: 10 | AO37: 1
AR41: Search your average worth (default in USD)
AV43: Country | BF43: 1 | BG43: =Data_Dash!AA8 -> ← Select filters
AW44: -and- | BF44: 1
AV45: Job Type | BF45: 1
AW46: -and- | BF46: 1 | BG46: Currency converter
AV47: Experience | BF47: 1 | BP47: 1
AR51: Notes
AS52: - | AT52: Data provided by survey partisipants on Chandoo.org.
AS54: - | AT54: Currency is as of 06-21-2012. Provide by Xrates & XE.com
AS56: - | AT56: Dashboard was build by Peter van Klinken.

Sheet Data_Dash
A2: Job Type | C2: Filter | D2: 1 | F2: Filter | G2: 1 | I2: Filter | J2: 6 | K2: 1 | M2: Filters | O2: Experience Graph | S2: Values | V2: Average Salaries | Z2: Calculator | AC2: Scatterplot | AF2: Scatterplot | AI2: Textfields | AL2: Random
A3: Total Average Salary | B3: … | C3: Filtered Salary | D3: Off Total | F3: How many hours of a day you work on Excel | G3: USD | I3: … | J3: … | K3: USD | M3: Set 1 | O3: Name | P3: Salary | Q3: Base value | T3: USD | V3: Country | W3: Average Salary | X3: Continent | Z3: Selections | AA3: Totals | AC3: Settings | AD3: Value | AF3: Unique ID | AG3: Salary in USD | AI3: Field | AJ3: Text | AL3: Values
A4: =AVERAGEIFS(Data!$O:$O,Data!$I:$I,B4) -> 46026.84137 | B4: Analyst | C4: =IF(D$2=1,AVERAGEIF(Tabel!$A:$A,B4,Tabel!$B:$B),SUMIF(Tabel!$A:$A,B4,Tabel!$B:$B)) -> 46026.84137 | D4: =C4/IF(D$2=1,AVERAGEIF(tblSalaries[[#All],[Job Type]],B4,tblSalaries[[#All],[Salary in USD]]),SUMIF(tblSalaries[[#All],[Job Type]],B4,tblSalaries[[#All],[Salary in USD]])) -> 0.9941910881 | F4: 1 or 2 hours a day | G4: =IF(G$2=1,AVERAGEIF(Tabel!$A:$A,F4,Tabel!$B:$B),SUMIF(Tabel!$A:$A,F4,Tabel!$B:$B)) -> 47701.67256 | I4: 0 | J4: =I4&" year(s)" -> 0 year(s) | K4: =IFERROR(IF(K$2=1,AVERAGEIF(Tabel!$A:$A,I4,Tabel!$B:$B),SUMIF(Tabel!$A:$A,I4,Tabel!$B:$B)),0) -> 15205.89843 | M4: Average Salary | O4: >= 26 years | P4: =SUMIFS($K:$K,$I:$I,">="&Q4) -> 530705.5881 | Q4: 26 | S4: Total | T4: =SUM(Data!G:G) -> 93800888.52 | V4: … | W4: =AVERAGE(Data!G:G) -> 49814.59826 | Z4: =INDEX(V4:V110,Dashboard!BF43) -> … | AA4: =AVERAGEIF(Data!$K:$K,Z4,Data!$O:$O) ->  | AC4: Minimum | AD4: 0 | AF4: ID0938 | AG4: 20571 | AI4: y-axl scatterplot | AJ4: 200000 | AL4: =RANDBETWEEN(1,COUNTA($V$5:$V$110)) -> 96
A5: =AVERAGEIFS(Data!$O:$O,Data!$I:$I,B5) -> 45427.7431 | B5: Accountant | C5: =IF(D$2=1,AVERAGEIF(Tabel!$A:$A,B5,Tabel!$B:$B),SUMIF(Tabel!$A:$A,B5,Tabel!$B:$B)) -> 45427.7431 | D5: =C5/IF(D$2=1,AVERAGEIF(tblSalaries[[#All],[Job Type]],B5,tblSalaries[[#All],[Salary in USD]]),SUMIF(tblSalaries[[#All],[Job Type]],B5,tblSalaries[[#All],[Salary in USD]])) -> 0.8382052882 | F5: 2 to 3 hours per day | G5: =IF(G$2=1,AVERAGEIF(Tabel!$A:$A,F5,Tabel!$B:$B),SUMIF(Tabel!$A:$A,F5,Tabel!$B:$B)) -> 52147.39483 | I5: 0.1 | J5: 0,1 year(s) | K5: =IFERROR(IF(K$2=1,AVERAGEIF(Tabel!$A:$A,I5,Tabel!$B:$B),SUMIF(Tabel!$A:$A,I5,Tabel!$B:$B)),0) -> 5591.68584 | M5: Total Salary | O5: 11-25 years | P5: =SUMIFS($K:$K,$I:$I,">="&Q5,$I:$I,"<"&Q4) -> 763266.4494 | Q5: 11 | S5: Selection | T5: =SUMIF(Tabel!$A:$A,"ID0"&"*",Tabel!$B:$B)+SUMIF(Tabel!$A:$A,"ID1"&"*",Tabel!$B:$B) -> 88368153.93 | V5: Albania | W5: =AVERAGEIF(Data!$K:$K,V5,Data!$O:$O) -> 20571 | X5: Europe | Z5: =INDEX(B3:B13,Dashboard!BF45) -> … | AA5: =IF(Z5="…",AA4,AVERAGEIFS(Data!$O:$O,Data!$K:$K,Z4,Data!$I:$I,Z5)) ->  | AC5: Maximum | AD5: 200000 | AF5: ID0103 | AG5: 21000 | AI5: Job Type | AJ5: * percentages are off total (not filtered) | AL5: 64
A6: =AVERAGEIFS(Data!$O:$O,Data!$I:$I,B6) -> 56837.54011 | B6: Consultant | C6: =IF(D$2=1,AVERAGEIF(Tabel!$A:$A,B6,Tabel!$B:$B),SUMIF(Tabel!$A:$A,B6,Tabel!$B:$B)) -> 56837.54011 | D6: =C6/IF(D$2=1,AVERAGEIF(tblSalaries[[#All],[Job Type]],B6,tblSalaries[[#All],[Salary in USD]]),SUMIF(tblSalaries[[#All],[Job Type]],B6,tblSalaries[[#All],[Salary in USD]])) -> 0.902889247 | F6: 4 to 6 hours a day | G6: =IF(G$2=1,AVERAGEIF(Tabel!$A:$A,F6,Tabel!$B:$B),SUMIF(Tabel!$A:$A,F6,Tabel!$B:$B)) -> 48661.70271 | I6: 0.3 | J6: 0,3 year(s) | K6: =IFERROR(IF(K$2=1,AVERAGEIF(Tabel!$A:$A,I6,Tabel!$B:$B),SUMIF(Tabel!$A:$A,I6,Tabel!$B:$B)),0) -> 11700 | O6: 6-10 years | P6: =SUMIFS($K:$K,$I:$I,">="&Q6,$I:$I,"<"&Q5) -> 283232.6114 | Q6: 6 | V6: Arabian Gulf | W6: =AVERAGEIF(Data!$K:$K,V6,Data!$O:$O) -> 21000 | X6: Asia | Z6: =INDEX(I3:I60,Dashboard!BF47) -> … | AA6: =IF(Z6="…",AA5,AVERAGEIFS(Data!$O:$O,Data!$K:$K,Z4,Data!$I:$I,Z5,Data!$M:$M,Z6)) ->  | AF6: ID1187 | AG6: 24000 | AI6: Totals | AJ6: =IF(SUM(VALUE(min_scatterplot),VALUE(max_scatterplot))>0,"* Data is fitered by results scatterplot","") -> * Data is fitered by results scatterplot | AL6: 103
A7: =AVERAGEIFS(Data!$O:$O,Data!$I:$I,B7) -> 60296.78993 | B7: Controller | C7: =IF(D$2=1,AVERAGEIF(Tabel!$A:$A,B7,Tabel!$B:$B),SUMIF(Tabel!$A:$A,B7,Tabel!$B:$B)) -> 60296.78993 | D7: =C7/IF(D$2=1,AVERAGEIF(tblSalaries[[#All],[Job Type]],B7,tblSalaries[[#All],[Salary in USD]]),SUMIF(tblSalaries[[#All],[Job Type]],B7,tblSalaries[[#All],[Salary in USD]])) -> 0.926162074 | F7: All the 8 hours baby, all the 8! | G7: =IF(G$2=1,AVERAGEIF(Tabel!$A:$A,F7,Tabel!$B:$B),SUMIF(Tabel!$A:$A,F7,Tabel!$B:$B)) -> 40363.38731 | I7: 0.5 | J7: 0,5 year(s) | K7: =IFERROR(IF(K$2=1,AVERAGEIF(Tabel!$A:$A,I7,Tabel!$B:$B),SUMIF(Tabel!$A:$A,I7,Tabel!$B:$B)),0) -> 21780.79167 | O7: 2-5 years | P7: =SUMIFS($K:$K,$I:$I,">="&Q7,$I:$I,"<"&Q6) -> 324221.5877 | Q7: 2 | V7: Argentina | W7: =AVERAGEIF(Data!$K:$K,V7,Data!$O:$O) -> 24000 | X7: South America | Z7: =INDEX(tblXrate[in USD],Dashboard!BP47) -> 1 | AA7: =AA6*Z7 ->  | AF7: ID1732 | AG7: 6000 | AI7: Minimap | AJ7: * Click a continent to compare their countries avarage salary or on 'cross continent' to select a custom list. | AL7: 87
A8: =AVERAGEIFS(Data!$O:$O,Data!$I:$I,B8) -> 87471.36338 | B8: CXO or Top Mgmt. | C8: =IF(D$2=1,AVERAGEIF(Tabel!$A:$A,B8,Tabel!$B:$B),SUMIF(Tabel!$A:$A,B8,Tabel!$B:$B)) -> 87471.36338 | D8: =C8/IF(D$2=1,AVERAGEIF(tblSalaries[[#All],[Job Type]],B8,tblSalaries[[#All],[Salary in USD]]),SUMIF(tblSalaries[[#All],[Job Type]],B8,tblSalaries[[#All],[Salary in USD]])) -> 0.8993016597 | F8: Excel ?!? What Excel? | G8: =IF(G$2=1,AVERAGEIF(Tabel!$A:$A,F8,Tabel!$B:$B),SUMIF(Tabel!$A:$A,F8,Tabel!$B:$B)) -> 57493.38151 | I8: 0.6 | J8: 0,6 year(s) | K8: =IFERROR(IF(K$2=1,AVERAGEIF(Tabel!$A:$A,I8,Tabel!$B:$B),SUMIF(Tabel!$A:$A,I8,Tabel!$B:$B)),0) -> 9000 | O8: 0-1 year(s) | P8: =SUMIFS($K:$K,$I:$I,">="&Q8,$I:$I,"<"&Q7) -> 179100.2488 | Q8: 0 | V8: Armenia | W8: =AVERAGEIF(Data!$K:$K,V8,Data!$O:$O) -> 6000 | X8: Asia | Z8: Totals | AA8: =IF(COUNTIF(Z4:Z6,"…")=3,"← Select filters",IFERROR(AA7,"none available")) -> ← Select filters | AF8: ID0864 | AG8: 5000 | AL8: 68
A9: =AVERAGEIFS(Data!$O:$O,Data!$I:$I,B9) -> 49257.5542 | B9: Engineer | C9: =IF(D$2=1,AVERAGEIF(Tabel!$A:$A,B9,Tabel!$B:$B),SUMIF(Tabel!$A:$A,B9,Tabel!$B:$B)) -> 49257.5542 | D9: =C9/IF(D$2=1,AVERAGEIF(tblSalaries[[#All],[Job Type]],B9,tblSalaries[[#All],[Salary in USD]]),SUMIF(tblSalaries[[#All],[Job Type]],B9,tblSalaries[[#All],[Salary in USD]])) -> 0.9524781973 | I9: 0.8 | J9: 0,8 year(s) | K9: =IFERROR(IF(K$2=1,AVERAGEIF(Tabel!$A:$A,I9,Tabel!$B:$B),SUMIF(Tabel!$A:$A,I9,Tabel!$B:$B)),0) -> 8903.958344 | V9: Aruba | W9: =AVERAGEIF(Data!$K:$K,V9,Data!$O:$O) -> 5000 | X9: North America | AF9: ID0997 | AG9: 12000 | AL9: 63
A10: =AVERAGEIFS(Data!$O:$O,Data!$I:$I,B10) -> 45569.16616 | B10: Manager | C10: =IF(D$2=1,AVERAGEIF(Tabel!$A:$A,B10,Tabel!$B:$B),SUMIF(Tabel!$A:$A,B10,Tabel!$B:$B)) -> 45569.16616 | D10: =C10/IF(D$2=1,AVERAGEIF(tblSalaries[[#All],[Job Type]],B10,tblSalaries[[#All],[Salary in USD]]),SUMIF(tblSalaries[[#All],[Job Type]],B10,tblSalaries[[#All],[Salary in USD]])) -> 0.9802299563 | I10: 1 | J10: 1 year(s) | K10: =IFERROR(IF(K$2=1,AVERAGEIF(Tabel!$A:$A,I10,Tabel!$B:$B),SUMIF(Tabel!$A:$A,I10,Tabel!$B:$B)),0) -> 30813.44245 | V10: Asia | W10: =AVERAGEIF(Data!$K:$K,V10,Data!$O:$O) -> 12000 | X10: Asia | AF10: ID0041 | AG10: 71393.67595 | AL10: 36
A11: =AVERAGEIFS(Data!$O:$O,Data!$I:$I,B11) -> 45952.33422 | B11: Misc. | C11: =IF(D$2=1,AVERAGEIF(Tabel!$A:$A,B11,Tabel!$B:$B),SUMIF(Tabel!$A:$A,B11,Tabel!$B:$B)) -> 45952.33422 | D11: =C11/IF(D$2=1,AVERAGEIF(tblSalaries[[#All],[Job Type]],B11,tblSalaries[[#All],[Salary in USD]]),SUMIF(tblSalaries[[#All],[Job Type]],B11,tblSalaries[[#All],[Salary in USD]])) -> 1 | I11: 1.1 | J11: 1,1 year(s) | K11: =IFERROR(IF(K$2=1,AVERAGEIF(Tabel!$A:$A,I11,Tabel!$B:$B),SUMIF(Tabel!$A:$A,I11,Tabel!$B:$B)),0) -> 30273.45837 | V11: Australia | W11: =AVERAGEIF(Data!$K:$K,V11,Data!$O:$O) -> 91468.57609 | X11: Australia | AF11: ID0067 | AG11: 86692.32079 | AL11: 30
A12: =AVERAGEIFS(Data!$O:$O,Data!$I:$I,B12) -> 16714.33257 | B12: Reporting | C12: =IF(D$2=1,AVERAGEIF(Tabel!$A:$A,B12,Tabel!$B:$B),SUMIF(Tabel!$A:$A,B12,Tabel!$B:$B)) -> 16714.33257 | D12: =C12/IF(D$2=1,AVERAGEIF(tblSalaries[[#All],[Job Type]],B12,tblSalaries[[#All],[Salary in USD]]),SUMIF(tblSalaries[[#All],[Job Type]],B12,tblSalaries[[#All],[Salary in USD]])) -> 0.8538978847 | I12: 1.5 | J12: 1,5 year(s) | K12: =IFERROR(IF(K$2=1,AVERAGEIF(Tabel!$A:$A,I12,Tabel!$B:$B),SUMIF(Tabel!$A:$A,I12,Tabel!$B:$B)),0) -> 41557.11373 | V12: Austria | W12: =AVERAGEIF(Data!$K:$K,V12,Data!$O:$O) -> 50815.97756 | X12: Europe | AF12: ID0073 | AG12: 101990.9656 | AL12: 66
A13: =AVERAGEIFS(Data!$O:$O,Data!$I:$I,B13) -> 49587.68316 | B13: Specialist | C13: =IF(D$2=1,AVERAGEIF(Tabel!$A:$A,B13,Tabel!$B:$B),SUMIF(Tabel!$A:$A,B13,Tabel!$B:$B)) -> 49587.68316 | D13: =C13/IF(D$2=1,AVERAGEIF(tblSalaries[[#All],[Job Type]],B13,tblSalaries[[#All],[Salary in USD]]),SUMIF(tblSalaries[[#All],[Job Type]],B13,tblSalaries[[#All],[Salary in USD]])) -> 0.8290456696 | I13: 1.6 | J13: 1,6 year(s) | K13: =IFERROR(IF(K$2=1,AVERAGEIF(Tabel!$A:$A,I13,Tabel!$B:$B),SUMIF(Tabel!$A:$A,I13,Tabel!$B:$B)),0) -> 4273.900005 | V13: Azerbaijan | W13: =AVERAGEIF(Data!$K:$K,V13,Data!$O:$O) -> 36000 | X13: Asia | AF13: ID0534 | AG13: 61194.57938 | AL13: 43
I14: 2 | J14: 2 year(s) | K14: =IFERROR(IF(K$2=1,AVERAGEIF(Tabel!$A:$A,I14,Tabel!$B:$B),SUMIF(Tabel!$A:$A,I14,Tabel!$B:$B)),0) -> 26651.44152 | V14: Baltic | W14: =AVERAGEIF(Data!$K:$K,V14,Data!$O:$O) -> 8400 | X14: Europe | AF14: ID0543 | AG14: 86692.32079
I15: 2.4 | J15: 2,4 year(s) | K15: =IFERROR(IF(K$2=1,AVERAGEIF(Tabel!$A:$A,I15,Tabel!$B:$B),SUMIF(Tabel!$A:$A,I15,Tabel!$B:$B)),0) -> 10150.51251 | V15: Bangladesh | W15: =AVERAGEIF(Data!$K:$K,V15,Data!$O:$O) -> 10299.00865 | X15: Asia | AF15: ID0556 | AG15: 78533.04354
I16: 2.5 | J16: 2,5 year(s) | K16: =IFERROR(IF(K$2=1,AVERAGEIF(Tabel!$A:$A,I16,Tabel!$B:$B),SUMIF(Tabel!$A:$A,I16,Tabel!$B:$B)),0) -> 28696.8511 | V16: Belgium | W16: =AVERAGEIF(Data!$K:$K,V16,Data!$O:$O) -> 41707.21358 | X16: Europe | AF16: ID0568 | AG16: 95000
I17: 3 | J17: 3 year(s) | K17: =IFERROR(IF(K$2=1,AVERAGEIF(Tabel!$A:$A,I17,Tabel!$B:$B),SUMIF(Tabel!$A:$A,I17,Tabel!$B:$B)),0) -> 30806.98139 | V17: Bermuda | W17: =AVERAGEIF(Data!$K:$K,V17,Data!$O:$O) -> 78000 | X17: North America | AF17: ID0569 | AG17: 158085.9967
I18: 3.5 | J18: 3,5 year(s) | K18: =IFERROR(IF(K$2=1,AVERAGEIF(Tabel!$A:$A,I18,Tabel!$B:$B),SUMIF(Tabel!$A:$A,I18,Tabel!$B:$B)),0) -> 15957.12032 | V18: Bhutan | W18: =AVERAGEIF(Data!$K:$K,V18,Data!$O:$O) -> 4800 | X18: Asia | AF18: ID0581 | AG18: 132588.2553
I19: 4 | J19: 4 year(s) | K19: =IFERROR(IF(K$2=1,AVERAGEIF(Tabel!$A:$A,I19,Tabel!$B:$B),SUMIF(Tabel!$A:$A,I19,Tabel!$B:$B)),0) -> 30723.66953 | V19: Bolivia | W19: =AVERAGEIF(Data!$K:$K,V19,Data!$O:$O) -> 9600 | X19: South America | AF19: ID0585 | AG19: 104030.785
I20: 4.5 | J20: 4,5 year(s) | K20: =IFERROR(IF(K$2=1,AVERAGEIF(Tabel!$A:$A,I20,Tabel!$B:$B),SUMIF(Tabel!$A:$A,I20,Tabel!$B:$B)),0) -> 15530.09974 | V20: Brazil | W20: =AVERAGEIF(Data!$K:$K,V20,Data!$O:$O) -> 33302.14376 | X20: South America | AF20: ID0588 | AG20: 108110.4236
I21: 4.6 | J21: 4,6 year(s) | K21: =IFERROR(IF(K$2=1,AVERAGEIF(Tabel!$A:$A,I21,Tabel!$B:$B),SUMIF(Tabel!$A:$A,I21,Tabel!$B:$B)),0) -> 18000 | V21: Bulgaria | W21: =AVERAGEIF(Data!$K:$K,V21,Data!$O:$O) -> 14400 | X21: Europe | AF21: ID0609 | AG21: 101990.9656
I22: 5 | J22: 5 year(s) | K22: =IFERROR(IF(K$2=1,AVERAGEIF(Tabel!$A:$A,I22,Tabel!$B:$B),SUMIF(Tabel!$A:$A,I22,Tabel!$B:$B)),0) -> 36726.4294 | V22: Cambodia | W22: =AVERAGEIF(Data!$K:$K,V22,Data!$O:$O) -> 3000 | X22: Asia | AF22: ID0623 | AG22: 86692.32079
I23: 5.5 | J23: 5,5 year(s) | K23: =IFERROR(IF(K$2=1,AVERAGEIF(Tabel!$A:$A,I23,Tabel!$B:$B),SUMIF(Tabel!$A:$A,I23,Tabel!$B:$B)),0) -> 71622.98632 | V23: Canada | W23: =AVERAGEIF(Data!$K:$K,V23,Data!$O:$O) -> 66666.612 | X23: North America | AF23: ID0626 | AG23: 101990.9656
I24: 5.6 | J24: 5,6 year(s) | K24: =IFERROR(IF(K$2=1,AVERAGEIF(Tabel!$A:$A,I24,Tabel!$B:$B),SUMIF(Tabel!$A:$A,I24,Tabel!$B:$B)),0) -> 39355.49588 | V24: CEE | W24: =AVERAGEIF(Data!$K:$K,V24,Data!$O:$O) -> 87167.97475 | X24: Europe | AF24: ID0633 | AG24: 173384.6416
I25: 6 | J25: 6 year(s) | K25: =IFERROR(IF(K$2=1,AVERAGEIF(Tabel!$A:$A,I25,Tabel!$B:$B),SUMIF(Tabel!$A:$A,I25,Tabel!$B:$B)),0) -> 40675.93701 | V25: Central America | W25: =AVERAGEIF(Data!$K:$K,V25,Data!$O:$O) -> 95000 | X25: North America | AF25: ID0635 | AG25: 79552.9532
I26: 6.4 | J26: 6,4 year(s) | K26: =IFERROR(IF(K$2=1,AVERAGEIF(Tabel!$A:$A,I26,Tabel!$B:$B),SUMIF(Tabel!$A:$A,I26,Tabel!$B:$B)),0) -> 6600 | V26: China | W26: =AVERAGEIF(Data!$K:$K,V26,Data!$O:$O) -> 17046.0901 | X26: Asia | AF26: ID0681 | AG26: 101990.9656
I27: 6.5 | J27: 6,5 year(s) | K27: =IFERROR(IF(K$2=1,AVERAGEIF(Tabel!$A:$A,I27,Tabel!$B:$B),SUMIF(Tabel!$A:$A,I27,Tabel!$B:$B)),0) -> 17807.91669 | V27: Colombia | W27: =AVERAGEIF(Data!$K:$K,V27,Data!$O:$O) -> 12362 | X27: South America | AF27: ID0725 | AG27: 130000
I28: 7 | J28: 7 year(s) | K28: =IFERROR(IF(K$2=1,AVERAGEIF(Tabel!$A:$A,I28,Tabel!$B:$B),SUMIF(Tabel!$A:$A,I28,Tabel!$B:$B)),0) -> 41261.04771 | V28: Costa Rica | W28: =AVERAGEIF(Data!$K:$K,V28,Data!$O:$O) -> 28109.62755 | X28: North America | AF28: ID0769 | AG28: 96891.41736
I29: 7.3 | J29: 7,3 year(s) | K29: =IFERROR(IF(K$2=1,AVERAGEIF(Tabel!$A:$A,I29,Tabel!$B:$B),SUMIF(Tabel!$A:$A,I29,Tabel!$B:$B)),0) -> 8738 | V29: Croatia | W29: =AVERAGEIF(Data!$K:$K,V29,Data!$O:$O) -> 43489.58654 | X29: Europe | AF29: ID0784 | AG29: 36000
I30: 7.9 | J30: 7,9 year(s) | K30: =IFERROR(IF(K$2=1,AVERAGEIF(Tabel!$A:$A,I30,Tabel!$B:$B),SUMIF(Tabel!$A:$A,I30,Tabel!$B:$B)),0) -> 9616.275011 | V30: Czech Republic | W30: =AVERAGEIF(Data!$K:$K,V30,Data!$O:$O) -> 36000 | X30: Europe | AF30: ID0798 | AG30: 66294.12767
I31: 8 | J31: 8 year(s) | K31: =IFERROR(IF(K$2=1,AVERAGEIF(Tabel!$A:$A,I31,Tabel!$B:$B),SUMIF(Tabel!$A:$A,I31,Tabel!$B:$B)),0) -> 38276.913 | V31: Denmark | W31: =AVERAGEIF(Data!$K:$K,V31,Data!$O:$O) -> 82525.5254 | X31: Europe | AF31: ID0922 | AG31: 96891.41736
I32: 8.5 | J32: 8,5 year(s) | K32: =IFERROR(IF(K$2=1,AVERAGEIF(Tabel!$A:$A,I32,Tabel!$B:$B),SUMIF(Tabel!$A:$A,I32,Tabel!$B:$B)),0) -> 17807.91669 | V32: Dominican Republic | W32: =AVERAGEIF(Data!$K:$K,V32,Data!$O:$O) -> 6629 | X32: North America | AF32: ID0964 | AG32: 81592.77251
I33: 9 | J33: 9 year(s) | K33: =IFERROR(IF(K$2=1,AVERAGEIF(Tabel!$A:$A,I33,Tabel!$B:$B),SUMIF(Tabel!$A:$A,I33,Tabel!$B:$B)),0) -> 45588.61633 | V33: Dubai | W33: =AVERAGEIF(Data!$K:$K,V33,Data!$O:$O) -> 32166.95919 | X33: Asia | AF33: ID0965 | AG33: 96891.41736
I34: 10 | J34: 10 year(s) | K34: =IFERROR(IF(K$2=1,AVERAGEIF(Tabel!$A:$A,I34,Tabel!$B:$B),SUMIF(Tabel!$A:$A,I34,Tabel!$B:$B)),0) -> 56859.989 | V34: Egypt | W34: =AVERAGEIF(Data!$K:$K,V34,Data!$O:$O) -> 19831.43282 | X34: Africa | AF34: ID0966 | AG34: 91791.86908
I35: 11 | J35: 11 year(s) | K35: =IFERROR(IF(K$2=1,AVERAGEIF(Tabel!$A:$A,I35,Tabel!$B:$B),SUMIF(Tabel!$A:$A,I35,Tabel!$B:$B)),0) -> 41789.36561 | V35: Estonia | W35: =AVERAGEIF(Data!$K:$K,V35,Data!$O:$O) -> 12000 | X35: Europe | AF35: ID0968 | AG35: 66294.12767
I36: 12 | J36: 12 year(s) | K36: =IFERROR(IF(K$2=1,AVERAGEIF(Tabel!$A:$A,I36,Tabel!$B:$B),SUMIF(Tabel!$A:$A,I36,Tabel!$B:$B)),0) -> 53915.88134 | V36: Ethiopia | W36: =AVERAGEIF(Data!$K:$K,V36,Data!$O:$O) -> 2953.846154 | X36: Africa | AF36: ID0969 | AG36: 101990.9656
I37: 13 | J37: 13 year(s) | K37: =IFERROR(IF(K$2=1,AVERAGEIF(Tabel!$A:$A,I37,Tabel!$B:$B),SUMIF(Tabel!$A:$A,I37,Tabel!$B:$B)),0) -> 43153.57363 | V37: Europe | W37: =AVERAGEIF(Data!$K:$K,V37,Data!$O:$O) -> 97693.71686 | X37: Europe | AF37: ID0971 | AG37: 43856.11523
I38: 14 | J38: 14 year(s) | K38: =IFERROR(IF(K$2=1,AVERAGEIF(Tabel!$A:$A,I38,Tabel!$B:$B),SUMIF(Tabel!$A:$A,I38,Tabel!$B:$B)),0) -> 66229.68164 | V38: Finland | W38: =AVERAGEIF(Data!$K:$K,V38,Data!$O:$O) -> 75389.41554 | X38: Europe | AF38: ID0972 | AG38: 45616
I39: 15 | J39: 15 year(s) | K39: =IFERROR(IF(K$2=1,AVERAGEIF(Tabel!$A:$A,I39,Tabel!$B:$B),SUMIF(Tabel!$A:$A,I39,Tabel!$B:$B)),0) -> 60720.89748 | V39: France | W39: =AVERAGEIF(Data!$K:$K,V39,Data!$O:$O) -> 56952.72505 | X39: Europe | AF39: ID0974 | AG39: 57726.88655
I40: 16 | J40: 16 year(s) | K40: =IFERROR(IF(K$2=1,AVERAGEIF(Tabel!$A:$A,I40,Tabel!$B:$B),SUMIF(Tabel!$A:$A,I40,Tabel!$B:$B)),0) -> 56716.62104 | V40: Germany | W40: =AVERAGEIF(Data!$K:$K,V40,Data!$O:$O) -> 79637.14702 | X40: Europe | AF40: ID0976 | AG40: 203981.9313
I41: 17 | J41: 17 year(s) | K41: =IFERROR(IF(K$2=1,AVERAGEIF(Tabel!$A:$A,I41,Tabel!$B:$B),SUMIF(Tabel!$A:$A,I41,Tabel!$B:$B)),0) -> 72467.49134 | V41: Ghana | W41: =AVERAGEIF(Data!$K:$K,V41,Data!$O:$O) -> 18000 | X41: Africa | AF41: ID0977 | AG41: 50995.48282
I42: 18 | J42: 18 year(s) | K42: =IFERROR(IF(K$2=1,AVERAGEIF(Tabel!$A:$A,I42,Tabel!$B:$B),SUMIF(Tabel!$A:$A,I42,Tabel!$B:$B)),0) -> 53520.75186 | V42: Greece | W42: =AVERAGEIF(Data!$K:$K,V42,Data!$O:$O) -> 30066.12006 | X42: Europe | AF42: ID0978 | AG42: 127488.7071
I43: 19 | J43: 19 year(s) | K43: =IFERROR(IF(K$2=1,AVERAGEIF(Tabel!$A:$A,I43,Tabel!$B:$B),SUMIF(Tabel!$A:$A,I43,Tabel!$B:$B)),0) -> 3200 | V43: Guyana | W43: =AVERAGEIF(Data!$K:$K,V43,Data!$O:$O) -> 6000 | X43: South America | AF43: ID0979 | AG43: 66294.12767
I44: 20 | J44: 20 year(s) | K44: =IFERROR(IF(K$2=1,AVERAGEIF(Tabel!$A:$A,I44,Tabel!$B:$B),SUMIF(Tabel!$A:$A,I44,Tabel!$B:$B)),0) -> 71446.68564 | V44: Hong Kong | W44: =AVERAGEIF(Data!$K:$K,V44,Data!$O:$O) -> 20000 | X44: Asia | AF44: ID0980 | AG44: 63234.3987
I45: 21 | J45: 21 year(s) | K45: =IFERROR(IF(K$2=1,AVERAGEIF(Tabel!$A:$A,I45,Tabel!$B:$B),SUMIF(Tabel!$A:$A,I45,Tabel!$B:$B)),0) -> 34243.03473 | V45: Hungary | W45: =AVERAGEIF(Data!$K:$K,V45,Data!$O:$O) -> 24716.34725 | X45: Europe | AF45: ID0983 | AG45: 112190.0622
I46: 22 | J46: 22 year(s) | K46: =IFERROR(IF(K$2=1,AVERAGEIF(Tabel!$A:$A,I46,Tabel!$B:$B),SUMIF(Tabel!$A:$A,I46,Tabel!$B:$B)),0) -> 92196.155 | V46: Iceland | W46: =AVERAGEIF(Data!$K:$K,V46,Data!$O:$O) -> 41731 | X46: Europe | AF46: ID0984 | AG46: 71393.67595
I47: 23 | J47: 23 year(s) | K47: =IFERROR(IF(K$2=1,AVERAGEIF(Tabel!$A:$A,I47,Tabel!$B:$B),SUMIF(Tabel!$A:$A,I47,Tabel!$B:$B)),0) -> 31818.41554 | V47: India | W47: =AVERAGEIF(Data!$K:$K,V47,Data!$O:$O) -> 13529.43089 | X47: Asia | AF47: ID0985 | AG47: 85000
I48: 25 | J48: 25 year(s) | K48: =IFERROR(IF(K$2=1,AVERAGEIF(Tabel!$A:$A,I48,Tabel!$B:$B),SUMIF(Tabel!$A:$A,I48,Tabel!$B:$B)),0) -> 81847.89452 | V48: Indonesia | W48: =AVERAGEIF(Data!$K:$K,V48,Data!$O:$O) -> 28872.8368 | X48: Asia | AF48: ID0986 | AG48: 95871.5077
I49: 26 | J49: 26 year(s) | K49: =IFERROR(IF(K$2=1,AVERAGEIF(Tabel!$A:$A,I49,Tabel!$B:$B),SUMIF(Tabel!$A:$A,I49,Tabel!$B:$B)),0) -> 29200 | V49: iran | W49: =AVERAGEIF(Data!$K:$K,V49,Data!$O:$O) -> 18000 | X49: Asia | AF49: ID0987 | AG49: 109130.3332
I50: 27 | J50: 27 year(s) | K50: =IFERROR(IF(K$2=1,AVERAGEIF(Tabel!$A:$A,I50,Tabel!$B:$B),SUMIF(Tabel!$A:$A,I50,Tabel!$B:$B)),0) -> 85535.82673 | V50: Ireland | W50: =AVERAGEIF(Data!$K:$K,V50,Data!$O:$O) -> 61652.48477 | X50: Europe | AF50: ID0989 | AG50: 122389.1588
I51: 28 | J51: 28 year(s) | K51: =IFERROR(IF(K$2=1,AVERAGEIF(Tabel!$A:$A,I51,Tabel!$B:$B),SUMIF(Tabel!$A:$A,I51,Tabel!$B:$B)),0) -> 10684.75001 | V51: Israel | W51: =AVERAGEIF(Data!$K:$K,V51,Data!$O:$O) -> 66840 | X51: Asia | AF51: ID0990 | AG51: 53035.30213
I52: 29 | J52: 29 year(s) | K52: =IFERROR(IF(K$2=1,AVERAGEIF(Tabel!$A:$A,I52,Tabel!$B:$B),SUMIF(Tabel!$A:$A,I52,Tabel!$B:$B)),0) -> 57951.97917 | V52: italy | W52: =AVERAGEIF(Data!$K:$K,V52,Data!$O:$O) -> 47258.85913 | X52: Europe | AF52: ID0975 | AG52: 20000
I53: 30 | J53: 30 year(s) | K53: =IFERROR(IF(K$2=1,AVERAGEIF(Tabel!$A:$A,I53,Tabel!$B:$B),SUMIF(Tabel!$A:$A,I53,Tabel!$B:$B)),0) -> 73485.04577 | V53: Japan | W53: =AVERAGEIF(Data!$K:$K,V53,Data!$O:$O) -> 67564.77404 | X53: Asia | AF53: ID0993 | AG53: 93831.68839
I54: 32 | J54: 32 year(s) | K54: =IFERROR(IF(K$2=1,AVERAGEIF(Tabel!$A:$A,I54,Tabel!$B:$B),SUMIF(Tabel!$A:$A,I54,Tabel!$B:$B)),0) -> 0 | V54: Kenya | W54: =AVERAGEIF(Data!$K:$K,V54,Data!$O:$O) -> 51497.00599 | X54: Africa | AF54: ID0994 | AG54: 101990.9656
I55: 33 | J55: 33 year(s) | K55: =IFERROR(IF(K$2=1,AVERAGEIF(Tabel!$A:$A,I55,Tabel!$B:$B),SUMIF(Tabel!$A:$A,I55,Tabel!$B:$B)),0) -> 24000 | V55: Kuwait | W55: =AVERAGEIF(Data!$K:$K,V55,Data!$O:$O) -> 42666.66667 | X55: Asia | AF55: ID0995 | AG55: 122389.1588
I56: 34 | J56: 34 year(s) | K56: =IFERROR(IF(K$2=1,AVERAGEIF(Tabel!$A:$A,I56,Tabel!$B:$B),SUMIF(Tabel!$A:$A,I56,Tabel!$B:$B)),0) -> 55166.23952 | V56: Latin America | W56: =AVERAGEIF(Data!$K:$K,V56,Data!$O:$O) -> 4400 | X56: South America | AF56: ID1008 | AG56: 95871.5077
I57: 35 | J57: 35 year(s) | K57: =IFERROR(IF(K$2=1,AVERAGEIF(Tabel!$A:$A,I57,Tabel!$B:$B),SUMIF(Tabel!$A:$A,I57,Tabel!$B:$B)),0) -> 74267.39502 | V57: Lesotho | W57: =AVERAGEIF(Data!$K:$K,V57,Data!$O:$O) -> 177600 | X57: Africa | AF57: ID1009 | AG57: 173384.6416
I58: 36 | J58: 36 year(s) | K58: =IFERROR(IF(K$2=1,AVERAGEIF(Tabel!$A:$A,I58,Tabel!$B:$B),SUMIF(Tabel!$A:$A,I58,Tabel!$B:$B)),0) -> 10684.75001 | V58: Libya | W58: =AVERAGEIF(Data!$K:$K,V58,Data!$O:$O) -> 24864 | X58: Africa | AF58: ID1012 | AG58: 71393.67595
I59: 40 | J59: 40 year(s) | K59: =IFERROR(IF(K$2=1,AVERAGEIF(Tabel!$A:$A,I59,Tabel!$B:$B),SUMIF(Tabel!$A:$A,I59,Tabel!$B:$B)),0) -> 109729.6019 | V59: Lithuania | W59: =AVERAGEIF(Data!$K:$K,V59,Data!$O:$O) -> 15000 | X59: Europe | AF59: ID1056 | AG59: 50995.48282
I60: Unknown | J60: =I60 -> Unknown | K60: =IFERROR(IF(K$2=1,AVERAGEIF(Tabel!$A:$A,I60,Tabel!$B:$B),SUMIF(Tabel!$A:$A,I60,Tabel!$B:$B)),0) -> 56560.68902 | V60: Malaysia | W60: =AVERAGEIF(Data!$K:$K,V60,Data!$O:$O) -> 24996.13322 | X60: Asia | AF60: ID1237 | AG60: 152986.4485
V61: Mauritius | W61: =AVERAGEIF(Data!$K:$K,V61,Data!$O:$O) -> 9376.251388 | X61: Africa | AF61: ID1255 | AG61: 81592.77251
V62: Mexico | W62: =AVERAGEIF(Data!$K:$K,V62,Data!$O:$O) -> 32138.49829 | X62: North America | AF62: ID1263 | AG62: 91791.86908
V63: Mongolia | W63: =AVERAGEIF(Data!$K:$K,V63,Data!$O:$O) -> 7261.72466 | X63: Asia | AF63: ID1264 | AG63: 112190.0622
V64: Montenegro | W64: =AVERAGEIF(Data!$K:$K,V64,Data!$O:$O) -> 13500 | X64: Europe | AF64: ID1268 | AG64: 101990.9656
V65: Morocco | W65: =AVERAGEIF(Data!$K:$K,V65,Data!$O:$O) -> 13745.70447 | X65: Africa | AF65: ID1270 | AG65: 43000
V66: Mozambique | W66: =AVERAGEIF(Data!$K:$K,V66,Data!$O:$O) -> 24000 | X66: Africa | AF66: ID1274 | AG66: 48955.66351
V67: Myanmar | W67: =AVERAGEIF(Data!$K:$K,V67,Data!$O:$O) -> 17700 | X67: Asia | AF67: ID0578 | AG67: 22438.01244
V68: MYS | W68: =AVERAGEIF(Data!$K:$K,V68,Data!$O:$O) -> 12000 | X68: Asia | AF68: ID1306 | AG68: 69353.85664
V69: Netherlands | W69: =AVERAGEIF(Data!$K:$K,V69,Data!$O:$O) -> 64775.81954 | X69: Europe | AF69: ID1307 | AG69: 49975.57316
V70: New Zealand | W70: =AVERAGEIF(Data!$K:$K,V70,Data!$O:$O) -> 70287.55497 | X70: Australia | AF70: ID1354 | AG70: 152986.4485
V71: Nigeria | W71: =AVERAGEIF(Data!$K:$K,V71,Data!$O:$O) -> 13494.89625 | X71: Africa | AF71: ID1356 | AG71: 101990.9656
V72: Norway | W72: =AVERAGEIF(Data!$K:$K,V72,Data!$O:$O) -> 99016.17437 | X72: Europe | AF72: ID1440 | AG72: 56095.0311
V73: Oman | W73: =AVERAGEIF(Data!$K:$K,V73,Data!$O:$O) -> 100800 | X73: Asia | AF73: ID1442 | AG73: 71393.67595
V74: Pakistan | W74: =AVERAGEIF(Data!$K:$K,V74,Data!$O:$O) -> 11873.55259 | X74: Asia | AF74: ID1456 | AG74: 87712.23045
V75: Panama | W75: =AVERAGEIF(Data!$K:$K,V75,Data!$O:$O) -> 44759.98597 | X75: North America | AF75: ID1475 | AG75: 127488.7071
V76: Paraguay | W76: =AVERAGEIF(Data!$K:$K,V76,Data!$O:$O) -> 20000 | X76: South America | AF76: ID1492 | AG76: 168285.0933
V77: Peru | W77: =AVERAGEIF(Data!$K:$K,V77,Data!$O:$O) -> 15840 | X77: South America | AF77: ID1498 | AG77: 75473.31457
V78: Philippines | W78: =AVERAGEIF(Data!$K:$K,V78,Data!$O:$O) -> 17479.29236 | X78: Asia | AF78: ID1537 | AG78: 86692.32079
V79: Poland | W79: =AVERAGEIF(Data!$K:$K,V79,Data!$O:$O) -> 34210.34538 | X79: Europe | AF79: ID1584 | AG79: 101990.9656
V80: Portugal | W80: =AVERAGEIF(Data!$K:$K,V80,Data!$O:$O) -> 32907.76341 | X80: Europe | AF80: ID1586 | AG80: 86692.32079
V81: Qatar | W81: =AVERAGEIF(Data!$K:$K,V81,Data!$O:$O) -> 53066.66667 | X81: Asia | AF81: ID1587 | AG81: 122389.1588
V82: Republic of Georgia | W82: =AVERAGEIF(Data!$K:$K,V82,Data!$O:$O) -> 5250 | X82: Europe | AF82: ID1659 | AG82: 85672.41114
V83: Republica Dominicana | W83: =AVERAGEIF(Data!$K:$K,V83,Data!$O:$O) -> 15404.36457 | X83: North America | AF83: ID1713 | AG83: 81592.77251
V84: Romania | W84: =AVERAGEIF(Data!$K:$K,V84,Data!$O:$O) -> 16449.97676 | X84: Europe | AF84: ID1738 | AG84: 61194.57938
V85: Russia | W85: =AVERAGEIF(Data!$K:$K,V85,Data!$O:$O) -> 55905.22222 | X85: Europe | AF85: ID1810 | AG85: 159105.9064
V86: Saudi Arabia | W86: =AVERAGEIF(Data!$K:$K,V86,Data!$O:$O) -> 35832.12121 | X86: Asia | AF86: ID1816 | AG86: 147886.9002
V87: Singapore | W87: =AVERAGEIF(Data!$K:$K,V87,Data!$O:$O) -> 52154.75405 | X87: Asia | AF87: ID1888 | AG87: 64254.30835
V88: Slovakia | W88: =AVERAGEIF(Data!$K:$K,V88,Data!$O:$O) -> 13000 | X88: Europe | AF88: ID1893 | AG88: 77819.10678
V89: Slovenia | W89: =AVERAGEIF(Data!$K:$K,V89,Data!$O:$O) -> 19055.99158 | X89: Europe | AF89: ID1901 | AG89: 122389.1588
V90: Somalia | W90: =AVERAGEIF(Data!$K:$K,V90,Data!$O:$O) -> 78000 | X90: Africa | AF90: ID1906 | AG90: 75473.31457
V91: South Africa | W91: =AVERAGEIF(Data!$K:$K,V91,Data!$O:$O) -> 49555.62499 | X91: Africa | AF91: ID1358 | AG91: 50815.97756
V92: Spain | W92: =AVERAGEIF(Data!$K:$K,V92,Data!$O:$O) -> 46235.66011 | X92: Europe | AF92: ID1635 | AG92: 36000
V93: Sri Lanka | W93: =AVERAGEIF(Data!$K:$K,V93,Data!$O:$O) -> 22921.15479 | X93: Asia | AF93: ID1859 | AG93: 8400
V94: Sweden | W94: =AVERAGEIF(Data!$K:$K,V94,Data!$O:$O) -> 84477.26009 | X94: Europe | AF94: ID0398 | AG94: 17598.01729
V95: Switzerland | W95: =AVERAGEIF(Data!$K:$K,V95,Data!$O:$O) -> 137525.5572 | X95: Europe | AF95: ID1792 | AG95: 3000
V96: Thailand | W96: =AVERAGEIF(Data!$K:$K,V96,Data!$O:$O) -> 73000 | X96: Asia | AF96: ID0028 | AG96: 41160.94182
V97: Tunisia | W97: =AVERAGEIF(Data!$K:$K,V97,Data!$O:$O) -> 11000 | X97: Africa | AF97: ID1143 | AG97: 38111.98317
V98: Turkey | W98: =AVERAGEIF(Data!$K:$K,V98,Data!$O:$O) -> 48000 | X98: Europe | AF98: ID1298 | AG98: 38111.98317
V99: UAE | W99: =AVERAGEIF(Data!$K:$K,V99,Data!$O:$O) -> 43014.90019 | X99: Asia | AF99: ID1703 | AG99: 49443.94617
V100: Uganda | W100: =AVERAGEIF(Data!$K:$K,V100,Data!$O:$O) -> 100000 | X100: Africa | AF100: ID0220 | AG100: 78000
V101: UK | W101: =AVERAGEIF(Data!$K:$K,V101,Data!$O:$O) -> 63601.41628 | X101: Europe | AF101: ID0742 | AG101: 4800
V102: Ukraine | W102: =AVERAGEIF(Data!$K:$K,V102,Data!$O:$O) -> 11650 | X102: Europe | AF102: ID1524 | AG102: 9600
V103: Uruguay | W103: =AVERAGEIF(Data!$K:$K,V103,Data!$O:$O) -> 35000 | X103: South America | AF103: ID0063 | AG103: 61000
V104: USA | W104: =AVERAGEIF(Data!$K:$K,V104,Data!$O:$O) -> 69918.5977 | X104: North America | AF104: ID0324 | AG104: 4545
V105: Vietnam | W105: =AVERAGEIF(Data!$K:$K,V105,Data!$O:$O) -> 10000 | X105: Asia | AF105: ID0368 | AG105: 35000
V106: Zambia | W106: =AVERAGEIF(Data!$K:$K,V106,Data!$O:$O) -> 13000 | X106: Africa | AF106: ID0086 | AG106: 31330
V107: Zimbabwe | W107: =AVERAGEIF(Data!$K:$K,V107,Data!$O:$O) -> 36400 | X107: Africa | AF107: ID0282 | AG107: 14000
AF108: ID0561 | AG108: 15600
AF109: ID0348 | AG109: 11400
AF110: ID0374 | AG110: 220700
AF111: ID0511 | AG111: 12000
AF112: ID0546 | AG112: 18000
AF113: ID0822 | AG113: 148284.3501
AF114: ID0934 | AG114: 9490.198404
AF115: ID1256 | AG115: 50700
AF116: ID1510 | AG116: 10000
AF117: ID1621 | AG117: 13000
AF118: ID1678 | AG118: 30500
AF119: ID1750 | AG119: 31200
AF120: ID1171 | AG120: 26691.18301
AF121: ID1776 | AG121: 80000
AF122: ID1853 | AG122: 30000
AF123: ID1557 | AG123: 14400
AF124: ID0695 | AG124: 3000
AF125: ID0043 | AG125: 68835.30661
AF126: ID0062 | AG126: 55068.24529
AF127: ID0075 | AG127: 58460.84254
AF128: ID0077 | AG128: 60000
AF129: ID0090 | AG129: 41301.18397
AF130: ID0121 | AG130: 59001.69138
AF131: ID0137 | AG131: 68835.30661
AF132: ID0138 | AG132: 49168.07615
AF133: ID0140 | AG133: 60968.41443
AF134: ID0162 | AG134: 58000
AF135: ID0166 | AG135: 105219.683
AF136: ID0171 | AG136: 88502.53707
AF137: ID0182 | AG137: 41406
AF138: ID0187 | AG138: 90469.26012
AF139: ID0190 | AG139: 59001.69138
AF140: ID0228 | AG140: 44251.26854
AF141: ID0239 | AG141: 98336.1523
AF142: ID0246 | AG142: 63918.499
AF143: ID0303 | AG143: 41301.18397
AF144: ID0315 | AG144: 59001.69138
AF145: ID0333 | AG145: 63918.499
AF146: ID0349 | AG146: 55068.24529
AF147: ID0353 | AG147: 157337.8437
AF148: ID0357 | AG148: 73752.11423
AF149: ID0378 | AG149: 78668.92184
AF150: ID0403 | AG150: 70802.02966
AF151: ID0446 | AG151: 108169.7675
AF152: ID0460 | AG152: 51134.7992
AF153: ID0466 | AG153: 68835.30661
AF154: ID0468 | AG154: 85552.4525
AF155: ID0477 | AG155: 1229201.904
AF156: ID0489 | AG156: 45234.63006
AF157: ID0501 | AG157: 67360.26433
AF158: ID0522 | AG158: 86093.30134
AF159: ID0620 | AG159: 245840.3808
AF160: ID0642 | AG160: 54084.88377
AF161: ID0790 | AG161: 64901.86052
AF162: ID0793 | AG162: 98336.1523
AF163: ID0852 | AG163: 98336.1523
AF164: ID0996 | AG164: 34417.65331
AF165: ID1823 | AG165: 20000
AF166: ID1166 | AG166: 63918.499
AF167: ID1169 | AG167: 50000
AF168: ID1177 | AG168: 52118.16072
AF169: ID1182 | AG169: 50437.70471
AF170: ID1259 | AG170: 63918.499
AF171: ID1383 | AG171: 83000
AF172: ID1531 | AG172: 49168.07615
AF173: ID1559 | AG173: 72768.7527
AF174: ID1582 | AG174: 78668.92184
AF175: ID1644 | AG175: 49168.07615
AF176: ID1666 | AG176: 55068.24529
AF177: ID1714 | AG177: 35401.01483
AF178: ID1730 | AG178: 131770.4441
AF179: ID1731 | AG179: 68835.30661
AF180: ID1800 | AG180: 39334.46092
AF181: ID1805 | AG181: 76702.1988
AF182: ID1897 | AG182: 60000
AF183: ID1147 | AG183: 114335.9495
AF184: ID1337 | AG184: 60000
AF185: ID0536 | AG185: 95000
AF186: ID0593 | AG186: 15092.18021
AF187: ID0992 | AG187: 19000
AF188: ID0436 | AG188: 8500
AF189: ID1868 | AG189: 16110
AF190: ID0841 | AG190: 6000
AF191: ID0119 | AG191: 24000
AF192: ID1494 | AG192: 7200
AF193: ID0412 | AG193: 28109.62755
AF194: ID0002 | AG194: 15000
AF195: ID0812 | AG195: 24000
AF196: ID1782 | AG196: 91468.75961
AF197: ID0914 | AG197: 36000
AF198: ID0763 | AG198: 20000
AF199: ID1213 | AG199: 106815.1483
AF200: ID1247 | AG200: 76906.90675
AF201: ID1637 | AG201: 106000
... 1685 more rows

Sheet mapping
C1: Mapping Sheet | I1: Source: Xrates on 6/21/2012 | J1: and xe.com
C2: Currency Mapping | N2: Country Mapping | R2: Salary Range | S2: Steps | T2: 12500
C3: Average Salary in USD | D3: Currency | E3: in USD | I3: Value of 1 American Dollar | N3: Actual | O3: Mapping | R3: ID | S3: Value (in USD) | T3: From
C4: =AVERAGEIF(Data!F:F,tblXrate[[#This Row],[Currency]],Data!G:G) -> 56607.86328 | D4: USD | E4: 1 | I4: Argentine Peso | J4: 4.49273 | K4: ARS | N4: Albania | O4: Albania | R4: 0 | S4: =TEXT(tblCountries4[[#This Row],[ID]],"00")&" | "&tblCountries4[[#This Row],[From]]&" - "&T5 -> 00 | 0 - 12500 | T4: 0
C5: =AVERAGEIF(Data!F:F,tblXrate[[#This Row],[Currency]],Data!G:G) -> 63413.00161 | D5: EUR | E5: =1/INDEX($J$4:$J$64,MATCH(tblXrate[[#This Row],[Currency]],$K$4:$K$64,0)) -> 1.270399439 | I5: Australian Dollar | J5: 0.980479 | K5: AUD | N5: arabian Gulf | O5: Arabian Gulf | R5: 1 | S5: =TEXT(tblCountries4[[#This Row],[ID]],"00")&" | "&tblCountries4[[#This Row],[From]]&" - "&T6 -> 01 | 12500 - 25000 | T5: =T4+$T$2 -> 12500
C6: =AVERAGEIF(Data!F:F,tblXrate[[#This Row],[Currency]],Data!G:G) -> 6717.367274 | D6: PKR | E6: =1/INDEX($J$4:$J$64,MATCH(tblXrate[[#This Row],[Currency]],$K$4:$K$64,0)) -> 0.01061408872 | I6: Botswana Pula | J6: 7.65697 | K6: BWP | N6: Argentina | O6: Argentina | R6: 2 | S6: =TEXT(tblCountries4[[#This Row],[ID]],"00")&" | "&tblCountries4[[#This Row],[From]]&" - "&T7 -> 02 | 25000 - 37500 | T6: 25000
C7: =AVERAGEIF(Data!F:F,tblXrate[[#This Row],[Currency]],Data!G:G) -> 12368.71051 | D7: INR | E7: =1/INDEX($J$4:$J$64,MATCH(tblXrate[[#This Row],[Currency]],$K$4:$K$64,0)) -> 0.01780791669 | I7: Brazilian Real | J7: 2.02314 | K7: BRL | N7: Armenia | O7: Armenia | R7: 3 | S7: =TEXT(tblCountries4[[#This Row],[ID]],"00")&" | "&tblCountries4[[#This Row],[From]]&" - "&T8 -> 03 | 37500 - 50000 | T7: 37500
C8: =AVERAGEIF(Data!F:F,tblXrate[[#This Row],[Currency]],Data!G:G) -> 66677.24928 | D8: GBP | E8: =1/INDEX($J$4:$J$64,MATCH(tblXrate[[#This Row],[Currency]],$K$4:$K$64,0)) -> 1.576178272 | I8: British Pound | J8: 0.634446 | K8: GBP | N8: Aruba | O8: Aruba | R8: 4 | S8: =TEXT(tblCountries4[[#This Row],[ID]],"00")&" | "&tblCountries4[[#This Row],[From]]&" - "&T9 -> 04 | 50000 - 62500 | T8: 50000
C9: =AVERAGEIF(Data!F:F,tblXrate[[#This Row],[Currency]],Data!G:G) -> 95498.00025 | D9: AUD | E9: =1/INDEX($J$4:$J$64,MATCH(tblXrate[[#This Row],[Currency]],$K$4:$K$64,0)) -> 1.019909656 | I9: Brunei dollar | J9: 1.2687 | K9: BND | N9: Asia | O9: Asia | R9: 5 | S9: =TEXT(tblCountries4[[#This Row],[ID]],"00")&" | "&tblCountries4[[#This Row],[From]]&" - "&T10 -> 05 | 62500 - 75000 | T9: 62500
C10: =AVERAGEIF(Data!F:F,tblXrate[[#This Row],[Currency]],Data!G:G) -> 95710.57704 | D10: CAD | E10: =1/INDEX($J$4:$J$64,MATCH(tblXrate[[#This Row],[Currency]],$K$4:$K$64,0)) -> 0.983361523 | I10: Bulgarian Lev | J10: 1.53952 | K10: BGN | N10: Australia | O10: Australia | R10: 6 | S10: =TEXT(tblCountries4[[#This Row],[ID]],"00")&" | "&tblCountries4[[#This Row],[From]]&" - "&T11 -> 06 | 75000 - 87500 | T10: 75000
C11: =AVERAGEIF(Data!F:F,tblXrate[[#This Row],[Currency]],Data!G:G) -> 8770.869335 | D11: PHP | E11: =1/INDEX($J$4:$J$64,MATCH(tblXrate[[#This Row],[Currency]],$K$4:$K$64,0)) -> 0.02370505226 | I11: Canadian Dollar | J11: 1.01692 | K11: CAD | N11: Austria | O11: Austria | R11: 7 | S11: =TEXT(tblCountries4[[#This Row],[ID]],"00")&" | "&tblCountries4[[#This Row],[From]]&" - "&T12 -> 07 | 87500 - 100000 | T11: 87500
C12: =AVERAGEIF(Data!F:F,tblXrate[[#This Row],[Currency]],Data!G:G) -> 31228.98808 | D12: AED | E12: =1/INDEX($J$4:$J$64,MATCH(tblXrate[[#This Row],[Currency]],$K$4:$K$64,0)) -> 0.2722192127 | I12: Chilean Peso | J12: 497.268 | K12: CLP | N12: Azerbaijan | O12: Azerbaijan | R12: 8 | S12: =TEXT(tblCountries4[[#This Row],[ID]],"00")&" | "&tblCountries4[[#This Row],[From]]&" - "&T13 -> 08 | 100000 - 112500 | T12: 100000
C13: =AVERAGEIF(Data!F:F,tblXrate[[#This Row],[Currency]],Data!G:G) -> 10956.98289 | D13: MXN | E13: =1/INDEX($J$4:$J$64,MATCH(tblXrate[[#This Row],[Currency]],$K$4:$K$64,0)) -> 0.07304655257 | I13: Chinese Yuan | J13: 6.36091 | K13: CNY | N13: Baltic | O13: Baltic | R13: 9 | S13: =TEXT(tblCountries4[[#This Row],[ID]],"00")&" | "&tblCountries4[[#This Row],[From]]&" - "&T14 -> 09 | 112500 - 125000 | T13: 112500
C14: =AVERAGEIF(Data!F:F,tblXrate[[#This Row],[Currency]],Data!G:G) -> 68954.52018 | D14: SEK | E14: =1/INDEX($J$4:$J$64,MATCH(tblXrate[[#This Row],[Currency]],$K$4:$K$64,0)) -> 0.1436552504 | I14: Colombian Peso | J14: 1769.79 | K14: COP | N14: Bangladesh | O14: Bangladesh | R14: 10 | S14: =TEXT(tblCountries4[[#This Row],[ID]],"00")&" | "&tblCountries4[[#This Row],[From]]&" - "&T15 -> 10 | 125000 - 137500 | T14: 125000
C15: =AVERAGEIF(Data!F:F,tblXrate[[#This Row],[Currency]],Data!G:G) -> 17598.01729 | D15: BDT | E15: =1/INDEX($J$4:$J$64,MATCH(tblXrate[[#This Row],[Currency]],$K$4:$K$64,0)) -> 0.01222084534 | I15: Croatian Kuna | J15: 5.93671 | K15: HRK | N15: Belgium | O15: Belgium | R15: 11 | S15: =TEXT(tblCountries4[[#This Row],[ID]],"00")&" | "&tblCountries4[[#This Row],[From]]&" - "&T16 -> 11 | 137500 - 150000 | T15: 137500
C16: =AVERAGEIF(Data!F:F,tblXrate[[#This Row],[Currency]],Data!G:G) -> 28109.62755 | D16: COSTARICAN | E16: =1/INDEX($J$4:$J$64,MATCH(tblXrate[[#This Row],[Currency]],$K$4:$K$64,0)) -> 0.002007830539 | I16: Danish Krone | J16: 5.85123 | K16: DKK | N16: Bermuda | O16: Bermuda | R16: 12 | S16: =TEXT(tblCountries4[[#This Row],[ID]],"00")&" | "&tblCountries4[[#This Row],[From]]&" - "&T17 -> 12 | 150000 - 162500 | T16: 150000
C17: =AVERAGEIF(Data!F:F,tblXrate[[#This Row],[Currency]],Data!G:G) -> 43779.08749 | D17: ZAR | E17: =1/INDEX($J$4:$J$64,MATCH(tblXrate[[#This Row],[Currency]],$K$4:$K$64,0)) -> 0.1219217799 | I17: Euro | J17: 0.787154 | K17: EUR | N17: Bhutan | O17: Bhutan | R17: 13 | S17: =TEXT(tblCountries4[[#This Row],[ID]],"00")&" | "&tblCountries4[[#This Row],[From]]&" - "&T18 -> 13 | 162500 - 175000 | T17: 162500
C18: =AVERAGEIF(Data!F:F,tblXrate[[#This Row],[Currency]],Data!G:G) -> 68526.11038 | D18: NZD | E18: =1/INDEX($J$4:$J$64,MATCH(tblXrate[[#This Row],[Currency]],$K$4:$K$64,0)) -> 0.7975880936 | I18: Hong Kong Dollar | J18: 7.75889 | K18: HKD | N18: Bolivia | O18: Bolivia | R18: 14 | S18: =TEXT(tblCountries4[[#This Row],[ID]],"00")&" | "&tblCountries4[[#This Row],[From]]&" - "&T19 -> 14 | 175000 - 187500 | T18: 175000
C19: =AVERAGEIF(Data!F:F,tblXrate[[#This Row],[Currency]],Data!G:G) -> 15092.18021 | D19: CNY | E19: =1/INDEX($J$4:$J$64,MATCH(tblXrate[[#This Row],[Currency]],$K$4:$K$64,0)) -> 0.1572102105 | I19: Hungarian Forint | J19: 225.874 | K19: HUF | N19: Brasil | O19: Brazil | R19: 15 | S19: =TEXT(tblCountries4[[#This Row],[ID]],"00")&" | "&tblCountries4[[#This Row],[From]]&" - "&T20 -> 15 | 187500 - 200000 | T19: 187500
C20: =AVERAGEIF(Data!F:F,tblXrate[[#This Row],[Currency]],Data!G:G) -> 19831.43282 | D20: EGYPT | E20: =1/INDEX($J$4:$J$64,MATCH(tblXrate[[#This Row],[Currency]],$K$4:$K$64,0)) -> 0.1652619402 | I20: Iceland Krona | J20: 124.697 | K20: ISK | N20: Brazil | O20: Brazil | R20: 16 | S20: =TEXT(tblCountries4[[#This Row],[ID]],"00")&" | "&tblCountries4[[#This Row],[From]]&" - "&T21 -> 16 | 200000 - 212500 | T20: 200000
C21: =AVERAGEIF(Data!F:F,tblXrate[[#This Row],[Currency]],Data!G:G) -> 10748.84438 | D21: NAIRA | E21: =1/INDEX($J$4:$J$64,MATCH(tblXrate[[#This Row],[Currency]],$K$4:$K$64,0)) -> 0.006163328197 | I21: Indian Rupee | J21: 56.1548 | K21: INR | N21: BRA | O21: Brazil | R21: 17 | S21: =TEXT(tblCountries4[[#This Row],[ID]],"00")&" | "&tblCountries4[[#This Row],[From]]&" - "&T22 -> 17 | 212500 - 225000 | T21: 212500
C22: =AVERAGEIF(Data!F:F,tblXrate[[#This Row],[Currency]],Data!G:G) -> 31228.98808 | D22: AED | E22: =1/INDEX($J$4:$J$64,MATCH(tblXrate[[#This Row],[Currency]],$K$4:$K$64,0)) -> 0.2722192127 | I22: Indonesian Rupiah | J22: 9443.81 | K22: IDR | N22: Bulgaria | O22: Bulgaria | R22: 18 | S22: =TEXT(tblCountries4[[#This Row],[ID]],"00")&" | "&tblCountries4[[#This Row],[From]]&" - "&T23 -> 18 | 225000 - 237500 | T22: 225000
C23: =AVERAGEIF(Data!F:F,tblXrate[[#This Row],[Currency]],Data!G:G) -> 61488.57716 | D23: BRL | E23: =1/INDEX($J$4:$J$64,MATCH(tblXrate[[#This Row],[Currency]],$K$4:$K$64,0)) -> 0.4942811669 | I23: Israeli New Shekel | J23: 3.86721 | K23: ILS | N23: Cambodia | O23: Cambodia | R23: 19 | S23: =TEXT(tblCountries4[[#This Row],[ID]],"00")&" | "&tblCountries4[[#This Row],[From]]&" - "&T24 -> 19 | 237500 - higher | T23: 237500
C24: =AVERAGEIF(Data!F:F,tblXrate[[#This Row],[Currency]],Data!G:G) -> 18499.86054 | D24: RON | E24: =1/INDEX($J$4:$J$64,MATCH(tblXrate[[#This Row],[Currency]],$K$4:$K$64,0)) -> 0.2846132391 | I24: Japanese Yen | J24: 78.9043 | K24: JPY | N24: Canada | O24: Canada | T24: higher
C25: =AVERAGEIF(Data!F:F,tblXrate[[#This Row],[Currency]],Data!G:G) -> 18493.23314 | D25: MYR | E25: =1/INDEX($J$4:$J$64,MATCH(tblXrate[[#This Row],[Currency]],$K$4:$K$64,0)) -> 0.3168005677 | I25: Kazakhstani Tenge | J25: 148.88 | K25: KZT | N25: Canad | O25: Canada
C26: =AVERAGEIF(Data!F:F,tblXrate[[#This Row],[Currency]],Data!G:G) -> 1805.773962 | D26: LKR | E26: =1/INDEX($J$4:$J$64,MATCH(tblXrate[[#This Row],[Currency]],$K$4:$K$64,0)) -> 0.007524058176 | I26: Kuwaiti Dinar | J26: 0.2794 | K26: KWD | N26: CEE | O26: CEE
C27: =AVERAGEIF(Data!F:F,tblXrate[[#This Row],[Currency]],Data!G:G) -> 72571.8027 | D27: SGD | E27: =1/INDEX($J$4:$J$64,MATCH(tblXrate[[#This Row],[Currency]],$K$4:$K$64,0)) -> 0.7888239424 | I27: Latvian Lat | J27: 0.548489 | K27: LVL | N27: Continental Europe | O27: CEE
C28: =AVERAGEIF(Data!F:F,tblXrate[[#This Row],[Currency]],Data!G:G) -> 66677.24928 | D28: GBP | E28: =1/INDEX($J$4:$J$64,MATCH(tblXrate[[#This Row],[Currency]],$K$4:$K$64,0)) -> 1.576178272 | I28: Libyan Dinar | J28: 1.9324 | K28: LYD | N28: Central America | O28: Central America
C29: =AVERAGEIF(Data!F:F,tblXrate[[#This Row],[Currency]],Data!G:G) -> 15404.36457 | D29: DOP | E29: =1/INDEX($J$4:$J$64,MATCH(tblXrate[[#This Row],[Currency]],$K$4:$K$64,0)) -> 0.02567394095 | I29: Lithuanian Litas | J29: 2.71788 | K29: LTL | N29: china | O29: China
C30: =AVERAGEIF(Data!F:F,tblXrate[[#This Row],[Currency]],Data!G:G) -> 18018.88379 | D30: PLN | E30: =1/INDEX($J$4:$J$64,MATCH(tblXrate[[#This Row],[Currency]],$K$4:$K$64,0)) -> 0.3003147298 | I30: Malaysian Ringgit | J30: 3.15656 | K30: MYR | N30: Colombia | O30: Colombia
C31: =AVERAGEIF(Data!F:F,tblXrate[[#This Row],[Currency]],Data!G:G) -> 51497.00599 | D31: KENYA | E31: =1/INDEX($J$4:$J$64,MATCH(tblXrate[[#This Row],[Currency]],$K$4:$K$64,0)) -> 0.0119760479 | I31: Mauritius Rupee | J31: 30.7159 | K31: MUR | N31: Colombia - South America | O31: Colombia
C32: =AVERAGEIF(Data!F:F,tblXrate[[#This Row],[Currency]],Data!G:G) -> 92288.2881 | D32: DKK | E32: =1/INDEX($J$4:$J$64,MATCH(tblXrate[[#This Row],[Currency]],$K$4:$K$64,0)) -> 0.1709042372 | I32: Mexican Peso | J32: 13.6899 | K32: MXN | N32: Costa Rica | O32: Costa Rica
C33: =AVERAGEIF(Data!F:F,tblXrate[[#This Row],[Currency]],Data!G:G) -> 5082.694379 | D33: IDR | E33: =1/INDEX($J$4:$J$64,MATCH(tblXrate[[#This Row],[Currency]],$K$4:$K$64,0)) -> 0.0001058894662 | I33: Nepalese Rupee | J33: 89.65 | K33: NPR | N33: Croatia | O33: Croatia
C34: =AVERAGEIF(Data!F:F,tblXrate[[#This Row],[Currency]],Data!G:G) -> 7261.72466 | D34: MONGOLIAN | E34: =1/INDEX($J$4:$J$64,MATCH(tblXrate[[#This Row],[Currency]],$K$4:$K$64,0)) -> 0.000756429652 | I34: New Zealand Dollar | J34: 1.25378 | K34: NZD | N34: europe/Croatia | O34: Croatia
C35: =AVERAGEIF(Data!F:F,tblXrate[[#This Row],[Currency]],Data!G:G) -> 50694.32211 | D35: JPY | E35: =1/INDEX($J$4:$J$64,MATCH(tblXrate[[#This Row],[Currency]],$K$4:$K$64,0)) -> 0.01267358053 | I35: Norwegian Kroner | J35: 5.90838 | K35: NOK | N35: Czech Republic | O35: Czech Republic
C36: =AVERAGEIF(Data!F:F,tblXrate[[#This Row],[Currency]],Data!G:G) -> 71466.66667 | D36: SAR | E36: =1/INDEX($J$4:$J$64,MATCH(tblXrate[[#This Row],[Currency]],$K$4:$K$64,0)) -> 0.2666666667 | I36: Omani Rial | J36: 0.3845 | K36: OMR | N36: Denmark | O36: Denmark
C37: =AVERAGEIF(Data!F:F,tblXrate[[#This Row],[Currency]],Data!G:G) -> 13745.70447 | D37: MAD | E37: =1/INDEX($J$4:$J$64,MATCH(tblXrate[[#This Row],[Currency]],$K$4:$K$64,0)) -> 0.1145475372 | I37: Pakistan Rupee | J37: 94.2144 | K37: PKR | N37: DK | O37: Denmark
C38: =AVERAGEIF(Data!F:F,tblXrate[[#This Row],[Currency]],Data!G:G) -> 9376.251388 | D38: MUR | E38: =1/INDEX($J$4:$J$64,MATCH(tblXrate[[#This Row],[Currency]],$K$4:$K$64,0)) -> 0.03255642843 | I38: Philippine Peso | J38: 42.1851 | K38: PHP | N38: Dominican Republic | O38: Dominican Republic
C39: =AVERAGEIF(Data!F:F,tblXrate[[#This Row],[Currency]],Data!G:G) -> 67700.45258 | D39: NOK | E39: =1/INDEX($J$4:$J$64,MATCH(tblXrate[[#This Row],[Currency]],$K$4:$K$64,0)) -> 0.1692511314 | I39: Qatari Rial | J39: 3.64 | K39: QAR | N39: Dubai | O39: Dubai
C40: =AVERAGEIF(Data!F:F,tblXrate[[#This Row],[Currency]],Data!G:G) -> 148102.2286 | D40: CHF | E40: =1/INDEX($J$4:$J$64,MATCH(tblXrate[[#This Row],[Currency]],$K$4:$K$64,0)) -> 1.057873062 | I40: Romanian Leu | J40: 3.51354 | K40: RON | N40: Egypt | O40: Egypt
C41: =AVERAGEIF(Data!F:F,tblXrate[[#This Row],[Currency]],Data!G:G) -> 2953.846154 | D41: ETB | E41: =1/INDEX($J$4:$J$64,MATCH(tblXrate[[#This Row],[Currency]],$K$4:$K$64,0)) -> 0.05656108597 | I41: Russian Ruble | J41: 32.5458 | K41: RUB | N41: Estonia | O41: Estonia
I42: Saudi Riyal | J42: 3.75 | K42: SAR | N42: Ethiopia | O42: Ethiopia
I43: Singapore Dollar | J43: 1.26771 | K43: SGD | N43: Europe | O43: Europe
I44: South African Rand | J44: 8.20198 | K44: ZAR | N44: mainland Europe (Euro zone) | O44: Europe
I45: South Korean Won | J45: 1151.09 | K45: KRW | N45: EU | O45: Europe
I46: Sri Lanka Rupee | J46: 132.907 | K46: LKR | N46: Finland | O46: Finland
I47: Swedish Krona | J47: 6.96111 | K47: SEK | N47: France | O47: France
I48: Swiss Franc | J48: 0.945293 | K48: CHF | N48: FR | O48: France
I49: Taiwan Dollar | J49: 29.8594 | K49: TWD | N49: Germany | O49: Germany
I50: Thai Baht | J50: 31.5003 | K50: THB | N50: Ghana | O50: Ghana
I51: Trinidad/Tobago Dollar | J51: 6.39122 | K51: TTD | N51: Greece | O51: Greece
I52: Turkish Lira | J52: 1.79447 | K52: TRY | N52: Guyana | O52: Guyana
I53: Venezuelan Bolivar | J53: 4.29402 | K53: VEF | N53: Hong Kong | O53: Hong Kong
I54: UAE Dirham | J54: 3.67351 | K54: AED | N54: Hungary | O54: Hungary
I55: Bangladesh Takha | J55: 81.8274 | K55: BDT | N55: Iceland | O55: Iceland
I56: Costarican CRC | J56: 498.05 | K56: Costarican | N56: India | O56: India
I57: Egyptian Pound | J57: 6.051 | K57: Egypt | N57: Indonesia | O57: Indonesia
I58: Nigerian Naira | J58: 162.25 | K58: NAIRA | N58: Inonesia | O58: Indonesia
I59: Dominican Peso | J59: 38.95 | K59: DOP | N59: iran | O59: iran
I60: Polish Zloty | J60: 3.32984 | K60: PLN | N60: Ireland | O60: Ireland
I61: Kenyan Shilling | J61: 83.5 | K61: Kenya | N61: Israel | O61: Israel
I62: Mongolian Tughrik | J62: 1322 | K62: Mongolian | N62: italy | O62: italy
I63: Moroccan Dirham | J63: 8.73 | K63: MAD | N63: Japan | O63: Japan
I64: Ethiopian Birr | J64: 17.68 | K64: ETB | N64: Kenya | O64: Kenya
N65: Kuwait | O65: Kuwait
N66: Kuwait | O66: Kuwait
N67: Latin America | O67: Latin America
N68: Lesotho | O68: Lesotho
N69: Libya | O69: Libya
N70: Lithuania | O70: Lithuania
N71: malaysia | O71: Malaysia
N72: Mauritius | O72: Mauritius
N73: Mexico | O73: Mexico
N74: MÃ©xico | O74: Mexico
N75: Mongolia | O75: Mongolia
N76: Montenegro | O76: Montenegro
N77: Morocco | O77: Morocco
N78: mozambique | O78: Mozambique
N79: Myanmar | O79: Myanmar
N80: Myanmar [Burma] | O80: Myanmar
N81: MYS | O81: MYS
N82: Netherlands | O82: Netherlands
N83: The Netherlands | O83: Netherlands
N84: NL | O84: Netherlands
N85: New Zealand | O85: New Zealand
N86: nz | O86: New Zealand
N87: New Zealand | O87: New Zealand
N88: nld | O88: New Zealand
N89: Nigeria | O89: Nigeria
N90: Norway | O90: Norway
N91: Oman | O91: Oman
N92: Pakistan | O92: Pakistan
N93: Pakistan, Angola | O93: Pakistan
N94: Panama | O94: Panama
N95: Paraguay | O95: Paraguay
N96: Peru | O96: Peru
N97: Philippines | O97: Philippines
N98: Poland | O98: Poland
N99: Portugal | O99: Portugal
N100: Qatar | O100: Qatar
N101: Republic of Georgia | O101: Republic of Georgia
N102: Republica Dominicana | O102: Republica Dominicana
N103: Romania | O103: Romania
N104: Russia | O104: Russia
N105: Saudi Arabia | O105: Saudi Arabia
N106: Saudi Arabai | O106: Saudi Arabia
N107: Kingdom of Saudi Arabia | O107: Saudi Arabia
N108: self-employed | O108: Self-employed
N109: Singapore | O109: Singapore
N110: Slovakia | O110: Slovakia
N111: Slovenia | O111: Slovenia
N112: Somalia | O112: Somalia
N113: South Africa | O113: South Africa
N114: SouthAfrica | O114: South Africa
N115: RSA | O115: South Africa
N116: Spain | O116: Spain
N117: Sri Lanka | O117: Sri Lanka
N118: srilanka | O118: Sri Lanka
N119: Sweden | O119: Sweden
N120: Switzerland | O120: Switzerland
N121: Thailand | O121: Thailand
N122: bangkok | O122: Thailand
N123: Tunisia | O123: Tunisia
N124: Turkey | O124: Turkey
N125: UAE | O125: UAE
N126: United Arab Emirates | O126: UAE
N127: United Arab Emriate | O127: UAE
N128: Uganda | O128: Uganda
N129: UK | O129: UK
N130: Ukraine | O130: Ukraine
N131: Uruguay | O131: Uruguay
N132: USA | O132: USA
N133: ksa | O133: USA
N134: Viet Nam | O134: Vietnam
N135: Vietnam | O135: Vietnam
N136: Zambia | O136: Zambia
N137: Zimbabwe | O137: Zimbabwe

Sheet Tabel
A2: Rijlabels | B2: Som van Salary in USD
A3: ID0001 | B3: 5846
A4: India | B4: 5846
A5: Analyst | B5: 5846
A6: USD | B6: 5846
A7: 00 | 0 - 12500 | B7: 5846
A8: Unknown | B8: 5846
A9: 4 to 6 hours a day | B9: 5846
A10: 5846 | B10: 5846
A11: ID0002 | B11: 15000
A12: Croatia | B12: 15000
A13: Controller | B13: 15000
A14: USD | B14: 15000
A15: 01 | 12500 - 25000 | B15: 15000
A16: Unknown | B16: 15000
A17: All the 8 hours baby, all the 8! | B17: 15000
A18: 15000 | B18: 15000
A19: ID0003 | B19: 58000
A20: USA | B20: 58000
A21: Analyst | B21: 58000
A22: USD | B22: 58000
A23: 04 | 50000 - 62500 | B23: 58000
A24: Unknown | B24: 58000
A25: All the 8 hours baby, all the 8! | B25: 58000
A26: 58000 | B26: 58000
A27: ID0004 | B27: 48000
A28: Pakistan | B28: 48000
A29: Controller | B29: 48000
A30: USD | B30: 48000
A31: 03 | 37500 - 50000 | B31: 48000
A32: Unknown | B32: 48000
A33: 2 to 3 hours per day | B33: 48000
A34: 48000 | B34: 48000
A35: ID0005 | B35: 54000
A36: USA | B36: 54000
A37: Engineer | B37: 54000
A38: USD | B38: 54000
A39: 04 | 50000 - 62500 | B39: 54000
A40: Unknown | B40: 54000
A41: All the 8 hours baby, all the 8! | B41: 54000
A42: 54000 | B42: 54000
A43: ID0006 | B43: 41731
A44: Iceland | B44: 41731
A45: Analyst | B45: 41731
A46: USD | B46: 41731
A47: 03 | 37500 - 50000 | B47: 41731
A48: Unknown | B48: 41731
A49: All the 8 hours baby, all the 8! | B49: 41731
A50: 41731 | B50: 41731
A51: ID0007 | B51: 184207.9187
A52: Germany | B52: 184207.9187
A53: Manager | B53: 184207.9187
A54: EUR | B54: 184207.9187
A55: 14 | 175000 - 187500 | B55: 184207.9187
A56: Unknown | B56: 184207.9187
A57: 1 or 2 hours a day | B57: 184207.9187
A58: 184207.9187 | B58: 184207.9187
A59: ID0008 | B59: 12000
A60: Ukraine | B60: 12000
A61: Analyst | B61: 12000
A62: USD | B62: 12000
A63: 00 | 0 - 12500 | B63: 12000
A64: Unknown | B64: 12000
A65: All the 8 hours baby, all the 8! | B65: 12000
A66: 12000 | B66: 12000
A67: ID0009 | B67: 44000
A68: Portugal | B68: 44000
A69: CXO or Top Mgmt. | B69: 44000
A70: USD | B70: 44000
A71: 03 | 37500 - 50000 | B71: 44000
A72: Unknown | B72: 44000
A73: 1 or 2 hours a day | B73: 44000
A74: 44000 | B74: 44000
A75: ID0010 | B75: 12227.4302
A76: Pakistan | B76: 12227.4302
A77: Accountant | B77: 12227.4302
A78: PKR | B78: 12227.4302
A79: 00 | 0 - 12500 | B79: 12227.4302
A80: Unknown | B80: 12227.4302
A81: All the 8 hours baby, all the 8! | B81: 12227.4302
A82: 12227.4302 | B82: 12227.4302
A83: ID0011 | B83: 65616.13102
A84: Ireland | B84: 65616.13102
A85: Specialist | B85: 65616.13102
A86: EUR | B86: 65616.13102
A87: 05 | 62500 - 75000 | B87: 65616.13102
A88: Unknown | B88: 65616.13102
A89: 2 to 3 hours per day | B89: 65616.13102
A90: 65616.13102 | B90: 65616.13102
A91: ID0012 | B91: 14000
A92: Hungary | B92: 14000
A93: Engineer | B93: 14000
A94: USD | B94: 14000
A95: 01 | 12500 - 25000 | B95: 14000
A96: Unknown | B96: 14000
A97: 4 to 6 hours a day | B97: 14000
A98: 14000 | B98: 14000
A99: ID0013 | B99: 13338.1296
A100: India | B100: 13338.1296
A101: Analyst | B101: 13338.1296
A102: INR | B102: 13338.1296
A103: 01 | 12500 - 25000 | B103: 13338.1296
A104: Unknown | B104: 13338.1296
A105: All the 8 hours baby, all the 8! | B105: 13338.1296
A106: 13338.1296 | B106: 13338.1296
A107: ID0014 | B107: 49000
A108: USA | B108: 49000
A109: Analyst | B109: 49000
A110: USD | B110: 49000
A111: 03 | 37500 - 50000 | B111: 49000
A112: Unknown | B112: 49000
A113: All the 8 hours baby, all the 8! | B113: 49000
A114: 49000 | B114: 49000
A115: ID0015 | B115: 85000
A116: USA | B116: 85000
A117: Engineer | B117: 85000
A118: USD | B118: 85000
A119: 06 | 75000 - 87500 | B119: 85000
A120: Unknown | B120: 85000
A121: 1 or 2 hours a day | B121: 85000
A122: 85000 | B122: 85000
A123: ID0016 | B123: 75000
A124: USA | B124: 75000
A125: Engineer | B125: 75000
A126: USD | B126: 75000
A127: 06 | 75000 - 87500 | B127: 75000
A128: Unknown | B128: 75000
A129: All the 8 hours baby, all the 8! | B129: 75000
A130: 75000 | B130: 75000
A131: ID0017 | B131: 107000
A132: Switzerland | B132: 107000
A133: Manager | B133: 107000
A134: USD | B134: 107000
A135: 08 | 100000 - 112500 | B135: 107000
A136: Unknown | B136: 107000
A137: 4 to 6 hours a day | B137: 107000
A138: 107000 | B138: 107000
A139: ID0018 | B139: 45000
A140: South Africa | B140: 45000
A141: Reporting | B141: 45000
A142: USD | B142: 45000
A143: 03 | 37500 - 50000 | B143: 45000
A144: Unknown | B144: 45000
A145: All the 8 hours baby, all the 8! | B145: 45000
A146: 45000 | B146: 45000
A147: ID0019 | B147: 9794.354178 | G147: =AVERAGEIF(A:A,"ID0"&"*",B:B) -> 48946.46971
A148: India | B148: 9794.354178 | G148: =AVERAGEIF(A:A,"ID1"&"*",B:B) -> 45661.90875
A149: Manager | B149: 9794.354178 | G149: =(G147+G148)/2 -> 47304.18923
A150: INR | B150: 9794.354178
A151: 00 | 0 - 12500 | B151: 9794.354178 | G151: =AVERAGE(B2:B163) -> 49214.83049
A152: Unknown | B152: 9794.354178 | G152: =AVERAGE(B:B) -> 47356.99568
A153: 2 to 3 hours per day | B153: 9794.354178
A154: 9794.354178 | B154: 9794.354178
A155: ID0020 | B155: 50000
A156: India | B156: 50000
A157: Manager | B157: 50000
A158: USD | B158: 50000
A159: 04 | 50000 - 62500 | B159: 50000
A160: Unknown | B160: 50000
A161: 1 or 2 hours a day | B161: 50000
A162: 50000 | B162: 50000
A163: ID0021 | B163: 13500
A164: India | B164: 13500
A165: Manager | B165: 13500
A166: USD | B166: 13500
A167: 01 | 12500 - 25000 | B167: 13500
A168: Unknown | B168: 13500
A169: 4 to 6 hours a day | B169: 13500
A170: 13500 | B170: 13500
A171: ID0022 | B171: 96000
A172: USA | B172: 96000
A173: Analyst | B173: 96000
A174: USD | B174: 96000
A175: 07 | 87500 - 100000 | B175: 96000
A176: Unknown | B176: 96000
A177: 2 to 3 hours per day | B177: 96000
A178: 96000 | B178: 96000
A179: ID0023 | B179: 17807.91669
A180: India | B180: 17807.91669
A181: Manager | B181: 17807.91669
A182: INR | B182: 17807.91669
A183: 01 | 12500 - 25000 | B183: 17807.91669
A184: Unknown | B184: 17807.91669
A185: 4 to 6 hours a day | B185: 17807.91669
A186: 17807.91669 | B186: 17807.91669
A187: ID0024 | B187: 75000
A188: USA | B188: 75000
A189: CXO or Top Mgmt. | B189: 75000
A190: USD | B190: 75000
A191: 06 | 75000 - 87500 | B191: 75000
A192: Unknown | B192: 75000
A193: 4 to 6 hours a day | B193: 75000
A194: 75000 | B194: 75000
A195: ID0025 | B195: 40000
A196: USA | B196: 40000
A197: Manager | B197: 40000
A198: USD | B198: 40000
A199: 03 | 37500 - 50000 | B199: 40000
A200: Unknown | B200: 40000
A201: 2 to 3 hours per day | B201: 40000
... 14729 more rows

Sheet Data
B1: Excel Salary Survey Data
B3: Note: Experience data is not available for first few hundred rows.
B5: Unique ID | C5: Timestamp | D5: Your Salary | E5: clean Salary (in local currency) | F5: Currency | G5: Salary in USD | H5: Your Job Title | I5: Job Type | J5: Where do you work | K5: clean Country | L5: How many hours of a day you work on Excel | M5: Years of Experience | N5: Salary Range | O5: Into range Scatterplot
B6: ID0477 | C6: 2012-05-26T03:17:19 | D6: 1250000 | E6: 1250000 | F6: CAD | G6: =tblSalaries[[#This Row],[clean Salary (in local currency)]]*VLOOKUP(tblSalaries[[#This Row],[Currency]],mapping!D:E,2,FALSE) -> 1229201.904 | H6: Account Executive | I6: Accountant | J6: Canada | K6: =VLOOKUP(tblSalaries[[#This Row],[Where do you work]],tblCountries[[Actual]:[Mapping]],2,FALSE) -> Canada | L6: 4 to 6 hours a day | M6: Unknown | N6: =VLOOKUP(IF(FLOOR(tblSalaries[[#This Row],[Salary in USD]]/salary_step,1)>19,19,FLOOR(tblSalaries[[#This Row],[Salary in USD]]/salary_step,1)),tblCountries4[#All],2,0) -> 19 | 237500 - higher | O6: =IF(VALUE(max_scatterplot)=0,tblSalaries[[#This Row],[Salary in USD]],IF(AND(tblSalaries[[#This Row],[Salary in USD]]>=VALUE(min_scatterplot),tblSalaries[[#This Row],[Salary in USD]]<=VALUE(max_scatterplot)),tblSalaries[[#This Row],[Salary in USD]],selection_false)) -> x
B7: ID0211 | C7: 2012-05-26T00:54:28 | D7: 400000 | E7: 400000 | F7: USD | G7: =tblSalaries[[#This Row],[clean Salary (in local currency)]]*VLOOKUP(tblSalaries[[#This Row],[Currency]],mapping!D:E,2,FALSE) -> 400000 | H7: program manager | I7: Manager | J7: USA | K7: =VLOOKUP(tblSalaries[[#This Row],[Where do you work]],tblCountries[[Actual]:[Mapping]],2,FALSE) -> USA | L7: 1 or 2 hours a day | M7: Unknown | N7: =VLOOKUP(IF(FLOOR(tblSalaries[[#This Row],[Salary in USD]]/salary_step,1)>19,19,FLOOR(tblSalaries[[#This Row],[Salary in USD]]/salary_step,1)),tblCountries4[#All],2,0) -> 19 | 237500 - higher | O7: =IF(VALUE(max_scatterplot)=0,tblSalaries[[#This Row],[Salary in USD]],IF(AND(tblSalaries[[#This Row],[Salary in USD]]>=VALUE(min_scatterplot),tblSalaries[[#This Row],[Salary in USD]]<=VALUE(max_scatterplot)),tblSalaries[[#This Row],[Salary in USD]],selection_false)) -> x
B8: ID0318 | C8: 2012-05-26T01:27:03 | D8: 400000 | E8: 400000 | F8: USD | G8: =tblSalaries[[#This Row],[clean Salary (in local currency)]]*VLOOKUP(tblSalaries[[#This Row],[Currency]],mapping!D:E,2,FALSE) -> 400000 | H8: Financial Specialist | I8: Specialist | J8: USA | K8: =VLOOKUP(tblSalaries[[#This Row],[Where do you work]],tblCountries[[Actual]:[Mapping]],2,FALSE) -> USA | L8: All the 8 hours baby, all the 8! | M8: Unknown | N8: =VLOOKUP(IF(FLOOR(tblSalaries[[#This Row],[Salary in USD]]/salary_step,1)>19,19,FLOOR(tblSalaries[[#This Row],[Salary in USD]]/salary_step,1)),tblCountries4[#All],2,0) -> 19 | 237500 - higher | O8: =IF(VALUE(max_scatterplot)=0,tblSalaries[[#This Row],[Salary in USD]],IF(AND(tblSalaries[[#This Row],[Salary in USD]]>=VALUE(min_scatterplot),tblSalaries[[#This Row],[Salary in USD]]<=VALUE(max_scatterplot)),tblSalaries[[#This Row],[Salary in USD]],selection_false)) -> x
B9: ID0584 | C9: 2012-05-26T07:44:04 | D9: 300000 | E9: 300000 | F9: USD | G9: =tblSalaries[[#This Row],[clean Salary (in local currency)]]*VLOOKUP(tblSalaries[[#This Row],[Currency]],mapping!D:E,2,FALSE) -> 300000 | H9: CEO | I9: CXO or Top Mgmt. | J9: USA | K9: =VLOOKUP(tblSalaries[[#This Row],[Where do you work]],tblCountries[[Actual]:[Mapping]],2,FALSE) -> USA | L9: 2 to 3 hours per day | M9: 30 | N9: =VLOOKUP(IF(FLOOR(tblSalaries[[#This Row],[Salary in USD]]/salary_step,1)>19,19,FLOOR(tblSalaries[[#This Row],[Salary in USD]]/salary_step,1)),tblCountries4[#All],2,0) -> 19 | 237500 - higher | O9: =IF(VALUE(max_scatterplot)=0,tblSalaries[[#This Row],[Salary in USD]],IF(AND(tblSalaries[[#This Row],[Salary in USD]]>=VALUE(min_scatterplot),tblSalaries[[#This Row],[Salary in USD]]<=VALUE(max_scatterplot)),tblSalaries[[#This Row],[Salary in USD]],selection_false)) -> x
B10: ID0493 | C10: 2012-05-26T03:37:33 | D10: 190000 | E10: 190000 | F10: GBP | G10: =tblSalaries[[#This Row],[clean Salary (in local currency)]]*VLOOKUP(tblSalaries[[#This Row],[Currency]],mapping!D:E,2,FALSE) -> 299473.8717 | H10: Managing Partner | I10: CXO or Top Mgmt. | J10: UK | K10: =VLOOKUP(tblSalaries[[#This Row],[Where do you work]],tblCountries[[Actual]:[Mapping]],2,FALSE) -> UK | L10: 4 to 6 hours a day | M10: Unknown | N10: =VLOOKUP(IF(FLOOR(tblSalaries[[#This Row],[Salary in USD]]/salary_step,1)>19,19,FLOOR(tblSalaries[[#This Row],[Salary in USD]]/salary_step,1)),tblCountries4[#All],2,0) -> 19 | 237500 - higher | O10: =IF(VALUE(max_scatterplot)=0,tblSalaries[[#This Row],[Salary in USD]],IF(AND(tblSalaries[[#This Row],[Salary in USD]]>=VALUE(min_scatterplot),tblSalaries[[#This Row],[Salary in USD]]<=VALUE(max_scatterplot)),tblSalaries[[#This Row],[Salary in USD]],selection_false)) -> x
B11: ID0981 | C11: 2012-05-28T07:46:28 | D11: 260000 | E11: 260000 | F11: USD | G11: =tblSalaries[[#This Row],[clean Salary (in local currency)]]*VLOOKUP(tblSalaries[[#This Row],[Currency]],mapping!D:E,2,FALSE) -> 260000 | H11: CFO | I11: CXO or Top Mgmt. | J11: USA | K11: =VLOOKUP(tblSalaries[[#This Row],[Where do you work]],tblCountries[[Actual]:[Mapping]],2,FALSE) -> USA | L11: 2 to 3 hours per day | M11: 10 | N11: =VLOOKUP(IF(FLOOR(tblSalaries[[#This Row],[Salary in USD]]/salary_step,1)>19,19,FLOOR(tblSalaries[[#This Row],[Salary in USD]]/salary_step,1)),tblCountries4[#All],2,0) -> 19 | 237500 - higher | O11: =IF(VALUE(max_scatterplot)=0,tblSalaries[[#This Row],[Salary in USD]],IF(AND(tblSalaries[[#This Row],[Salary in USD]]>=VALUE(min_scatterplot),tblSalaries[[#This Row],[Salary in USD]]<=VALUE(max_scatterplot)),tblSalaries[[#This Row],[Salary in USD]],selection_false)) -> x
B12: ID0309 | C12: 2012-05-26T01:23:50 | D12: 200000 | E12: 200000 | F12: EUR | G12: =tblSalaries[[#This Row],[clean Salary (in local currency)]]*VLOOKUP(tblSalaries[[#This Row],[Currency]],mapping!D:E,2,FALSE) -> 254079.8878 | H12: consultant bi | I12: Reporting | J12: The netherlands | K12: =VLOOKUP(tblSalaries[[#This Row],[Where do you work]],tblCountries[[Actual]:[Mapping]],2,FALSE) -> Netherlands | L12: All the 8 hours baby, all the 8! | M12: Unknown | N12: =VLOOKUP(IF(FLOOR(tblSalaries[[#This Row],[Salary in USD]]/salary_step,1)>19,19,FLOOR(tblSalaries[[#This Row],[Salary in USD]]/salary_step,1)),tblCountries4[#All],2,0) -> 19 | 237500 - higher | O12: =IF(VALUE(max_scatterplot)=0,tblSalaries[[#This Row],[Salary in USD]],IF(AND(tblSalaries[[#This Row],[Salary in USD]]>=VALUE(min_scatterplot),tblSalaries[[#This Row],[Salary in USD]]<=VALUE(max_scatterplot)),tblSalaries[[#This Row],[Salary in USD]],selection_false)) -> x
B13: ID0425 | C13: 2012-05-26T02:22:17 | D13: 250000 to 270000 | E13: 250000 | F13: USD | G13: =tblSalaries[[#This Row],[clean Salary (in local currency)]]*VLOOKUP(tblSalaries[[#This Row],[Currency]],mapping!D:E,2,FALSE) -> 250000 | H13: consultant | I13: Consultant | J13: USA | K13: =VLOOKUP(tblSalaries[[#This Row],[Where do you work]],tblCountries[[Actual]:[Mapping]],2,FALSE) -> USA | L13: All the 8 hours baby, all the 8! | M13: Unknown | N13: =VLOOKUP(IF(FLOOR(tblSalaries[[#This Row],[Salary in USD]]/salary_step,1)>19,19,FLOOR(tblSalaries[[#This Row],[Salary in USD]]/salary_step,1)),tblCountries4[#All],2,0) -> 19 | 237500 - higher | O13: =IF(VALUE(max_scatterplot)=0,tblSalaries[[#This Row],[Salary in USD]],IF(AND(tblSalaries[[#This Row],[Salary in USD]]>=VALUE(min_scatterplot),tblSalaries[[#This Row],[Salary in USD]]<=VALUE(max_scatterplot)),tblSalaries[[#This Row],[Salary in USD]],selection_false)) -> x
B14: ID1516 | C14: 2012-05-31T02:37:09 | D14: 250000 | E14: 250000 | F14: USD | G14: =tblSalaries[[#This Row],[clean Salary (in local currency)]]*VLOOKUP(tblSalaries[[#This Row],[Currency]],mapping!D:E,2,FALSE) -> 250000 | H14: consultant | I14: Consultant | J14: USA | K14: =VLOOKUP(tblSalaries[[#This Row],[Where do you work]],tblCountries[[Actual]:[Mapping]],2,FALSE) -> USA | L14: All the 8 hours baby, all the 8! | M14: 20 | N14: =VLOOKUP(IF(FLOOR(tblSalaries[[#This Row],[Salary in USD]]/salary_step,1)>19,19,FLOOR(tblSalaries[[#This Row],[Salary in USD]]/salary_step,1)),tblCountries4[#All],2,0) -> 19 | 237500 - higher | O14: =IF(VALUE(max_scatterplot)=0,tblSalaries[[#This Row],[Salary in USD]],IF(AND(tblSalaries[[#This Row],[Salary in USD]]>=VALUE(min_scatterplot),tblSalaries[[#This Row],[Salary in USD]]<=VALUE(max_scatterplot)),tblSalaries[[#This Row],[Salary in USD]],selection_false)) -> x
B15: ID0620 | C15: 2012-05-26T10:59:10 | D15: 250000 | E15: 250000 | F15: CAD | G15: =tblSalaries[[#This Row],[clean Salary (in local currency)]]*VLOOKUP(tblSalaries[[#This Row],[Currency]],mapping!D:E,2,FALSE) -> 245840.3808 | H15: Business Analyst | I15: Analyst | J15: Canada | K15: =VLOOKUP(tblSalaries[[#This Row],[Where do you work]],tblCountries[[Actual]:[Mapping]],2,FALSE) -> Canada | L15: 4 to 6 hours a day | M15: 32 | N15: =VLOOKUP(IF(FLOOR(tblSalaries[[#This Row],[Salary in USD]]/salary_step,1)>19,19,FLOOR(tblSalaries[[#This Row],[Salary in USD]]/salary_step,1)),tblCountries4[#All],2,0) -> 19 | 237500 - higher | O15: =IF(VALUE(max_scatterplot)=0,tblSalaries[[#This Row],[Salary in USD]],IF(AND(tblSalaries[[#This Row],[Salary in USD]]>=VALUE(min_scatterplot),tblSalaries[[#This Row],[Salary in USD]]<=VALUE(max_scatterplot)),tblSalaries[[#This Row],[Salary in USD]],selection_false)) -> x
B16: ID1489 | C16: 2012-05-30T20:26:10 | D16: 146633 | E16: 146633 | F16: GBP | G16: =tblSalaries[[#This Row],[clean Salary (in local currency)]]*VLOOKUP(tblSalaries[[#This Row],[Currency]],mapping!D:E,2,FALSE) -> 231119.7486 | H16: Senior Planning Engineer | I16: Engineer | J16: UK | K16: =VLOOKUP(tblSalaries[[#This Row],[Where do you work]],tblCountries[[Actual]:[Mapping]],2,FALSE) -> UK | L16: 2 to 3 hours per day | M16: 10 | N16: =VLOOKUP(IF(FLOOR(tblSalaries[[#This Row],[Salary in USD]]/salary_step,1)>19,19,FLOOR(tblSalaries[[#This Row],[Salary in USD]]/salary_step,1)),tblCountries4[#All],2,0) -> 18 | 225000 - 237500 | O16: =IF(VALUE(max_scatterplot)=0,tblSalaries[[#This Row],[Salary in USD]],IF(AND(tblSalaries[[#This Row],[Salary in USD]]>=VALUE(min_scatterplot),tblSalaries[[#This Row],[Salary in USD]]<=VALUE(max_scatterplot)),tblSalaries[[#This Row],[Salary in USD]],selection_false)) -> x
B17: ID1394 | C17: 2012-05-29T22:04:09 | D17: 180000 | E17: 180000 | F17: EUR | G17: =tblSalaries[[#This Row],[clean Salary (in local currency)]]*VLOOKUP(tblSalaries[[#This Row],[Currency]],mapping!D:E,2,FALSE) -> 228671.899 | H17: MIS Controller | I17: Controller | J17: Europe | K17: =VLOOKUP(tblSalaries[[#This Row],[Where do you work]],tblCountries[[Actual]:[Mapping]],2,FALSE) -> Europe | L17: 4 to 6 hours a day | M17: 15 | N17: =VLOOKUP(IF(FLOOR(tblSalaries[[#This Row],[Salary in USD]]/salary_step,1)>19,19,FLOOR(tblSalaries[[#This Row],[Salary in USD]]/salary_step,1)),tblCountries4[#All],2,0) -> 18 | 225000 - 237500 | O17: =IF(VALUE(max_scatterplot)=0,tblSalaries[[#This Row],[Salary in USD]],IF(AND(tblSalaries[[#This Row],[Salary in USD]]>=VALUE(min_scatterplot),tblSalaries[[#This Row],[Salary in USD]]<=VALUE(max_scatterplot)),tblSalaries[[#This Row],[Salary in USD]],selection_false)) -> x
B18: ID1656 | C18: 2012-06-04T10:23:27 | D18: 225000 | E18: 225000 | F18: USD | G18: =tblSalaries[[#This Row],[clean Salary (in local currency)]]*VLOOKUP(tblSalaries[[#This Row],[Currency]],mapping!D:E,2,FALSE) -> 225000 | H18: SVP of Acquisitions | I18: CXO or Top Mgmt. | J18: USA | K18: =VLOOKUP(tblSalaries[[#This Row],[Where do you work]],tblCountries[[Actual]:[Mapping]],2,FALSE) -> USA | L18: 4 to 6 hours a day | M18: 15 | N18: =VLOOKUP(IF(FLOOR(tblSalaries[[#This Row],[Salary in USD]]/salary_step,1)>19,19,FLOOR(tblSalaries[[#This Row],[Salary in USD]]/salary_step,1)),tblCountries4[#All],2,0) -> 18 | 225000 - 237500 | O18: =IF(VALUE(max_scatterplot)=0,tblSalaries[[#This Row],[Salary in USD]],IF(AND(tblSalaries[[#This Row],[Salary in USD]]>=VALUE(min_scatterplot),tblSalaries[[#This Row],[Salary in USD]]<=VALUE(max_scatterplot)),tblSalaries[[#This Row],[Salary in USD]],selection_false)) -> x
B19: ID0374 | C19: 2012-05-26T01:52:01 | D19: 2207,00 | E19: 220700 | F19: USD | G19: =tblSalaries[[#This Row],[clean Salary (in local currency)]]*VLOOKUP(tblSalaries[[#This Row],[Currency]],mapping!D:E,2,FALSE) -> 220700 | H19: Consultant | I19: Consultant | J19: Brazil | K19: =VLOOKUP(tblSalaries[[#This Row],[Where do you work]],tblCountries[[Actual]:[Mapping]],2,FALSE) -> Brazil | L19: All the 8 hours baby, all the 8! | M19: Unknown | N19: =VLOOKUP(IF(FLOOR(tblSalaries[[#This Row],[Salary in USD]]/salary_step,1)>19,19,FLOOR(tblSalaries[[#This Row],[Salary in USD]]/salary_step,1)),tblCountries4[#All],2,0) -> 17 | 212500 - 225000 | O19: =IF(VALUE(max_scatterplot)=0,tblSalaries[[#This Row],[Salary in USD]],IF(AND(tblSalaries[[#This Row],[Salary in USD]]>=VALUE(min_scatterplot),tblSalaries[[#This Row],[Salary in USD]]<=VALUE(max_scatterplot)),tblSalaries[[#This Row],[Salary in USD]],selection_false)) -> x
B20: ID0532 | C20: 2012-05-26T05:07:30 | D20: 140000 | E20: 140000 | F20: GBP | G20: =tblSalaries[[#This Row],[clean Salary (in local currency)]]*VLOOKUP(tblSalaries[[#This Row],[Currency]],mapping!D:E,2,FALSE) -> 220664.9581 | H20: vba specialist | I20: Specialist | J20: UK | K20: =VLOOKUP(tblSalaries[[#This Row],[Where do you work]],tblCountries[[Actual]:[Mapping]],2,FALSE) -> UK | L20: All the 8 hours baby, all the 8! | M20: Unknown | N20: =VLOOKUP(IF(FLOOR(tblSalaries[[#This Row],[Salary in USD]]/salary_step,1)>19,19,FLOOR(tblSalaries[[#This Row],[Salary in USD]]/salary_step,1)),tblCountries4[#All],2,0) -> 17 | 212500 - 225000 | O20: =IF(VALUE(max_scatterplot)=0,tblSalaries[[#This Row],[Salary in USD]],IF(AND(tblSalaries[[#This Row],[Salary in USD]]>=VALUE(min_scatterplot),tblSalaries[[#This Row],[Salary in USD]]<=VALUE(max_scatterplot)),tblSalaries[[#This Row],[Salary in USD]],selection_false)) -> x
B21: ID1825 | C21: 2012-06-13T03:23:05 | D21: $214,000 USD | E21: 214000 | F21: USD | G21: =tblSalaries[[#This Row],[clean Salary (in local currency)]]*VLOOKUP(tblSalaries[[#This Row],[Currency]],mapping!D:E,2,FALSE) -> 214000 | H21: Assistant Corporate Controller | I21: Controller | J21: USA | K21: =VLOOKUP(tblSalaries[[#This Row],[Where do you work]],tblCountries[[Actual]:[Mapping]],2,FALSE) -> USA | L21: All the 8 hours baby, all the 8! | M21: 20 | N21: =VLOOKUP(IF(FLOOR(tblSalaries[[#This Row],[Salary in USD]]/salary_step,1)>19,19,FLOOR(tblSalaries[[#This Row],[Salary in USD]]/salary_step,1)),tblCountries4[#All],2,0) -> 17 | 212500 - 225000 | O21: =IF(VALUE(max_scatterplot)=0,tblSalaries[[#This Row],[Salary in USD]],IF(AND(tblSalaries[[#This Row],[Salary in USD]]>=VALUE(min_scatterplot),tblSalaries[[#This Row],[Salary in USD]]<=VALUE(max_scatterplot)),tblSalaries[[#This Row],[Salary in USD]],selection_false)) -> x
B22: ID0976 | C22: 2012-05-28T07:28:07 | D22: AUD$200,000 | E22: 200000 | F22: AUD | G22: =tblSalaries[[#This Row],[clean Salary (in local currency)]]*VLOOKUP(tblSalaries[[#This Row],[Currency]],mapping!D:E,2,FALSE) -> 203981.9313 | H22: Corporate Finance Manager | I22: Manager | J22: Australia | K22: =VLOOKUP(tblSalaries[[#This Row],[Where do you work]],tblCountries[[Actual]:[Mapping]],2,FALSE) -> Australia | L22: 4 to 6 hours a day | M22: 15 | N22: =VLOOKUP(IF(FLOOR(tblSalaries[[#This Row],[Salary in USD]]/salary_step,1)>19,19,FLOOR(tblSalaries[[#This Row],[Salary in USD]]/salary_step,1)),tblCountries4[#All],2,0) -> 16 | 200000 - 212500 | O22: =IF(VALUE(max_scatterplot)=0,tblSalaries[[#This Row],[Salary in USD]],IF(AND(tblSalaries[[#This Row],[Salary in USD]]>=VALUE(min_scatterplot),tblSalaries[[#This Row],[Salary in USD]]<=VALUE(max_scatterplot)),tblSalaries[[#This Row],[Salary in USD]],selection_false)) -> x
B23: ID0527 | C23: 2012-05-26T04:48:54 | D23: 200000 | E23: 200000 | F23: USD | G23: =tblSalaries[[#This Row],[clean Salary (in local currency)]]*VLOOKUP(tblSalaries[[#This Row],[Currency]],mapping!D:E,2,FALSE) -> 200000 | H23: COO | I23: CXO or Top Mgmt. | J23: USA | K23: =VLOOKUP(tblSalaries[[#This Row],[Where do you work]],tblCountries[[Actual]:[Mapping]],2,FALSE) -> USA | L23: 2 to 3 hours per day | M23: Unknown | N23: =VLOOKUP(IF(FLOOR(tblSalaries[[#This Row],[Salary in USD]]/salary_step,1)>19,19,FLOOR(tblSalaries[[#This Row],[Salary in USD]]/salary_step,1)),tblCountries4[#All],2,0) -> 16 | 200000 - 212500 | O23: =IF(VALUE(max_scatterplot)=0,tblSalaries[[#This Row],[Salary in USD]],IF(AND(tblSalaries[[#This Row],[Salary in USD]]>=VALUE(min_scatterplot),tblSalaries[[#This Row],[Salary in USD]]<=VALUE(max_scatterplot)),tblSalaries[[#This Row],[Salary in USD]],selection_false)) -> 200000
B24: ID0375 | C24: 2012-05-26T01:52:04 | D24: 194000 | E24: 194000 | F24: USD | G24: =tblSalaries[[#This Row],[clean Salary (in local currency)]]*VLOOKUP(tblSalaries[[#This Row],[Currency]],mapping!D:E,2,FALSE) -> 194000 | H24: director | I24: CXO or Top Mgmt. | J24: USA | K24: =VLOOKUP(tblSalaries[[#This Row],[Where do you work]],tblCountries[[Actual]:[Mapping]],2,FALSE) -> USA | L24: 2 to 3 hours per day | M24: Unknown | N24: =VLOOKUP(IF(FLOOR(tblSalaries[[#This Row],[Salary in USD]]/salary_step,1)>19,19,FLOOR(tblSalaries[[#This Row],[Salary in USD]]/salary_step,1)),tblCountries4[#All],2,0) -> 15 | 187500 - 200000 | O24: =IF(VALUE(max_scatterplot)=0,tblSalaries[[#This Row],[Salary in USD]],IF(AND(tblSalaries[[#This Row],[Salary in USD]]>=VALUE(min_scatterplot),tblSalaries[[#This Row],[Salary in USD]]<=VALUE(max_scatterplot)),tblSalaries[[#This Row],[Salary in USD]],selection_false)) -> 194000
B25: ID1286 | C25: 2012-05-29T11:51:35 | D25: 192000 | E25: 192000 | F25: USD | G25: =tblSalaries[[#This Row],[clean Salary (in local currency)]]*VLOOKUP(tblSalaries[[#This Row],[Currency]],mapping!D:E,2,FALSE) -> 192000 | H25: Publisher | I25: CXO or Top Mgmt. | J25: USA | K25: =VLOOKUP(tblSalaries[[#This Row],[Where do you work]],tblCountries[[Actual]:[Mapping]],2,FALSE) -> USA | L25: All the 8 hours baby, all the 8! | M25: 27 | N25: =VLOOKUP(IF(FLOOR(tblSalaries[[#This Row],[Salary in USD]]/salary_step,1)>19,19,FLOOR(tblSalaries[[#This Row],[Salary in USD]]/salary_step,1)),tblCountries4[#All],2,0) -> 15 | 187500 - 200000 | O25: =IF(VALUE(max_scatterplot)=0,tblSalaries[[#This Row],[Salary in USD]],IF(AND(tblSalaries[[#This Row],[Salary in USD]]>=VALUE(min_scatterplot),tblSalaries[[#This Row],[Salary in USD]]<=VALUE(max_scatterplot)),tblSalaries[[#This Row],[Salary in USD]],selection_false)) -> 192000
B26: ID0563 | C26: 2012-05-26T06:10:08 | D26: 188000 | E26: 188000 | F26: USD | G26: =tblSalaries[[#This Row],[clean Salary (in local currency)]]*VLOOKUP(tblSalaries[[#This Row],[Currency]],mapping!D:E,2,FALSE) -> 188000 | H26: Director, Supply Chain Operations | I26: CXO or Top Mgmt. | J26: USA | K26: =VLOOKUP(tblSalaries[[#This Row],[Where do you work]],tblCountries[[Actual]:[Mapping]],2,FALSE) -> USA | L26: 1 or 2 hours a day | M26: 20 | N26: =VLOOKUP(IF(FLOOR(tblSalaries[[#This Row],[Salary in USD]]/salary_step,1)>19,19,FLOOR(tblSalaries[[#This Row],[Salary in USD]]/salary_step,1)),tblCountries4[#All],2,0) -> 15 | 187500 - 200000 | O26: =IF(VALUE(max_scatterplot)=0,tblSalaries[[#This Row],[Salary in USD]],IF(AND(tblSalaries[[#This Row],[Salary in USD]]>=VALUE(min_scatterplot),tblSalaries[[#This Row],[Salary in USD]]<=VALUE(max_scatterplot)),tblSalaries[[#This Row],[Salary in USD]],selection_false)) -> 188000
B27: ID0655 | C27: 2012-05-26T12:23:14 | D27: 10500000 | E27: 10500000 | F27: INR | G27: =tblSalaries[[#This Row],[clean Salary (in local currency)]]*VLOOKUP(tblSalaries[[#This Row],[Currency]],mapping!D:E,2,FALSE) -> 186983.1252 | H27: MANAGER | I27: Manager | J27: India | K27: =VLOOKUP(tblSalaries[[#This Row],[Where do you work]],tblCountries[[Actual]:[Mapping]],2,FALSE) -> India | L27: 2 to 3 hours per day | M27: 10 | N27: =VLOOKUP(IF(FLOOR(tblSalaries[[#This Row],[Salary in USD]]/salary_step,1)>19,19,FLOOR(tblSalaries[[#This Row],[Salary in USD]]/salary_step,1)),tblCountries4[#All],2,0) -> 14 | 175000 - 187500 | O27: =IF(VALUE(max_scatterplot)=0,tblSalaries[[#This Row],[Salary in USD]],IF(AND(tblSalaries[[#This Row],[Salary in USD]]>=VALUE(min_scatterplot),tblSalaries[[#This Row],[Salary in USD]]<=VALUE(max_scatterplot)),tblSalaries[[#This Row],[Salary in USD]],selection_false)) -> 186983.1252
B28: ID0007 | C28: 2012-05-25T03:33:51 | D28: 145000 | E28: 145000 | F28: EUR | G28: =tblSalaries[[#This Row],[clean Salary (in local currency)]]*VLOOKUP(tblSalaries[[#This Row],[Currency]],mapping!D:E,2,FALSE) -> 184207.9187 | H28: senior project manager | I28: Manager | J28: Germany | K28: =VLOOKUP(tblSalaries[[#This Row],[Where do you work]],tblCountries[[Actual]:[Mapping]],2,FALSE) -> Germany | L28: 1 or 2 hours a day | M28: Unknown | N28: =VLOOKUP(IF(FLOOR(tblSalaries[[#This Row],[Salary in USD]]/salary_step,1)>19,19,FLOOR(tblSalaries[[#This Row],[Salary in USD]]/salary_step,1)),tblCountries4[#All],2,0) -> 14 | 175000 - 187500 | O28: =IF(VALUE(max_scatterplot)=0,tblSalaries[[#This Row],[Salary in USD]],IF(AND(tblSalaries[[#This Row],[Salary in USD]]>=VALUE(min_scatterplot),tblSalaries[[#This Row],[Salary in USD]]<=VALUE(max_scatterplot)),tblSalaries[[#This Row],[Salary in USD]],selection_false)) -> 184207.9187
B29: ID1596 | C29: 2012-06-01T18:58:42 | D29: 177600 | E29: 177600 | F29: USD | G29: =tblSalaries[[#This Row],[clean Salary (in local currency)]]*VLOOKUP(tblSalaries[[#This Row],[Currency]],mapping!D:E,2,FALSE) -> 177600 | H29: Accountant | I29: Accountant | J29: Lesotho | K29: =VLOOKUP(tblSalaries[[#This Row],[Where do you work]],tblCountries[[Actual]:[Mapping]],2,FALSE) -> Lesotho | L29: 4 to 6 hours a day | M29: 6 | N29: =VLOOKUP(IF(FLOOR(tblSalaries[[#This Row],[Salary in USD]]/salary_step,1)>19,19,FLOOR(tblSalaries[[#This Row],[Salary in USD]]/salary_step,1)),tblCountries4[#All],2,0) -> 14 | 175000 - 187500 | O29: =IF(VALUE(max_scatterplot)=0,tblSalaries[[#This Row],[Salary in USD]],IF(AND(tblSalaries[[#This Row],[Salary in USD]]>=VALUE(min_scatterplot),tblSalaries[[#This Row],[Salary in USD]]<=VALUE(max_scatterplot)),tblSalaries[[#This Row],[Salary in USD]],selection_false)) -> 177600
B30: ID1320 | C30: 2012-05-29T15:36:42 | D30: 139000 | E30: 139000 | F30: EUR | G30: =tblSalaries[[#This Row],[clean Salary (in local currency)]]*VLOOKUP(tblSalaries[[#This Row],[Currency]],mapping!D:E,2,FALSE) -> 176585.522 | H30: NAF Support Manager | I30: Manager | J30: Germany | K30: =VLOOKUP(tblSalaries[[#This Row],[Where do you work]],tblCountries[[Actual]:[Mapping]],2,FALSE) -> Germany | L30: 1 or 2 hours a day | M30: 25 | N30: =VLOOKUP(IF(FLOOR(tblSalaries[[#This Row],[Salary in USD]]/salary_step,1)>19,19,FLOOR(tblSalaries[[#This Row],[Salary in USD]]/salary_step,1)),tblCountries4[#All],2,0) -> 14 | 175000 - 187500 | O30: =IF(VALUE(max_scatterplot)=0,tblSalaries[[#This Row],[Salary in USD]],IF(AND(tblSalaries[[#This Row],[Salary in USD]]>=VALUE(min_scatterplot),tblSalaries[[#This Row],[Salary in USD]]<=VALUE(max_scatterplot)),tblSalaries[[#This Row],[Salary in USD]],selection_false)) -> 176585.522
B31: ID0633 | C31: 2012-05-26T11:30:39 | D31: A$170000 | E31: 170000 | F31: AUD | G31: =tblSalaries[[#This Row],[clean Salary (in local currency)]]*VLOOKUP(tblSalaries[[#This Row],[Currency]],mapping!D:E,2,FALSE) -> 173384.6416 | H31: senior business analyst | I31: Analyst | J31: Australia | K31: =VLOOKUP(tblSalaries[[#This Row],[Where do you work]],tblCountries[[Actual]:[Mapping]],2,FALSE) -> Australia | L31: All the 8 hours baby, all the 8! | M31: 10 | N31: =VLOOKUP(IF(FLOOR(tblSalaries[[#This Row],[Salary in USD]]/salary_step,1)>19,19,FLOOR(tblSalaries[[#This Row],[Salary in USD]]/salary_step,1)),tblCountries4[#All],2,0) -> 13 | 162500 - 175000 | O31: =IF(VALUE(max_scatterplot)=0,tblSalaries[[#This Row],[Salary in USD]],IF(AND(tblSalaries[[#This Row],[Salary in USD]]>=VALUE(min_scatterplot),tblSalaries[[#This Row],[Salary in USD]]<=VALUE(max_scatterplot)),tblSalaries[[#This Row],[Salary in USD]],selection_false)) -> 173384.6416
B32: ID1009 | C32: 2012-05-28T10:42:08 | D32: 170000 | E32: 170000 | F32: AUD | G32: =tblSalaries[[#This Row],[clean Salary (in local currency)]]*VLOOKUP(tblSalaries[[#This Row],[Currency]],mapping!D:E,2,FALSE) -> 173384.6416 | H32: Business Consultant | I32: Consultant | J32: Australia | K32: =VLOOKUP(tblSalaries[[#This Row],[Where do you work]],tblCountries[[Actual]:[Mapping]],2,FALSE) -> Australia | L32: 2 to 3 hours per day | M32: 8 | N32: =VLOOKUP(IF(FLOOR(tblSalaries[[#This Row],[Salary in USD]]/salary_step,1)>19,19,FLOOR(tblSalaries[[#This Row],[Salary in USD]]/salary_step,1)),tblCountries4[#All],2,0) -> 13 | 162500 - 175000 | O32: =IF(VALUE(max_scatterplot)=0,tblSalaries[[#This Row],[Salary in USD]],IF(AND(tblSalaries[[#This Row],[Salary in USD]]>=VALUE(min_scatterplot),tblSalaries[[#This Row],[Salary in USD]]<=VALUE(max_scatterplot)),tblSalaries[[#This Row],[Salary in USD]],selection_false)) -> 173384.6416
B33: ID0358 | C33: 2012-05-26T01:42:53 | D33: 170000 usd | E33: 170000 | F33: USD | G33: =tblSalaries[[#This Row],[clean Salary (in local currency)]]*VLOOKUP(tblSalaries[[#This Row],[Currency]],mapping!D:E,2,FALSE) -> 170000 | H33: RS | I33: Analyst | J33: UK | K33: =VLOOKUP(tblSalaries[[#This Row],[Where do you work]],tblCountries[[Actual]:[Mapping]],2,FALSE) -> UK | L33: Excel ?!? What Excel? | M33: Unknown | N33: =VLOOKUP(IF(FLOOR(tblSalaries[[#This Row],[Salary in USD]]/salary_step,1)>19,19,FLOOR(tblSalaries[[#This Row],[Salary in USD]]/salary_step,1)),tblCountries4[#All],2,0) -> 13 | 162500 - 175000 | O33: =IF(VALUE(max_scatterplot)=0,tblSalaries[[#This Row],[Salary in USD]],IF(AND(tblSalaries[[#This Row],[Salary in USD]]>=VALUE(min_scatterplot),tblSalaries[[#This Row],[Salary in USD]]<=VALUE(max_scatterplot)),tblSalaries[[#This Row],[Salary in USD]],selection_false)) -> 170000
B34: ID1523 | C34: 2012-05-31T05:31:54 | D34: 170000 | E34: 170000 | F34: USD | G34: =tblSalaries[[#This Row],[clean Salary (in local currency)]]*VLOOKUP(tblSalaries[[#This Row],[Currency]],mapping!D:E,2,FALSE) -> 170000 | H34: CFO | I34: CXO or Top Mgmt. | J34: USA | K34: =VLOOKUP(tblSalaries[[#This Row],[Where do you work]],tblCountries[[Actual]:[Mapping]],2,FALSE) -> USA | L34: 2 to 3 hours per day | M34: 18 | N34: =VLOOKUP(IF(FLOOR(tblSalaries[[#This Row],[Salary in USD]]/salary_step,1)>19,19,FLOOR(tblSalaries[[#This Row],[Salary in USD]]/salary_step,1)),tblCountries4[#All],2,0) -> 13 | 162500 - 175000 | O34: =IF(VALUE(max_scatterplot)=0,tblSalaries[[#This Row],[Salary in USD]],IF(AND(tblSalaries[[#This Row],[Salary in USD]]>=VALUE(min_scatterplot),tblSalaries[[#This Row],[Salary in USD]]<=VALUE(max_scatterplot)),tblSalaries[[#This Row],[Salary in USD]],selection_false)) -> 170000
B35: ID0482 | C35: 2012-05-26T03:23:51 | D35: US$169,000 | E35: 169000 | F35: USD | G35: =tblSalaries[[#This Row],[clean Salary (in local currency)]]*VLOOKUP(tblSalaries[[#This Row],[Currency]],mapping!D:E,2,FALSE) -> 169000 | H35: Category Director (Marketing) | I35: CXO or Top Mgmt. | J35: USA | K35: =VLOOKUP(tblSalaries[[#This Row],[Where do you work]],tblCountries[[Actual]:[Mapping]],2,FALSE) -> USA | L35: 2 to 3 hours per day | M35: Unknown | N35: =VLOOKUP(IF(FLOOR(tblSalaries[[#This Row],[Salary in USD]]/salary_step,1)>19,19,FLOOR(tblSalaries[[#This Row],[Salary in USD]]/salary_step,1)),tblCountries4[#All],2,0) -> 13 | 162500 - 175000 | O35: =IF(VALUE(max_scatterplot)=0,tblSalaries[[#This Row],[Salary in USD]],IF(AND(tblSalaries[[#This Row],[Salary in USD]]>=VALUE(min_scatterplot),tblSalaries[[#This Row],[Salary in USD]]<=VALUE(max_scatterplot)),tblSalaries[[#This Row],[Salary in USD]],selection_false)) -> 169000
B36: ID1492 | C36: 2012-05-30T20:42:47 | D36: AUD 165000 | E36: 165000 | F36: AUD | G36: =tblSalaries[[#This Row],[clean Salary (in local currency)]]*VLOOKUP(tblSalaries[[#This Row],[Currency]],mapping!D:E,2,FALSE) -> 168285.0933 | H36: Engineer | I36: Engineer | J36: Australia | K36: =VLOOKUP(tblSalaries[[#This Row],[Where do you work]],tblCountries[[Actual]:[Mapping]],2,FALSE) -> Australia | L36: 2 to 3 hours per day | M36: 17 | N36: =VLOOKUP(IF(FLOOR(tblSalaries[[#This Row],[Salary in USD]]/salary_step,1)>19,19,FLOOR(tblSalaries[[#This Row],[Salary in USD]]/salary_step,1)),tblCountries4[#All],2,0) -> 13 | 162500 - 175000 | O36: =IF(VALUE(max_scatterplot)=0,tblSalaries[[#This Row],[Salary in USD]],IF(AND(tblSalaries[[#This Row],[Salary in USD]]>=VALUE(min_scatterplot),tblSalaries[[#This Row],[Salary in USD]]<=VALUE(max_scatterplot)),tblSalaries[[#This Row],[Salary in USD]],selection_false)) -> 168285.0933
B37: ID0376 | C37: 2012-05-26T01:54:28 | D37: 9000000 | E37: 9000000 | F37: INR | G37: =tblSalaries[[#This Row],[clean Salary (in local currency)]]*VLOOKUP(tblSalaries[[#This Row],[Currency]],mapping!D:E,2,FALSE) -> 160271.2502 | H37: Financial Analyst | I37: Analyst | J37: India | K37: =VLOOKUP(tblSalaries[[#This Row],[Where do you work]],tblCountries[[Actual]:[Mapping]],2,FALSE) -> India | L37: 4 to 6 hours a day | M37: Unknown | N37: =VLOOKUP(IF(FLOOR(tblSalaries[[#This Row],[Salary in USD]]/salary_step,1)>19,19,FLOOR(tblSalaries[[#This Row],[Salary in USD]]/salary_step,1)),tblCountries4[#All],2,0) -> 12 | 150000 - 162500 | O37: =IF(VALUE(max_scatterplot)=0,tblSalaries[[#This Row],[Salary in USD]],IF(AND(tblSalaries[[#This Row],[Salary in USD]]>=VALUE(min_scatterplot),tblSalaries[[#This Row],[Salary in USD]]<=VALUE(max_scatterplot)),tblSalaries[[#This Row],[Salary in USD]],selection_false)) -> 160271.2502
B38: ID0608 | C38: 2012-05-26T09:51:47 | D38: 160000 | E38: 160000 | F38: USD | G38: =tblSalaries[[#This Row],[clean Salary (in local currency)]]*VLOOKUP(tblSalaries[[#This Row],[Currency]],mapping!D:E,2,FALSE) -> 160000 | H38: Director, Analytics | I38: Analyst | J38: USA | K38: =VLOOKUP(tblSalaries[[#This Row],[Where do you work]],tblCountries[[Actual]:[Mapping]],2,FALSE) -> USA | L38: 4 to 6 hours a day | M38: 5 | N38: =VLOOKUP(IF(FLOOR(tblSalaries[[#This Row],[Salary in USD]]/salary_step,1)>19,19,FLOOR(tblSalaries[[#This Row],[Salary in USD]]/salary_step,1)),tblCountries4[#All],2,0) -> 12 | 150000 - 162500 | O38: =IF(VALUE(max_scatterplot)=0,tblSalaries[[#This Row],[Salary in USD]],IF(AND(tblSalaries[[#This Row],[Salary in USD]]>=VALUE(min_scatterplot),tblSalaries[[#This Row],[Salary in USD]]<=VALUE(max_scatterplot)),tblSalaries[[#This Row],[Salary in USD]],selection_false)) -> 160000
B39: ID1810 | C39: 2012-06-12T15:09:22 | D39: 156000 | E39: 156000 | F39: AUD | G39: =tblSalaries[[#This Row],[clean Salary (in local currency)]]*VLOOKUP(tblSalaries[[#This Row],[Currency]],mapping!D:E,2,FALSE) -> 159105.9064 | H39: Senior Associate Engineer | I39: Engineer | J39: Australia | K39: =VLOOKUP(tblSalaries[[#This Row],[Where do you work]],tblCountries[[Actual]:[Mapping]],2,FALSE) -> Australia | L39: 2 to 3 hours per day | M39: 12 | N39: =VLOOKUP(IF(FLOOR(tblSalaries[[#This Row],[Salary in USD]]/salary_step,1)>19,19,FLOOR(tblSalaries[[#This Row],[Salary in USD]]/salary_step,1)),tblCountries4[#All],2,0) -> 12 | 150000 - 162500 | O39: =IF(VALUE(max_scatterplot)=0,tblSalaries[[#This Row],[Salary in USD]],IF(AND(tblSalaries[[#This Row],[Salary in USD]]>=VALUE(min_scatterplot),tblSalaries[[#This Row],[Salary in USD]]<=VALUE(max_scatterplot)),tblSalaries[[#This Row],[Salary in USD]],selection_false)) -> 159105.9064
B40: ID0569 | C40: 2012-05-26T06:47:00 | D40: AUD $155,000 | E40: 155000 | F40: AUD | G40: =tblSalaries[[#This Row],[clean Salary (in local currency)]]*VLOOKUP(tblSalaries[[#This Row],[Currency]],mapping!D:E,2,FALSE) -> 158085.9967 | H40: Finance Manager Business Services | I40: Manager | J40: Australia | K40: =VLOOKUP(tblSalaries[[#This Row],[Where do you work]],tblCountries[[Actual]:[Mapping]],2,FALSE) -> Australia | L40: 4 to 6 hours a day | M40: 20 | N40: =VLOOKUP(IF(FLOOR(tblSalaries[[#This Row],[Salary in USD]]/salary_step,1)>19,19,FLOOR(tblSalaries[[#This Row],[Salary in USD]]/salary_step,1)),tblCountries4[#All],2,0) -> 12 | 150000 - 162500 | O40: =IF(VALUE(max_scatterplot)=0,tblSalaries[[#This Row],[Salary in USD]],IF(AND(tblSalaries[[#This Row],[Salary in USD]]>=VALUE(min_scatterplot),tblSalaries[[#This Row],[Salary in USD]]<=VALUE(max_scatterplot)),tblSalaries[[#This Row],[Salary in USD]],selection_false)) -> 158085.9967
B41: ID0078 | C41: 2012-05-25T23:18:45 | D41: 100000 | E41: 100000 | F41: GBP | G41: =tblSalaries[[#This Row],[clean Salary (in local currency)]]*VLOOKUP(tblSalaries[[#This Row],[Currency]],mapping!D:E,2,FALSE) -> 157617.8272 | H41: Analyst | I41: Analyst | J41: UK | K41: =VLOOKUP(tblSalaries[[#This Row],[Where do you work]],tblCountries[[Actual]:[Mapping]],2,FALSE) -> UK | L41: 2 to 3 hours per day | M41: Unknown | N41: =VLOOKUP(IF(FLOOR(tblSalaries[[#This Row],[Salary in USD]]/salary_step,1)>19,19,FLOOR(tblSalaries[[#This Row],[Salary in USD]]/salary_step,1)),tblCountries4[#All],2,0) -> 12 | 150000 - 162500 | O41: =IF(VALUE(max_scatterplot)=0,tblSalaries[[#This Row],[Salary in USD]],IF(AND(tblSalaries[[#This Row],[Salary in USD]]>=VALUE(min_scatterplot),tblSalaries[[#This Row],[Salary in USD]]<=VALUE(max_scatterplot)),tblSalaries[[#This Row],[Salary in USD]],selection_false)) -> 157617.8272
B42: ID0844 | C42: 2012-05-27T00:19:04 | D42: 100000 | E42: 100000 | F42: GBP | G42: =tblSalaries[[#This Row],[clean Salary (in local currency)]]*VLOOKUP(tblSalaries[[#This Row],[Currency]],mapping!D:E,2,FALSE) -> 157617.8272 | H42: Financial Controller | I42: Controller | J42: UK | K42: =VLOOKUP(tblSalaries[[#This Row],[Where do you work]],tblCountries[[Actual]:[Mapping]],2,FALSE) -> UK | L42: 2 to 3 hours per day | M42: 20 | N42: =VLOOKUP(IF(FLOOR(tblSalaries[[#This Row],[Salary in USD]]/salary_step,1)>19,19,FLOOR(tblSalaries[[#This Row],[Salary in USD]]/salary_step,1)),tblCountries4[#All],2,0) -> 12 | 150000 - 162500 | O42: =IF(VALUE(max_scatterplot)=0,tblSalaries[[#This Row],[Salary in USD]],IF(AND(tblSalaries[[#This Row],[Salary in USD]]>=VALUE(min_scatterplot),tblSalaries[[#This Row],[Salary in USD]]<=VALUE(max_scatterplot)),tblSalaries[[#This Row],[Salary in USD]],selection_false)) -> 157617.8272
B43: ID0353 | C43: 2012-05-26T01:41:53 | D43: 160000 | E43: 160000 | F43: CAD | G43: =tblSalaries[[#This Row],[clean Salary (in local currency)]]*VLOOKUP(tblSalaries[[#This Row],[Currency]],mapping!D:E,2,FALSE) -> 157337.8437 | H43: Consultant | I43: Consultant | J43: Canada | K43: =VLOOKUP(tblSalaries[[#This Row],[Where do you work]],tblCountries[[Actual]:[Mapping]],2,FALSE) -> Canada | L43: 2 to 3 hours per day | M43: Unknown | N43: =VLOOKUP(IF(FLOOR(tblSalaries[[#This Row],[Salary in USD]]/salary_step,1)>19,19,FLOOR(tblSalaries[[#This Row],[Salary in USD]]/salary_step,1)),tblCountries4[#All],2,0) -> 12 | 150000 - 162500 | O43: =IF(VALUE(max_scatterplot)=0,tblSalaries[[#This Row],[Salary in USD]],IF(AND(tblSalaries[[#This Row],[Salary in USD]]>=VALUE(min_scatterplot),tblSalaries[[#This Row],[Salary in USD]]<=VALUE(max_scatterplot)),tblSalaries[[#This Row],[Salary in USD]],selection_false)) -> 157337.8437
B44: ID1655 | C44: 2012-06-04T09:49:44 | D44: 155000 | E44: 155000 | F44: USD | G44: =tblSalaries[[#This Row],[clean Salary (in local currency)]]*VLOOKUP(tblSalaries[[#This Row],[Currency]],mapping!D:E,2,FALSE) -> 155000 | H44: Consulting Practice Manager | I44: Manager | J44: USA | K44: =VLOOKUP(tblSalaries[[#This Row],[Where do you work]],tblCountries[[Actual]:[Mapping]],2,FALSE) -> USA | L44: 1 or 2 hours a day | M44: 14 | N44: =VLOOKUP(IF(FLOOR(tblSalaries[[#This Row],[Salary in USD]]/salary_step,1)>19,19,FLOOR(tblSalaries[[#This Row],[Salary in USD]]/salary_step,1)),tblCountries4[#All],2,0) -> 12 | 150000 - 162500 | O44: =IF(VALUE(max_scatterplot)=0,tblSalaries[[#This Row],[Salary in USD]],IF(AND(tblSalaries[[#This Row],[Salary in USD]]>=VALUE(min_scatterplot),tblSalaries[[#This Row],[Salary in USD]]<=VALUE(max_scatterplot)),tblSalaries[[#This Row],[Salary in USD]],selection_false)) -> 155000
B45: ID1237 | C45: 2012-05-29T03:16:02 | D45: 150000 | E45: 150000 | F45: AUD | G45: =tblSalaries[[#This Row],[clean Salary (in local currency)]]*VLOOKUP(tblSalaries[[#This Row],[Currency]],mapping!D:E,2,FALSE) -> 152986.4485 | H45: Analyst | I45: Analyst | J45: Australia | K45: =VLOOKUP(tblSalaries[[#This Row],[Where do you work]],tblCountries[[Actual]:[Mapping]],2,FALSE) -> Australia | L45: 2 to 3 hours per day | M45: 10 | N45: =VLOOKUP(IF(FLOOR(tblSalaries[[#This Row],[Salary in USD]]/salary_step,1)>19,19,FLOOR(tblSalaries[[#This Row],[Salary in USD]]/salary_step,1)),tblCountries4[#All],2,0) -> 12 | 150000 - 162500 | O45: =IF(VALUE(max_scatterplot)=0,tblSalaries[[#This Row],[Salary in USD]],IF(AND(tblSalaries[[#This Row],[Salary in USD]]>=VALUE(min_scatterplot),tblSalaries[[#This Row],[Salary in USD]]<=VALUE(max_scatterplot)),tblSalaries[[#This Row],[Salary in USD]],selection_false)) -> 152986.4485
B46: ID1354 | C46: 2012-05-29T18:35:31 | D46: A$150000 | E46: 150000 | F46: AUD | G46: =tblSalaries[[#This Row],[clean Salary (in local currency)]]*VLOOKUP(tblSalaries[[#This Row],[Currency]],mapping!D:E,2,FALSE) -> 152986.4485 | H46: Bus Analyst | I46: Analyst | J46: Australia | K46: =VLOOKUP(tblSalaries[[#This Row],[Where do you work]],tblCountries[[Actual]:[Mapping]],2,FALSE) -> Australia | L46: 1 or 2 hours a day | M46: 5.5 | N46: =VLOOKUP(IF(FLOOR(tblSalaries[[#This Row],[Salary in USD]]/salary_step,1)>19,19,FLOOR(tblSalaries[[#This Row],[Salary in USD]]/salary_step,1)),tblCountries4[#All],2,0) -> 12 | 150000 - 162500 | O46: =IF(VALUE(max_scatterplot)=0,tblSalaries[[#This Row],[Salary in USD]],IF(AND(tblSalaries[[#This Row],[Salary in USD]]>=VALUE(min_scatterplot),tblSalaries[[#This Row],[Salary in USD]]<=VALUE(max_scatterplot)),tblSalaries[[#This Row],[Salary in USD]],selection_false)) -> 152986.4485
B47: ID0337 | C47: 2012-05-26T01:33:45 | D47: 150000 | E47: 150000 | F47: USD | G47: =tblSalaries[[#This Row],[clean Salary (in local currency)]]*VLOOKUP(tblSalaries[[#This Row],[Currency]],mapping!D:E,2,FALSE) -> 150000 | H47: project manager, project finance consultant | I47: Manager | J47: Israel | K47: =VLOOKUP(tblSalaries[[#This Row],[Where do you work]],tblCountries[[Actual]:[Mapping]],2,FALSE) -> Israel | L47: 4 to 6 hours a day | M47: Unknown | N47: =VLOOKUP(IF(FLOOR(tblSalaries[[#This Row],[Salary in USD]]/salary_step,1)>19,19,FLOOR(tblSalaries[[#This Row],[Salary in USD]]/salary_step,1)),tblCountries4[#All],2,0) -> 12 | 150000 - 162500 | O47: =IF(VALUE(max_scatterplot)=0,tblSalaries[[#This Row],[Salary in USD]],IF(AND(tblSalaries[[#This Row],[Salary in USD]]>=VALUE(min_scatterplot),tblSalaries[[#This Row],[Salary in USD]]<=VALUE(max_scatterplot)),tblSalaries[[#This Row],[Salary in USD]],selection_false)) -> 150000
B48: ID0963 | C48: 2012-05-28T05:12:38 | D48: 150000 | E48: 150000 | F48: USD | G48: =tblSalaries[[#This Row],[clean Salary (in local currency)]]*VLOOKUP(tblSalaries[[#This Row],[Currency]],mapping!D:E,2,FALSE) -> 150000 | H48: Software Tester | I48: Analyst | J48: Switzerland | K48: =VLOOKUP(tblSalaries[[#This Row],[Where do you work]],tblCountries[[Actual]:[Mapping]],2,FALSE) -> Switzerland | L48: 1 or 2 hours a day | M48: 20 | N48: =VLOOKUP(IF(FLOOR(tblSalaries[[#This Row],[Salary in USD]]/salary_step,1)>19,19,FLOOR(tblSalaries[[#This Row],[Salary in USD]]/salary_step,1)),tblCountries4[#All],2,0) -> 12 | 150000 - 162500 | O48: =IF(VALUE(max_scatterplot)=0,tblSalaries[[#This Row],[Salary in USD]],IF(AND(tblSalaries[[#This Row],[Salary in USD]]>=VALUE(min_scatterplot),tblSalaries[[#This Row],[Salary in USD]]<=VALUE(max_scatterplot)),tblSalaries[[#This Row],[Salary in USD]],selection_false)) -> 150000
B49: ID0037 | C49: 2012-05-25T05:07:31 | D49: 150000 | E49: 150000 | F49: USD | G49: =tblSalaries[[#This Row],[clean Salary (in local currency)]]*VLOOKUP(tblSalaries[[#This Row],[Currency]],mapping!D:E,2,FALSE) -> 150000 | H49: Portfolio Manager | I49: Manager | J49: USA | K49: =VLOOKUP(tblSalaries[[#This Row],[Where do you work]],tblCountries[[Actual]:[Mapping]],2,FALSE) -> USA | L49: 2 to 3 hours per day | M49: Unknown | N49: =VLOOKUP(IF(FLOOR(tblSalaries[[#This Row],[Salary in USD]]/salary_step,1)>19,19,FLOOR(tblSalaries[[#This Row],[Salary in USD]]/salary_step,1)),tblCountries4[#All],2,0) -> 12 | 150000 - 162500 | O49: =IF(VALUE(max_scatterplot)=0,tblSalaries[[#This Row],[Salary in USD]],IF(AND(tblSalaries[[#This Row],[Salary in USD]]>=VALUE(min_scatterplot),tblSalaries[[#This Row],[Salary in USD]]<=VALUE(max_scatterplot)),tblSalaries[[#This Row],[Salary in USD]],selection_false)) -> 150000
B50: ID0083 | C50: 2012-05-26T00:00:52 | D50: 150000 | E50: 150000 | F50: USD | G50: =tblSalaries[[#This Row],[clean Salary (in local currency)]]*VLOOKUP(tblSalaries[[#This Row],[Currency]],mapping!D:E,2,FALSE) -> 150000 | H50: Director | I50: CXO or Top Mgmt. | J50: USA | K50: =VLOOKUP(tblSalaries[[#This Row],[Where do you work]],tblCountries[[Actual]:[Mapping]],2,FALSE) -> USA | L50: All the 8 hours baby, all the 8! | M50: Unknown | N50: =VLOOKUP(IF(FLOOR(tblSalaries[[#This Row],[Salary in USD]]/salary_step,1)>19,19,FLOOR(tblSalaries[[#This Row],[Salary in USD]]/salary_step,1)),tblCountries4[#All],2,0) -> 12 | 150000 - 162500 | O50: =IF(VALUE(max_scatterplot)=0,tblSalaries[[#This Row],[Salary in USD]],IF(AND(tblSalaries[[#This Row],[Salary in USD]]>=VALUE(min_scatterplot),tblSalaries[[#This Row],[Salary in USD]]<=VALUE(max_scatterplot)),tblSalaries[[#This Row],[Salary in USD]],selection_false)) -> 150000
B51: ID0335 | C51: 2012-05-26T01:33:03 | D51: 150000 | E51: 150000 | F51: USD | G51: =tblSalaries[[#This Row],[clean Salary (in local currency)]]*VLOOKUP(tblSalaries[[#This Row],[Currency]],mapping!D:E,2,FALSE) -> 150000 | H51: financial planning | I51: Accountant | J51: USA | K51: =VLOOKUP(tblSalaries[[#This Row],[Where do you work]],tblCountries[[Actual]:[Mapping]],2,FALSE) -> USA | L51: All the 8 hours baby, all the 8! | M51: Unknown | N51: =VLOOKUP(IF(FLOOR(tblSalaries[[#This Row],[Salary in USD]]/salary_step,1)>19,19,FLOOR(tblSalaries[[#This Row],[Salary in USD]]/salary_step,1)),tblCountries4[#All],2,0) -> 12 | 150000 - 162500 | O51: =IF(VALUE(max_scatterplot)=0,tblSalaries[[#This Row],[Salary in USD]],IF(AND(tblSalaries[[#This Row],[Salary in USD]]>=VALUE(min_scatterplot),tblSalaries[[#This Row],[Salary in USD]]<=VALUE(max_scatterplot)),tblSalaries[[#This Row],[Salary in USD]],selection_false)) -> 150000
B52: ID0470 | C52: 2012-05-26T03:14:44 | D52: 150000 | E52: 150000 | F52: USD | G52: =tblSalaries[[#This Row],[clean Salary (in local currency)]]*VLOOKUP(tblSalaries[[#This Row],[Currency]],mapping!D:E,2,FALSE) -> 150000 | H52: CFO | I52: CXO or Top Mgmt. | J52: USA | K52: =VLOOKUP(tblSalaries[[#This Row],[Where do you work]],tblCountries[[Actual]:[Mapping]],2,FALSE) -> USA | L52: 2 to 3 hours per day | M52: Unknown | N52: =VLOOKUP(IF(FLOOR(tblSalaries[[#This Row],[Salary in USD]]/salary_step,1)>19,19,FLOOR(tblSalaries[[#This Row],[Salary in USD]]/salary_step,1)),tblCountries4[#All],2,0) -> 12 | 150000 - 162500 | O52: =IF(VALUE(max_scatterplot)=0,tblSalaries[[#This Row],[Salary in USD]],IF(AND(tblSalaries[[#This Row],[Salary in USD]]>=VALUE(min_scatterplot),tblSalaries[[#This Row],[Salary in USD]]<=VALUE(max_scatterplot)),tblSalaries[[#This Row],[Salary in USD]],selection_false)) -> 150000
B53: ID0516 | C53: 2012-05-26T04:26:10 | D53: $150000pa | E53: 150000 | F53: USD | G53: =tblSalaries[[#This Row],[clean Salary (in local currency)]]*VLOOKUP(tblSalaries[[#This Row],[Currency]],mapping!D:E,2,FALSE) -> 150000 | H53: Consultant | I53: Consultant | J53: USA | K53: =VLOOKUP(tblSalaries[[#This Row],[Where do you work]],tblCountries[[Actual]:[Mapping]],2,FALSE) -> USA | L53: All the 8 hours baby, all the 8! | M53: Unknown | N53: =VLOOKUP(IF(FLOOR(tblSalaries[[#This Row],[Salary in USD]]/salary_step,1)>19,19,FLOOR(tblSalaries[[#This Row],[Salary in USD]]/salary_step,1)),tblCountries4[#All],2,0) -> 12 | 150000 - 162500 | O53: =IF(VALUE(max_scatterplot)=0,tblSalaries[[#This Row],[Salary in USD]],IF(AND(tblSalaries[[#This Row],[Salary in USD]]>=VALUE(min_scatterplot),tblSalaries[[#This Row],[Salary in USD]]<=VALUE(max_scatterplot)),tblSalaries[[#This Row],[Salary in USD]],selection_false)) -> 150000
B54: ID0580 | C54: 2012-05-26T07:23:11 | D54: 150000 | E54: 150000 | F54: USD | G54: =tblSalaries[[#This Row],[clean Salary (in local currency)]]*VLOOKUP(tblSalaries[[#This Row],[Currency]],mapping!D:E,2,FALSE) -> 150000 | H54: CFO | I54: CXO or Top Mgmt. | J54: USA | K54: =VLOOKUP(tblSalaries[[#This Row],[Where do you work]],tblCountries[[Actual]:[Mapping]],2,FALSE) -> USA | L54: 4 to 6 hours a day | M54: 22 | N54: =VLOOKUP(IF(FLOOR(tblSalaries[[#This Row],[Salary in USD]]/salary_step,1)>19,19,FLOOR(tblSalaries[[#This Row],[Salary in USD]]/salary_step,1)),tblCountries4[#All],2,0) -> 12 | 150000 - 162500 | O54: =IF(VALUE(max_scatterplot)=0,tblSalaries[[#This Row],[Salary in USD]],IF(AND(tblSalaries[[#This Row],[Salary in USD]]>=VALUE(min_scatterplot),tblSalaries[[#This Row],[Salary in USD]]<=VALUE(max_scatterplot)),tblSalaries[[#This Row],[Salary in USD]],selection_false)) -> 150000
B55: ID0927 | C55: 2012-05-27T21:21:41 | D55: 150000 | E55: 150000 | F55: USD | G55: =tblSalaries[[#This Row],[clean Salary (in local currency)]]*VLOOKUP(tblSalaries[[#This Row],[Currency]],mapping!D:E,2,FALSE) -> 150000 | H55: Controller | I55: Controller | J55: USA | K55: =VLOOKUP(tblSalaries[[#This Row],[Where do you work]],tblCountries[[Actual]:[Mapping]],2,FALSE) -> USA | L55: 4 to 6 hours a day | M55: 25 | N55: =VLOOKUP(IF(FLOOR(tblSalaries[[#This Row],[Salary in USD]]/salary_step,1)>19,19,FLOOR(tblSalaries[[#This Row],[Salary in USD]]/salary_step,1)),tblCountries4[#All],2,0) -> 12 | 150000 - 162500 | O55: =IF(VALUE(max_scatterplot)=0,tblSalaries[[#This Row],[Salary in USD]],IF(AND(tblSalaries[[#This Row],[Salary in USD]]>=VALUE(min_scatterplot),tblSalaries[[#This Row],[Salary in USD]]<=VALUE(max_scatterplot)),tblSalaries[[#This Row],[Salary in USD]],selection_false)) -> 150000
B56: ID1393 | C56: 2012-05-29T22:02:31 | D56: 150000 | E56: 150000 | F56: USD | G56: =tblSalaries[[#This Row],[clean Salary (in local currency)]]*VLOOKUP(tblSalaries[[#This Row],[Currency]],mapping!D:E,2,FALSE) -> 150000 | H56: VP, Business Management | I56: Manager | J56: USA | K56: =VLOOKUP(tblSalaries[[#This Row],[Where do you work]],tblCountries[[Actual]:[Mapping]],2,FALSE) -> USA | L56: 2 to 3 hours per day | M56: 30 | N56: =VLOOKUP(IF(FLOOR(tblSalaries[[#This Row],[Salary in USD]]/salary_step,1)>19,19,FLOOR(tblSalaries[[#This Row],[Salary in USD]]/salary_step,1)),tblCountries4[#All],2,0) -> 12 | 150000 - 162500 | O56: =IF(VALUE(max_scatterplot)=0,tblSalaries[[#This Row],[Salary in USD]],IF(AND(tblSalaries[[#This Row],[Salary in USD]]>=VALUE(min_scatterplot),tblSalaries[[#This Row],[Salary in USD]]<=VALUE(max_scatterplot)),tblSalaries[[#This Row],[Salary in USD]],selection_false)) -> 150000
B57: ID1412 | C57: 2012-05-29T23:39:13 | D57: 150000 | E57: 150000 | F57: USD | G57: =tblSalaries[[#This Row],[clean Salary (in local currency)]]*VLOOKUP(tblSalaries[[#This Row],[Currency]],mapping!D:E,2,FALSE) -> 150000 | H57: Senior Analyst | I57: Analyst | J57: USA | K57: =VLOOKUP(tblSalaries[[#This Row],[Where do you work]],tblCountries[[Actual]:[Mapping]],2,FALSE) -> USA | L57: 2 to 3 hours per day | M57: 30 | N57: =VLOOKUP(IF(FLOOR(tblSalaries[[#This Row],[Salary in USD]]/salary_step,1)>19,19,FLOOR(tblSalaries[[#This Row],[Salary in USD]]/salary_step,1)),tblCountries4[#All],2,0) -> 12 | 150000 - 162500 | O57: =IF(VALUE(max_scatterplot)=0,tblSalaries[[#This Row],[Salary in USD]],IF(AND(tblSalaries[[#This Row],[Salary in USD]]>=VALUE(min_scatterplot),tblSalaries[[#This Row],[Salary in USD]]<=VALUE(max_scatterplot)),tblSalaries[[#This Row],[Salary in USD]],selection_false)) -> 150000
B58: ID1473 | C58: 2012-05-30T16:55:51 | D58: 118000 | E58: 118000 | F58: EUR | G58: =tblSalaries[[#This Row],[clean Salary (in local currency)]]*VLOOKUP(tblSalaries[[#This Row],[Currency]],mapping!D:E,2,FALSE) -> 149907.1338 | H58: Support | I58: Analyst | J58: EU | K58: =VLOOKUP(tblSalaries[[#This Row],[Where do you work]],tblCountries[[Actual]:[Mapping]],2,FALSE) -> Europe | L58: 4 to 6 hours a day | M58: 7 | N58: =VLOOKUP(IF(FLOOR(tblSalaries[[#This Row],[Salary in USD]]/salary_step,1)>19,19,FLOOR(tblSalaries[[#This Row],[Salary in USD]]/salary_step,1)),tblCountries4[#All],2,0) -> 11 | 137500 - 150000 | O58: =IF(VALUE(max_scatterplot)=0,tblSalaries[[#This Row],[Salary in USD]],IF(AND(tblSalaries[[#This Row],[Salary in USD]]>=VALUE(min_scatterplot),tblSalaries[[#This Row],[Salary in USD]]<=VALUE(max_scatterplot)),tblSalaries[[#This Row],[Salary in USD]],selection_false)) -> 149907.1338
B59: ID0822 | C59: 2012-05-26T22:45:14 | D59: R$3.000,00 | E59: 300000 | F59: BRL | G59: =tblSalaries[[#This Row],[clean Salary (in local currency)]]*VLOOKUP(tblSalaries[[#This Row],[Currency]],mapping!D:E,2,FALSE) -> 148284.3501 | H59: Market Intelligence Analyst | I59: Analyst | J59: Brazil | K59: =VLOOKUP(tblSalaries[[#This Row],[Where do you work]],tblCountries[[Actual]:[Mapping]],2,FALSE) -> Brazil | L59: All the 8 hours baby, all the 8! | M59: 3 | N59: =VLOOKUP(IF(FLOOR(tblSalaries[[#This Row],[Salary in USD]]/salary_step,1)>19,19,FLOOR(tblSalaries[[#This Row],[Salary in USD]]/salary_step,1)),tblCountries4[#All],2,0) -> 11 | 137500 - 150000 | O59: =IF(VALUE(max_scatterplot)=0,tblSalaries[[#This Row],[Salary in USD]],IF(AND(tblSalaries[[#This Row],[Salary in USD]]>=VALUE(min_scatterplot),tblSalaries[[#This Row],[Salary in USD]]<=VALUE(max_scatterplot)),tblSalaries[[#This Row],[Salary in USD]],selection_false)) -> 148284.3501
B60: ID1764 | C60: 2012-06-08T22:48:39 | D60: CHF140000 | E60: 140000 | F60: CHF | G60: =tblSalaries[[#This Row],[clean Salary (in local currency)]]*VLOOKUP(tblSalaries[[#This Row],[Currency]],mapping!D:E,2,FALSE) -> 148102.2286 | H60: Projektleiter | I60: Manager | J60: Switzerland | K60: =VLOOKUP(tblSalaries[[#This Row],[Where do you work]],tblCountries[[Actual]:[Mapping]],2,FALSE) -> Switzerland | L60: 2 to 3 hours per day | M60: 6 | N60: =VLOOKUP(IF(FLOOR(tblSalaries[[#This Row],[Salary in USD]]/salary_step,1)>19,19,FLOOR(tblSalaries[[#This Row],[Salary in USD]]/salary_step,1)),tblCountries4[#All],2,0) -> 11 | 137500 - 150000 | O60: =IF(VALUE(max_scatterplot)=0,tblSalaries[[#This Row],[Salary in USD]],IF(AND(tblSalaries[[#This Row],[Salary in USD]]>=VALUE(min_scatterplot),tblSalaries[[#This Row],[Salary in USD]]<=VALUE(max_scatterplot)),tblSalaries[[#This Row],[Salary in USD]],selection_false)) -> 148102.2286
B61: ID1816 | C61: 2012-06-12T20:47:33 | D61: aud145000 | E61: 145000 | F61: AUD | G61: =tblSalaries[[#This Row],[clean Salary (in local currency)]]*VLOOKUP(tblSalaries[[#This Row],[Currency]],mapping!D:E,2,FALSE) -> 147886.9002 | H61: Financial controller | I61: Controller | J61: Australia | K61: =VLOOKUP(tblSalaries[[#This Row],[Where do you work]],tblCountries[[Actual]:[Mapping]],2,FALSE) -> Australia | L61: 2 to 3 hours per day | M61: 15 | N61: =VLOOKUP(IF(FLOOR(tblSalaries[[#This Row],[Salary in USD]]/salary_step,1)>19,19,FLOOR(tblSalaries[[#This Row],[Salary in USD]]/salary_step,1)),tblCountries4[#All],2,0) -> 11 | 137500 - 150000 | O61: =IF(VALUE(max_scatterplot)=0,tblSalaries[[#This Row],[Salary in USD]],IF(AND(tblSalaries[[#This Row],[Salary in USD]]>=VALUE(min_scatterplot),tblSalaries[[#This Row],[Salary in USD]]<=VALUE(max_scatterplot)),tblSalaries[[#This Row],[Salary in USD]],selection_false)) -> 147886.9002
B62: ID0167 | C62: 2012-05-26T00:47:57 | D62: 145000 | E62: 145000 | F62: USD | G62: =tblSalaries[[#This Row],[clean Salary (in local currency)]]*VLOOKUP(tblSalaries[[#This Row],[Currency]],mapping!D:E,2,FALSE) -> 145000 | H62: Financialcontroller | I62: Controller | J62: Switzerland | K62: =VLOOKUP(tblSalaries[[#This Row],[Where do you work]],tblCountries[[Actual]:[Mapping]],2,FALSE) -> Switzerland | L62: All the 8 hours baby, all the 8! | M62: Unknown | N62: =VLOOKUP(IF(FLOOR(tblSalaries[[#This Row],[Salary in USD]]/salary_step,1)>19,19,FLOOR(tblSalaries[[#This Row],[Salary in USD]]/salary_step,1)),tblCountries4[#All],2,0) -> 11 | 137500 - 150000 | O62: =IF(VALUE(max_scatterplot)=0,tblSalaries[[#This Row],[Salary in USD]],IF(AND(tblSalaries[[#This Row],[Salary in USD]]>=VALUE(min_scatterplot),tblSalaries[[#This Row],[Salary in USD]]<=VALUE(max_scatterplot)),tblSalaries[[#This Row],[Salary in USD]],selection_false)) -> 145000
B63: ID1528 | C63: 2012-05-31T07:17:36 | D63: 145000 | E63: 145000 | F63: USD | G63: =tblSalaries[[#This Row],[clean Salary (in local currency)]]*VLOOKUP(tblSalaries[[#This Row],[Currency]],mapping!D:E,2,FALSE) -> 145000 | H63: Associate | I63: Analyst | J63: USA | K63: =VLOOKUP(tblSalaries[[#This Row],[Where do you work]],tblCountries[[Actual]:[Mapping]],2,FALSE) -> USA | L63: 4 to 6 hours a day | M63: 6 | N63: =VLOOKUP(IF(FLOOR(tblSalaries[[#This Row],[Salary in USD]]/salary_step,1)>19,19,FLOOR(tblSalaries[[#This Row],[Salary in USD]]/salary_step,1)),tblCountries4[#All],2,0) -> 11 | 137500 - 150000 | O63: =IF(VALUE(max_scatterplot)=0,tblSalaries[[#This Row],[Salary in USD]],IF(AND(tblSalaries[[#This Row],[Salary in USD]]>=VALUE(min_scatterplot),tblSalaries[[#This Row],[Salary in USD]]<=VALUE(max_scatterplot)),tblSalaries[[#This Row],[Salary in USD]],selection_false)) -> 145000
B64: ID1002 | C64: 2012-05-28T10:21:58 | D64: NZD 180000 | E64: 180000 | F64: NZD | G64: =tblSalaries[[#This Row],[clean Salary (in local currency)]]*VLOOKUP(tblSalaries[[#This Row],[Currency]],mapping!D:E,2,FALSE) -> 143565.8568 | H64: Commercial Manager | I64: Manager | J64: New Zealand | K64: =VLOOKUP(tblSalaries[[#This Row],[Where do you work]],tblCountries[[Actual]:[Mapping]],2,FALSE) -> New Zealand | L64: 4 to 6 hours a day | M64: 25 | N64: =VLOOKUP(IF(FLOOR(tblSalaries[[#This Row],[Salary in USD]]/salary_step,1)>19,19,FLOOR(tblSalaries[[#This Row],[Salary in USD]]/salary_step,1)),tblCountries4[#All],2,0) -> 11 | 137500 - 150000 | O64: =IF(VALUE(max_scatterplot)=0,tblSalaries[[#This Row],[Salary in USD]],IF(AND(tblSalaries[[#This Row],[Salary in USD]]>=VALUE(min_scatterplot),tblSalaries[[#This Row],[Salary in USD]]<=VALUE(max_scatterplot)),tblSalaries[[#This Row],[Salary in USD]],selection_false)) -> 143565.8568
B65: ID0248 | C65: 2012-05-26T01:03:54 | D65: 140000 | E65: 140000 | F65: USD | G65: =tblSalaries[[#This Row],[clean Salary (in local currency)]]*VLOOKUP(tblSalaries[[#This Row],[Currency]],mapping!D:E,2,FALSE) -> 140000 | H65: Manager | I65: Manager | J65: USA | K65: =VLOOKUP(tblSalaries[[#This Row],[Where do you work]],tblCountries[[Actual]:[Mapping]],2,FALSE) -> USA | L65: 4 to 6 hours a day | M65: Unknown | N65: =VLOOKUP(IF(FLOOR(tblSalaries[[#This Row],[Salary in USD]]/salary_step,1)>19,19,FLOOR(tblSalaries[[#This Row],[Salary in USD]]/salary_step,1)),tblCountries4[#All],2,0) -> 11 | 137500 - 150000 | O65: =IF(VALUE(max_scatterplot)=0,tblSalaries[[#This Row],[Salary in USD]],IF(AND(tblSalaries[[#This Row],[Salary in USD]]>=VALUE(min_scatterplot),tblSalaries[[#This Row],[Salary in USD]]<=VALUE(max_scatterplot)),tblSalaries[[#This Row],[Salary in USD]],selection_false)) -> 140000
B66: ID0565 | C66: 2012-05-26T06:20:38 | D66: 140000 | E66: 140000 | F66: USD | G66: =tblSalaries[[#This Row],[clean Salary (in local currency)]]*VLOOKUP(tblSalaries[[#This Row],[Currency]],mapping!D:E,2,FALSE) -> 140000 | H66: controller | I66: Controller | J66: USA | K66: =VLOOKUP(tblSalaries[[#This Row],[Where do you work]],tblCountries[[Actual]:[Mapping]],2,FALSE) -> USA | L66: 2 to 3 hours per day | M66: 10 | N66: =VLOOKUP(IF(FLOOR(tblSalaries[[#This Row],[Salary in USD]]/salary_step,1)>19,19,FLOOR(tblSalaries[[#This Row],[Salary in USD]]/salary_step,1)),tblCountries4[#All],2,0) -> 11 | 137500 - 150000 | O66: =IF(VALUE(max_scatterplot)=0,tblSalaries[[#This Row],[Salary in USD]],IF(AND(tblSalaries[[#This Row],[Salary in USD]]>=VALUE(min_scatterplot),tblSalaries[[#This Row],[Salary in USD]]<=VALUE(max_scatterplot)),tblSalaries[[#This Row],[Salary in USD]],selection_false)) -> 140000
B67: ID1296 | C67: 2012-05-29T13:15:17 | D67: 140000 | E67: 140000 | F67: USD | G67: =tblSalaries[[#This Row],[clean Salary (in local currency)]]*VLOOKUP(tblSalaries[[#This Row],[Currency]],mapping!D:E,2,FALSE) -> 140000 | H67: Senior Accountant | I67: Accountant | J67: USA | K67: =VLOOKUP(tblSalaries[[#This Row],[Where do you work]],tblCountries[[Actual]:[Mapping]],2,FALSE) -> USA | L67: 4 to 6 hours a day | M67: 12 | N67: =VLOOKUP(IF(FLOOR(tblSalaries[[#This Row],[Salary in USD]]/salary_step,1)>19,19,FLOOR(tblSalaries[[#This Row],[Salary in USD]]/salary_step,1)),tblCountries4[#All],2,0) -> 11 | 137500 - 150000 | O67: =IF(VALUE(max_scatterplot)=0,tblSalaries[[#This Row],[Salary in USD]],IF(AND(tblSalaries[[#This Row],[Salary in USD]]>=VALUE(min_scatterplot),tblSalaries[[#This Row],[Salary in USD]]<=VALUE(max_scatterplot)),tblSalaries[[#This Row],[Salary in USD]],selection_false)) -> 140000
B68: ID1626 | C68: 2012-06-02T19:14:35 | D68: 140000 | E68: 140000 | F68: USD | G68: =tblSalaries[[#This Row],[clean Salary (in local currency)]]*VLOOKUP(tblSalaries[[#This Row],[Currency]],mapping!D:E,2,FALSE) -> 140000 | H68: sr manager | I68: Manager | J68: USA | K68: =VLOOKUP(tblSalaries[[#This Row],[Where do you work]],tblCountries[[Actual]:[Mapping]],2,FALSE) -> USA | L68: 4 to 6 hours a day | M68: 12 | N68: =VLOOKUP(IF(FLOOR(tblSalaries[[#This Row],[Salary in USD]]/salary_step,1)>19,19,FLOOR(tblSalaries[[#This Row],[Salary in USD]]/salary_step,1)),tblCountries4[#All],2,0) -> 11 | 137500 - 150000 | O68: =IF(VALUE(max_scatterplot)=0,tblSalaries[[#This Row],[Salary in USD]],IF(AND(tblSalaries[[#This Row],[Salary in USD]]>=VALUE(min_scatterplot),tblSalaries[[#This Row],[Salary in USD]]<=VALUE(max_scatterplot)),tblSalaries[[#This Row],[Salary in USD]],selection_false)) -> 140000
B69: ID0224 | C69: 2012-05-26T00:57:52 | D69: US$ 138K | E69: 138000 | F69: USD | G69: =tblSalaries[[#This Row],[clean Salary (in local currency)]]*VLOOKUP(tblSalaries[[#This Row],[Currency]],mapping!D:E,2,FALSE) -> 138000 | H69: Project engineer | I69: Engineer | J69: Thailand | K69: =VLOOKUP(tblSalaries[[#This Row],[Where do you work]],tblCountries[[Actual]:[Mapping]],2,FALSE) -> Thailand | L69: 4 to 6 hours a day | M69: Unknown | N69: =VLOOKUP(IF(FLOOR(tblSalaries[[#This Row],[Salary in USD]]/salary_step,1)>19,19,FLOOR(tblSalaries[[#This Row],[Salary in USD]]/salary_step,1)),tblCountries4[#All],2,0) -> 11 | 137500 - 150000 | O69: =IF(VALUE(max_scatterplot)=0,tblSalaries[[#This Row],[Salary in USD]],IF(AND(tblSalaries[[#This Row],[Salary in USD]]>=VALUE(min_scatterplot),tblSalaries[[#This Row],[Salary in USD]]<=VALUE(max_scatterplot)),tblSalaries[[#This Row],[Salary in USD]],selection_false)) -> 138000
B70: ID0323 | C70: 2012-05-26T01:28:37 | D70: 137500 | E70: 137500 | F70: USD | G70: =tblSalaries[[#This Row],[clean Salary (in local currency)]]*VLOOKUP(tblSalaries[[#This Row],[Currency]],mapping!D:E,2,FALSE) -> 137500 | H70: director of analytics | I70: Analyst | J70: USA | K70: =VLOOKUP(tblSalaries[[#This Row],[Where do you work]],tblCountries[[Actual]:[Mapping]],2,FALSE) -> USA | L70: 4 to 6 hours a day | M70: Unknown | N70: =VLOOKUP(IF(FLOOR(tblSalaries[[#This Row],[Salary in USD]]/salary_step,1)>19,19,FLOOR(tblSalaries[[#This Row],[Salary in USD]]/salary_step,1)),tblCountries4[#All],2,0) -> 11 | 137500 - 150000 | O70: =IF(VALUE(max_scatterplot)=0,tblSalaries[[#This Row],[Salary in USD]],IF(AND(tblSalaries[[#This Row],[Salary in USD]]>=VALUE(min_scatterplot),tblSalaries[[#This Row],[Salary in USD]]<=VALUE(max_scatterplot)),tblSalaries[[#This Row],[Salary in USD]],selection_false)) -> 137500
B71: ID1398 | C71: 2012-05-29T22:24:28 | D71: 136000 | E71: 136000 | F71: USD | G71: =tblSalaries[[#This Row],[clean Salary (in local currency)]]*VLOOKUP(tblSalaries[[#This Row],[Currency]],mapping!D:E,2,FALSE) -> 136000 | H71: Manager FP and A | I71: Manager | J71: USA | K71: =VLOOKUP(tblSalaries[[#This Row],[Where do you work]],tblCountries[[Actual]:[Mapping]],2,FALSE) -> USA | L71: 4 to 6 hours a day | M71: 10 | N71: =VLOOKUP(IF(FLOOR(tblSalaries[[#This Row],[Salary in USD]]/salary_step,1)>19,19,FLOOR(tblSalaries[[#This Row],[Salary in USD]]/salary_step,1)),tblCountries4[#All],2,0) -> 10 | 125000 - 137500 | O71: =IF(VALUE(max_scatterplot)=0,tblSalaries[[#This Row],[Salary in USD]],IF(AND(tblSalaries[[#This Row],[Salary in USD]]>=VALUE(min_scatterplot),tblSalaries[[#This Row],[Salary in USD]]<=VALUE(max_scatterplot)),tblSalaries[[#This Row],[Salary in USD]],selection_false)) -> 136000
B72: ID0339 | C72: 2012-05-26T01:35:02 | D72: 135000 | E72: 135000 | F72: USD | G72: =tblSalaries[[#This Row],[clean Salary (in local currency)]]*VLOOKUP(tblSalaries[[#This Row],[Currency]],mapping!D:E,2,FALSE) -> 135000 | H72: Manager of Trade Investment & Analysis | I72: Manager | J72: USA | K72: =VLOOKUP(tblSalaries[[#This Row],[Where do you work]],tblCountries[[Actual]:[Mapping]],2,FALSE) -> USA | L72: All the 8 hours baby, all the 8! | M72: Unknown | N72: =VLOOKUP(IF(FLOOR(tblSalaries[[#This Row],[Salary in USD]]/salary_step,1)>19,19,FLOOR(tblSalaries[[#This Row],[Salary in USD]]/salary_step,1)),tblCountries4[#All],2,0) -> 10 | 125000 - 137500 | O72: =IF(VALUE(max_scatterplot)=0,tblSalaries[[#This Row],[Salary in USD]],IF(AND(tblSalaries[[#This Row],[Salary in USD]]>=VALUE(min_scatterplot),tblSalaries[[#This Row],[Salary in USD]]<=VALUE(max_scatterplot)),tblSalaries[[#This Row],[Salary in USD]],selection_false)) -> 135000
B73: ID0870 | C73: 2012-05-27T07:19:14 | D73: 135000 | E73: 135000 | F73: USD | G73: =tblSalaries[[#This Row],[clean Salary (in local currency)]]*VLOOKUP(tblSalaries[[#This Row],[Currency]],mapping!D:E,2,FALSE) -> 135000 | H73: Director, P&A | I73: CXO or Top Mgmt. | J73: USA | K73: =VLOOKUP(tblSalaries[[#This Row],[Where do you work]],tblCountries[[Actual]:[Mapping]],2,FALSE) -> USA | L73: 4 to 6 hours a day | M73: 25 | N73: =VLOOKUP(IF(FLOOR(tblSalaries[[#This Row],[Salary in USD]]/salary_step,1)>19,19,FLOOR(tblSalaries[[#This Row],[Salary in USD]]/salary_step,1)),tblCountries4[#All],2,0) -> 10 | 125000 - 137500 | O73: =IF(VALUE(max_scatterplot)=0,tblSalaries[[#This Row],[Salary in USD]],IF(AND(tblSalaries[[#This Row],[Salary in USD]]>=VALUE(min_scatterplot),tblSalaries[[#This Row],[Salary in USD]]<=VALUE(max_scatterplot)),tblSalaries[[#This Row],[Salary in USD]],selection_false)) -> 135000
B74: ID0954 | C74: 2012-05-28T01:47:29 | D74: 135000 | E74: 135000 | F74: USD | G74: =tblSalaries[[#This Row],[clean Salary (in local currency)]]*VLOOKUP(tblSalaries[[#This Row],[Currency]],mapping!D:E,2,FALSE) -> 135000 | H74: Marketing Insights Manager | I74: Manager | J74: USA | K74: =VLOOKUP(tblSalaries[[#This Row],[Where do you work]],tblCountries[[Actual]:[Mapping]],2,FALSE) -> USA | L74: All the 8 hours baby, all the 8! | M74: 15 | N74: =VLOOKUP(IF(FLOOR(tblSalaries[[#This Row],[Salary in USD]]/salary_step,1)>19,19,FLOOR(tblSalaries[[#This Row],[Salary in USD]]/salary_step,1)),tblCountries4[#All],2,0) -> 10 | 125000 - 137500 | O74: =IF(VALUE(max_scatterplot)=0,tblSalaries[[#This Row],[Salary in USD]],IF(AND(tblSalaries[[#This Row],[Salary in USD]]>=VALUE(min_scatterplot),tblSalaries[[#This Row],[Salary in USD]]<=VALUE(max_scatterplot)),tblSalaries[[#This Row],[Salary in USD]],selection_false)) -> 135000
B75: ID0581 | C75: 2012-05-26T07:32:19 | D75: 130000 | E75: 130000 | F75: AUD | G75: =tblSalaries[[#This Row],[clean Salary (in local currency)]]*VLOOKUP(tblSalaries[[#This Row],[Currency]],mapping!D:E,2,FALSE) -> 132588.2553 | H75: Accountant | I75: Accountant | J75: Australia | K75: =VLOOKUP(tblSalaries[[#This Row],[Where do you work]],tblCountries[[Actual]:[Mapping]],2,FALSE) -> Australia | L75: 2 to 3 hours per day | M75: 27 | N75: =VLOOKUP(IF(FLOOR(tblSalaries[[#This Row],[Salary in USD]]/salary_step,1)>19,19,FLOOR(tblSalaries[[#This Row],[Salary in USD]]/salary_step,1)),tblCountries4[#All],2,0) -> 10 | 125000 - 137500 | O75: =IF(VALUE(max_scatterplot)=0,tblSalaries[[#This Row],[Salary in USD]],IF(AND(tblSalaries[[#This Row],[Salary in USD]]>=VALUE(min_scatterplot),tblSalaries[[#This Row],[Salary in USD]]<=VALUE(max_scatterplot)),tblSalaries[[#This Row],[Salary in USD]],selection_false)) -> 132588.2553
B76: ID1730 | C76: 2012-06-07T08:36:51 | D76: 134000 | E76: 134000 | F76: CAD | G76: =tblSalaries[[#This Row],[clean Salary (in local currency)]]*VLOOKUP(tblSalaries[[#This Row],[Currency]],mapping!D:E,2,FALSE) -> 131770.4441 | H76: Senior Production Accountant | I76: Accountant | J76: Canada | K76: =VLOOKUP(tblSalaries[[#This Row],[Where do you work]],tblCountries[[Actual]:[Mapping]],2,FALSE) -> Canada | L76: All the 8 hours baby, all the 8! | M76: 20 | N76: =VLOOKUP(IF(FLOOR(tblSalaries[[#This Row],[Salary in USD]]/salary_step,1)>19,19,FLOOR(tblSalaries[[#This Row],[Salary in USD]]/salary_step,1)),tblCountries4[#All],2,0) -> 10 | 125000 - 137500 | O76: =IF(VALUE(max_scatterplot)=0,tblSalaries[[#This Row],[Salary in USD]],IF(AND(tblSalaries[[#This Row],[Salary in USD]]>=VALUE(min_scatterplot),tblSalaries[[#This Row],[Salary in USD]]<=VALUE(max_scatterplot)),tblSalaries[[#This Row],[Salary in USD]],selection_false)) -> 131770.4441
B77: ID0485 | C77: 2012-05-26T03:27:56 | D77: Zar 1080000 | E77: 1080000 | F77: ZAR | G77: =tblSalaries[[#This Row],[clean Salary (in local currency)]]*VLOOKUP(tblSalaries[[#This Row],[Currency]],mapping!D:E,2,FALSE) -> 131675.5223 | H77: Finance manager | I77: Manager | J77: South africa | K77: =VLOOKUP(tblSalaries[[#This Row],[Where do you work]],tblCountries[[Actual]:[Mapping]],2,FALSE) -> South Africa | L77: 2 to 3 hours per day | M77: Unknown | N77: =VLOOKUP(IF(FLOOR(tblSalaries[[#This Row],[Salary in USD]]/salary_step,1)>19,19,FLOOR(tblSalaries[[#This Row],[Salary in USD]]/salary_step,1)),tblCountries4[#All],2,0) -> 10 | 125000 - 137500 | O77: =IF(VALUE(max_scatterplot)=0,tblSalaries[[#This Row],[Salary in USD]],IF(AND(tblSalaries[[#This Row],[Salary in USD]]>=VALUE(min_scatterplot),tblSalaries[[#This Row],[Salary in USD]]<=VALUE(max_scatterplot)),tblSalaries[[#This Row],[Salary in USD]],selection_false)) -> 131675.5223
B78: ID0725 | C78: 2012-05-26T15:01:00 | D78: USD130000 | E78: 130000 | F78: USD | G78: =tblSalaries[[#This Row],[clean Salary (in local currency)]]*VLOOKUP(tblSalaries[[#This Row],[Currency]],mapping!D:E,2,FALSE) -> 130000 | H78: Modeller | I78: Manager | J78: Australia | K78: =VLOOKUP(tblSalaries[[#This Row],[Where do you work]],tblCountries[[Actual]:[Mapping]],2,FALSE) -> Australia | L78: 4 to 6 hours a day | M78: 3 | N78: =VLOOKUP(IF(FLOOR(tblSalaries[[#This Row],[Salary in USD]]/salary_step,1)>19,19,FLOOR(tblSalaries[[#This Row],[Salary in USD]]/salary_step,1)),tblCountries4[#All],2,0) -> 10 | 125000 - 137500 | O78: =IF(VALUE(max_scatterplot)=0,tblSalaries[[#This Row],[Salary in USD]],IF(AND(tblSalaries[[#This Row],[Salary in USD]]>=VALUE(min_scatterplot),tblSalaries[[#This Row],[Salary in USD]]<=VALUE(max_scatterplot)),tblSalaries[[#This Row],[Salary in USD]],selection_false)) -> 130000
B79: ID0257 | C79: 2012-05-26T01:06:31 | D79: 130000 | E79: 130000 | F79: USD | G79: =tblSalaries[[#This Row],[clean Salary (in local currency)]]*VLOOKUP(tblSalaries[[#This Row],[Currency]],mapping!D:E,2,FALSE) -> 130000 | H79: Senior Project Manager | I79: Manager | J79: USA | K79: =VLOOKUP(tblSalaries[[#This Row],[Where do you work]],tblCountries[[Actual]:[Mapping]],2,FALSE) -> USA | L79: 4 to 6 hours a day | M79: Unknown | N79: =VLOOKUP(IF(FLOOR(tblSalaries[[#This Row],[Salary in USD]]/salary_step,1)>19,19,FLOOR(tblSalaries[[#This Row],[Salary in USD]]/salary_step,1)),tblCountries4[#All],2,0) -> 10 | 125000 - 137500 | O79: =IF(VALUE(max_scatterplot)=0,tblSalaries[[#This Row],[Salary in USD]],IF(AND(tblSalaries[[#This Row],[Salary in USD]]>=VALUE(min_scatterplot),tblSalaries[[#This Row],[Salary in USD]]<=VALUE(max_scatterplot)),tblSalaries[[#This Row],[Salary in USD]],selection_false)) -> 130000
B80: ID0351 | C80: 2012-05-26T01:40:51 | D80: 130000 | E80: 130000 | F80: USD | G80: =tblSalaries[[#This Row],[clean Salary (in local currency)]]*VLOOKUP(tblSalaries[[#This Row],[Currency]],mapping!D:E,2,FALSE) -> 130000 | H80: Sr Staff Engineer | I80: Engineer | J80: USA | K80: =VLOOKUP(tblSalaries[[#This Row],[Where do you work]],tblCountries[[Actual]:[Mapping]],2,FALSE) -> USA | L80: 4 to 6 hours a day | M80: Unknown | N80: =VLOOKUP(IF(FLOOR(tblSalaries[[#This Row],[Salary in USD]]/salary_step,1)>19,19,FLOOR(tblSalaries[[#This Row],[Salary in USD]]/salary_step,1)),tblCountries4[#All],2,0) -> 10 | 125000 - 137500 | O80: =IF(VALUE(max_scatterplot)=0,tblSalaries[[#This Row],[Salary in USD]],IF(AND(tblSalaries[[#This Row],[Salary in USD]]>=VALUE(min_scatterplot),tblSalaries[[#This Row],[Salary in USD]]<=VALUE(max_scatterplot)),tblSalaries[[#This Row],[Salary in USD]],selection_false)) -> 130000
B81: ID0370 | C81: 2012-05-26T01:50:30 | D81: 130000 | E81: 130000 | F81: USD | G81: =tblSalaries[[#This Row],[clean Salary (in local currency)]]*VLOOKUP(tblSalaries[[#This Row],[Currency]],mapping!D:E,2,FALSE) -> 130000 | H81: Project Manager | I81: Manager | J81: USA | K81: =VLOOKUP(tblSalaries[[#This Row],[Where do you work]],tblCountries[[Actual]:[Mapping]],2,FALSE) -> USA | L81: 2 to 3 hours per day | M81: Unknown | N81: =VLOOKUP(IF(FLOOR(tblSalaries[[#This Row],[Salary in USD]]/salary_step,1)>19,19,FLOOR(tblSalaries[[#This Row],[Salary in USD]]/salary_step,1)),tblCountries4[#All],2,0) -> 10 | 125000 - 137500 | O81: =IF(VALUE(max_scatterplot)=0,tblSalaries[[#This Row],[Salary in USD]],IF(AND(tblSalaries[[#This Row],[Salary in USD]]>=VALUE(min_scatterplot),tblSalaries[[#This Row],[Salary in USD]]<=VALUE(max_scatterplot)),tblSalaries[[#This Row],[Salary in USD]],selection_false)) -> 130000
B82: ID1401 | C82: 2012-05-29T22:47:10 | D82: 130000 | E82: 130000 | F82: USD | G82: =tblSalaries[[#This Row],[clean Salary (in local currency)]]*VLOOKUP(tblSalaries[[#This Row],[Currency]],mapping!D:E,2,FALSE) -> 130000 | H82: Manager | I82: Manager | J82: USA | K82: =VLOOKUP(tblSalaries[[#This Row],[Where do you work]],tblCountries[[Actual]:[Mapping]],2,FALSE) -> USA | L82: 1 or 2 hours a day | M82: 25 | N82: =VLOOKUP(IF(FLOOR(tblSalaries[[#This Row],[Salary in USD]]/salary_step,1)>19,19,FLOOR(tblSalaries[[#This Row],[Salary in USD]]/salary_step,1)),tblCountries4[#All],2,0) -> 10 | 125000 - 137500 | O82: =IF(VALUE(max_scatterplot)=0,tblSalaries[[#This Row],[Salary in USD]],IF(AND(tblSalaries[[#This Row],[Salary in USD]]>=VALUE(min_scatterplot),tblSalaries[[#This Row],[Salary in USD]]<=VALUE(max_scatterplot)),tblSalaries[[#This Row],[Salary in USD]],selection_false)) -> 130000
B83: ID0126 | C83: 2012-05-26T00:42:08 | D83: 128000 | E83: 128000 | F83: USD | G83: =tblSalaries[[#This Row],[clean Salary (in local currency)]]*VLOOKUP(tblSalaries[[#This Row],[Currency]],mapping!D:E,2,FALSE) -> 128000 | H83: Actuary | I83: Manager | J83: USA | K83: =VLOOKUP(tblSalaries[[#This Row],[Where do you work]],tblCountries[[Actual]:[Mapping]],2,FALSE) -> USA | L83: All the 8 hours baby, all the 8! | M83: Unknown | N83: =VLOOKUP(IF(FLOOR(tblSalaries[[#This Row],[Salary in USD]]/salary_step,1)>19,19,FLOOR(tblSalaries[[#This Row],[Salary in USD]]/salary_step,1)),tblCountries4[#All],2,0) -> 10 | 125000 - 137500 | O83: =IF(VALUE(max_scatterplot)=0,tblSalaries[[#This Row],[Salary in USD]],IF(AND(tblSalaries[[#This Row],[Salary in USD]]>=VALUE(min_scatterplot),tblSalaries[[#This Row],[Salary in USD]]<=VALUE(max_scatterplot)),tblSalaries[[#This Row],[Salary in USD]],selection_false)) -> 128000
B84: ID1522 | C84: 2012-05-31T05:23:58 | D84: 127500 | E84: 127500 | F84: USD | G84: =tblSalaries[[#This Row],[clean Salary (in local currency)]]*VLOOKUP(tblSalaries[[#This Row],[Currency]],mapping!D:E,2,FALSE) -> 127500 | H84: SVP | I84: CXO or Top Mgmt. | J84: USA | K84: =VLOOKUP(tblSalaries[[#This Row],[Where do you work]],tblCountries[[Actual]:[Mapping]],2,FALSE) -> USA | L84: All the 8 hours baby, all the 8! | M84: 22 | N84: =VLOOKUP(IF(FLOOR(tblSalaries[[#This Row],[Salary in USD]]/salary_step,1)>19,19,FLOOR(tblSalaries[[#This Row],[Salary in USD]]/salary_step,1)),tblCountries4[#All],2,0) -> 10 | 125000 - 137500 | O84: =IF(VALUE(max_scatterplot)=0,tblSalaries[[#This Row],[Salary in USD]],IF(AND(tblSalaries[[#This Row],[Salary in USD]]>=VALUE(min_scatterplot),tblSalaries[[#This Row],[Salary in USD]]<=VALUE(max_scatterplot)),tblSalaries[[#This Row],[Salary in USD]],selection_false)) -> 127500
B85: ID0978 | C85: 2012-05-28T07:29:43 | D85: 125000 | E85: 125000 | F85: AUD | G85: =tblSalaries[[#This Row],[clean Salary (in local currency)]]*VLOOKUP(tblSalaries[[#This Row],[Currency]],mapping!D:E,2,FALSE) -> 127488.7071 | H85: Director, Informatics | I85: CXO or Top Mgmt. | J85: Australia | K85: =VLOOKUP(tblSalaries[[#This Row],[Where do you work]],tblCountries[[Actual]:[Mapping]],2,FALSE) -> Australia | L85: 4 to 6 hours a day | M85: 15 | N85: =VLOOKUP(IF(FLOOR(tblSalaries[[#This Row],[Salary in USD]]/salary_step,1)>19,19,FLOOR(tblSalaries[[#This Row],[Salary in USD]]/salary_step,1)),tblCountries4[#All],2,0) -> 10 | 125000 - 137500 | O85: =IF(VALUE(max_scatterplot)=0,tblSalaries[[#This Row],[Salary in USD]],IF(AND(tblSalaries[[#This Row],[Salary in USD]]>=VALUE(min_scatterplot),tblSalaries[[#This Row],[Salary in USD]]<=VALUE(max_scatterplot)),tblSalaries[[#This Row],[Salary in USD]],selection_false)) -> 127488.7071
B86: ID1475 | C86: 2012-05-30T17:04:53 | D86: $AUD 125,000 + | E86: 125000 | F86: AUD | G86: =tblSalaries[[#This Row],[clean Salary (in local currency)]]*VLOOKUP(tblSalaries[[#This Row],[Currency]],mapping!D:E,2,FALSE) -> 127488.7071 | H86: Financial Application Developer | I86: Accountant | J86: Australia | K86: =VLOOKUP(tblSalaries[[#This Row],[Where do you work]],tblCountries[[Actual]:[Mapping]],2,FALSE) -> Australia | L86: 4 to 6 hours a day | M86: 7 | N86: =VLOOKUP(IF(FLOOR(tblSalaries[[#This Row],[Salary in USD]]/salary_step,1)>19,19,FLOOR(tblSalaries[[#This Row],[Salary in USD]]/salary_step,1)),tblCountries4[#All],2,0) -> 10 | 125000 - 137500 | O86: =IF(VALUE(max_scatterplot)=0,tblSalaries[[#This Row],[Salary in USD]],IF(AND(tblSalaries[[#This Row],[Salary in USD]]>=VALUE(min_scatterplot),tblSalaries[[#This Row],[Salary in USD]]<=VALUE(max_scatterplot)),tblSalaries[[#This Row],[Salary in USD]],selection_false)) -> 127488.7071
B87: ID1137 | C87: 2012-05-28T18:38:06 | D87: 100000 | E87: 100000 | F87: EUR | G87: =tblSalaries[[#This Row],[clean Salary (in local currency)]]*VLOOKUP(tblSalaries[[#This Row],[Currency]],mapping!D:E,2,FALSE) -> 127039.9439 | H87: Finance Director | I87: CXO or Top Mgmt. | J87: Spain | K87: =VLOOKUP(tblSalaries[[#This Row],[Where do you work]],tblCountries[[Actual]:[Mapping]],2,FALSE) -> Spain | L87: 1 or 2 hours a day | M87: 20 | N87: =VLOOKUP(IF(FLOOR(tblSalaries[[#This Row],[Salary in USD]]/salary_step,1)>19,19,FLOOR(tblSalaries[[#This Row],[Salary in USD]]/salary_step,1)),tblCountries4[#All],2,0) -> 10 | 125000 - 137500 | O87: =IF(VALUE(max_scatterplot)=0,tblSalaries[[#This Row],[Salary in USD]],IF(AND(tblSalaries[[#This Row],[Salary in USD]]>=VALUE(min_scatterplot),tblSalaries[[#This Row],[Salary in USD]]<=VALUE(max_scatterplot)),tblSalaries[[#This Row],[Salary in USD]],selection_false)) -> 127039.9439
B88: ID0909 | C88: 2012-05-27T16:10:04 | D88: 80000 | E88: 80000 | F88: GBP | G88: =tblSalaries[[#This Row],[clean Salary (in local currency)]]*VLOOKUP(tblSalaries[[#This Row],[Currency]],mapping!D:E,2,FALSE) -> 126094.2618 | H88: Financial Modeller | I88: Accountant | J88: UK | K88: =VLOOKUP(tblSalaries[[#This Row],[Where do you work]],tblCountries[[Actual]:[Mapping]],2,FALSE) -> UK | L88: 4 to 6 hours a day | M88: 10 | N88: =VLOOKUP(IF(FLOOR(tblSalaries[[#This Row],[Salary in USD]]/salary_step,1)>19,19,FLOOR(tblSalaries[[#This Row],[Salary in USD]]/salary_step,1)),tblCountries4[#All],2,0) -> 10 | 125000 - 137500 | O88: =IF(VALUE(max_scatterplot)=0,tblSalaries[[#This Row],[Salary in USD]],IF(AND(tblSalaries[[#This Row],[Salary in USD]]>=VALUE(min_scatterplot),tblSalaries[[#This Row],[Salary in USD]]<=VALUE(max_scatterplot)),tblSalaries[[#This Row],[Salary in USD]],selection_false)) -> 126094.2618
B89: ID1085 | C89: 2012-05-28T15:42:04 | D89: 80000 | E89: 80000 | F89: GBP | G89: =tblSalaries[[#This Row],[clean Salary (in local currency)]]*VLOOKUP(tblSalaries[[#This Row],[Currency]],mapping!D:E,2,FALSE) -> 126094.2618 | H89: Manufacturing consultant | I89: Consultant | J89: UK | K89: =VLOOKUP(tblSalaries[[#This Row],[Where do you work]],tblCountries[[Actual]:[Mapping]],2,FALSE) -> UK | L89: 4 to 6 hours a day | M89: 10 | N89: =VLOOKUP(IF(FLOOR(tblSalaries[[#This Row],[Salary in USD]]/salary_step,1)>19,19,FLOOR(tblSalaries[[#This Row],[Salary in USD]]/salary_step,1)),tblCountries4[#All],2,0) -> 10 | 125000 - 137500 | O89: =IF(VALUE(max_scatterplot)=0,tblSalaries[[#This Row],[Salary in USD]],IF(AND(tblSalaries[[#This Row],[Salary in USD]]>=VALUE(min_scatterplot),tblSalaries[[#This Row],[Salary in USD]]<=VALUE(max_scatterplot)),tblSalaries[[#This Row],[Salary in USD]],selection_false)) -> 126094.2618
B90: ID1170 | C90: 2012-05-28T22:39:09 | D90: Â£80000 | E90: 80000 | F90: GBP | G90: =tblSalaries[[#This Row],[clean Salary (in local currency)]]*VLOOKUP(tblSalaries[[#This Row],[Currency]],mapping!D:E,2,FALSE) -> 126094.2618 | H90: Financial Controller | I90: Controller | J90: UK | K90: =VLOOKUP(tblSalaries[[#This Row],[Where do you work]],tblCountries[[Actual]:[Mapping]],2,FALSE) -> UK | L90: 4 to 6 hours a day | M90: 15 | N90: =VLOOKUP(IF(FLOOR(tblSalaries[[#This Row],[Salary in USD]]/salary_step,1)>19,19,FLOOR(tblSalaries[[#This Row],[Salary in USD]]/salary_step,1)),tblCountries4[#All],2,0) -> 10 | 125000 - 137500 | O90: =IF(VALUE(max_scatterplot)=0,tblSalaries[[#This Row],[Salary in USD]],IF(AND(tblSalaries[[#This Row],[Salary in USD]]>=VALUE(min_scatterplot),tblSalaries[[#This Row],[Salary in USD]]<=VALUE(max_scatterplot)),tblSalaries[[#This Row],[Salary in USD]],selection_false)) -> 126094.2618
B91: ID1600 | C91: 2012-06-01T19:57:45 | D91: Â£80000 | E91: 80000 | F91: GBP | G91: =tblSalaries[[#This Row],[clean Salary (in local currency)]]*VLOOKUP(tblSalaries[[#This Row],[Currency]],mapping!D:E,2,FALSE) -> 126094.2618 | H91: Owner of Business Improvement Consultancy | I91: Consultant | J91: UK | K91: =VLOOKUP(tblSalaries[[#This Row],[Where do you work]],tblCountries[[Actual]:[Mapping]],2,FALSE) -> UK | L91: 4 to 6 hours a day | M91: 12 | N91: =VLOOKUP(IF(FLOOR(tblSalaries[[#This Row],[Salary in USD]]/salary_step,1)>19,19,FLOOR(tblSalaries[[#This Row],[Salary in USD]]/salary_step,1)),tblCountries4[#All],2,0) -> 10 | 125000 - 137500 | O91: =IF(VALUE(max_scatterplot)=0,tblSalaries[[#This Row],[Salary in USD]],IF(AND(tblSalaries[[#This Row],[Salary in USD]]>=VALUE(min_scatterplot),tblSalaries[[#This Row],[Salary in USD]]<=VALUE(max_scatterplot)),tblSalaries[[#This Row],[Salary in USD]],selection_false)) -> 126094.2618
B92: ID0871 | C92: 2012-05-27T08:07:40 | D92: 125 $ | E92: 125000 | F92: USD | G92: =tblSalaries[[#This Row],[clean Salary (in local currency)]]*VLOOKUP(tblSalaries[[#This Row],[Currency]],mapping!D:E,2,FALSE) -> 125000 | H92: Project controls manager | I92: Manager | J92: Norway | K92: =VLOOKUP(tblSalaries[[#This Row],[Where do you work]],tblCountries[[Actual]:[Mapping]],2,FALSE) -> Norway | L92: 4 to 6 hours a day | M92: 6 | N92: =VLOOKUP(IF(FLOOR(tblSalaries[[#This Row],[Salary in USD]]/salary_step,1)>19,19,FLOOR(tblSalaries[[#This Row],[Salary in USD]]/salary_step,1)),tblCountries4[#All],2,0) -> 10 | 125000 - 137500 | O92: =IF(VALUE(max_scatterplot)=0,tblSalaries[[#This Row],[Salary in USD]],IF(AND(tblSalaries[[#This Row],[Salary in USD]]>=VALUE(min_scatterplot),tblSalaries[[#This Row],[Salary in USD]]<=VALUE(max_scatterplot)),tblSalaries[[#This Row],[Salary in USD]],selection_false)) -> 125000
B93: ID0887 | C93: 2012-05-27T13:29:52 | D93: $125000 / a excl bonus | E93: 125000 | F93: USD | G93: =tblSalaries[[#This Row],[clean Salary (in local currency)]]*VLOOKUP(tblSalaries[[#This Row],[Currency]],mapping!D:E,2,FALSE) -> 125000 | H93: Commercial Director | I93: CXO or Top Mgmt. | J93: South Africa | K93: =VLOOKUP(tblSalaries[[#This Row],[Where do you work]],tblCountries[[Actual]:[Mapping]],2,FALSE) -> South Africa | L93: 4 to 6 hours a day | M93: 20 | N93: =VLOOKUP(IF(FLOOR(tblSalaries[[#This Row],[Salary in USD]]/salary_step,1)>19,19,FLOOR(tblSalaries[[#This Row],[Salary in USD]]/salary_step,1)),tblCountries4[#All],2,0) -> 10 | 125000 - 137500 | O93: =IF(VALUE(max_scatterplot)=0,tblSalaries[[#This Row],[Salary in USD]],IF(AND(tblSalaries[[#This Row],[Salary in USD]]>=VALUE(min_scatterplot),tblSalaries[[#This Row],[Salary in USD]]<=VALUE(max_scatterplot)),tblSalaries[[#This Row],[Salary in USD]],selection_false)) -> 125000
B94: ID0091 | C94: 2012-05-26T00:39:36 | D94: 125000 | E94: 125000 | F94: USD | G94: =tblSalaries[[#This Row],[clean Salary (in local currency)]]*VLOOKUP(tblSalaries[[#This Row],[Currency]],mapping!D:E,2,FALSE) -> 125000 | H94: Director of Marketing | I94: CXO or Top Mgmt. | J94: USA | K94: =VLOOKUP(tblSalaries[[#This Row],[Where do you work]],tblCountries[[Actual]:[Mapping]],2,FALSE) -> USA | L94: 4 to 6 hours a day | M94: Unknown | N94: =VLOOKUP(IF(FLOOR(tblSalaries[[#This Row],[Salary in USD]]/salary_step,1)>19,19,FLOOR(tblSalaries[[#This Row],[Salary in USD]]/salary_step,1)),tblCountries4[#All],2,0) -> 10 | 125000 - 137500 | O94: =IF(VALUE(max_scatterplot)=0,tblSalaries[[#This Row],[Salary in USD]],IF(AND(tblSalaries[[#This Row],[Salary in USD]]>=VALUE(min_scatterplot),tblSalaries[[#This Row],[Salary in USD]]<=VALUE(max_scatterplot)),tblSalaries[[#This Row],[Salary in USD]],selection_false)) -> 125000
B95: ID0314 | C95: 2012-05-26T01:25:30 | D95: 125000 | E95: 125000 | F95: USD | G95: =tblSalaries[[#This Row],[clean Salary (in local currency)]]*VLOOKUP(tblSalaries[[#This Row],[Currency]],mapping!D:E,2,FALSE) -> 125000 | H95: Finance, Manager | I95: Manager | J95: USA | K95: =VLOOKUP(tblSalaries[[#This Row],[Where do you work]],tblCountries[[Actual]:[Mapping]],2,FALSE) -> USA | L95: 4 to 6 hours a day | M95: Unknown | N95: =VLOOKUP(IF(FLOOR(tblSalaries[[#This Row],[Salary in USD]]/salary_step,1)>19,19,FLOOR(tblSalaries[[#This Row],[Salary in USD]]/salary_step,1)),tblCountries4[#All],2,0) -> 10 | 125000 - 137500 | O95: =IF(VALUE(max_scatterplot)=0,tblSalaries[[#This Row],[Salary in USD]],IF(AND(tblSalaries[[#This Row],[Salary in USD]]>=VALUE(min_scatterplot),tblSalaries[[#This Row],[Salary in USD]]<=VALUE(max_scatterplot)),tblSalaries[[#This Row],[Salary in USD]],selection_false)) -> 125000
B96: ID0461 | C96: 2012-05-26T03:06:16 | D96: 125000 | E96: 125000 | F96: USD | G96: =tblSalaries[[#This Row],[clean Salary (in local currency)]]*VLOOKUP(tblSalaries[[#This Row],[Currency]],mapping!D:E,2,FALSE) -> 125000 | H96: Prod Mgr | I96: Manager | J96: USA | K96: =VLOOKUP(tblSalaries[[#This Row],[Where do you work]],tblCountries[[Actual]:[Mapping]],2,FALSE) -> USA | L96: 2 to 3 hours per day | M96: Unknown | N96: =VLOOKUP(IF(FLOOR(tblSalaries[[#This Row],[Salary in USD]]/salary_step,1)>19,19,FLOOR(tblSalaries[[#This Row],[Salary in USD]]/salary_step,1)),tblCountries4[#All],2,0) -> 10 | 125000 - 137500 | O96: =IF(VALUE(max_scatterplot)=0,tblSalaries[[#This Row],[Salary in USD]],IF(AND(tblSalaries[[#This Row],[Salary in USD]]>=VALUE(min_scatterplot),tblSalaries[[#This Row],[Salary in USD]]<=VALUE(max_scatterplot)),tblSalaries[[#This Row],[Salary in USD]],selection_false)) -> 125000
B97: ID0634 | C97: 2012-05-26T11:31:08 | D97: 125000 | E97: 125000 | F97: USD | G97: =tblSalaries[[#This Row],[clean Salary (in local currency)]]*VLOOKUP(tblSalaries[[#This Row],[Currency]],mapping!D:E,2,FALSE) -> 125000 | H97: Analyst | I97: Analyst | J97: USA | K97: =VLOOKUP(tblSalaries[[#This Row],[Where do you work]],tblCountries[[Actual]:[Mapping]],2,FALSE) -> USA | L97: 2 to 3 hours per day | M97: 20 | N97: =VLOOKUP(IF(FLOOR(tblSalaries[[#This Row],[Salary in USD]]/salary_step,1)>19,19,FLOOR(tblSalaries[[#This Row],[Salary in USD]]/salary_step,1)),tblCountries4[#All],2,0) -> 10 | 125000 - 137500 | O97: =IF(VALUE(max_scatterplot)=0,tblSalaries[[#This Row],[Salary in USD]],IF(AND(tblSalaries[[#This Row],[Salary in USD]]>=VALUE(min_scatterplot),tblSalaries[[#This Row],[Salary in USD]]<=VALUE(max_scatterplot)),tblSalaries[[#This Row],[Salary in USD]],selection_false)) -> 125000
B98: ID0991 | C98: 2012-05-28T08:48:56 | D98: 125000 | E98: 125000 | F98: USD | G98: =tblSalaries[[#This Row],[clean Salary (in local currency)]]*VLOOKUP(tblSalaries[[#This Row],[Currency]],mapping!D:E,2,FALSE) -> 125000 | H98: VP, Operational Analytics | I98: CXO or Top Mgmt. | J98: USA | K98: =VLOOKUP(tblSalaries[[#This Row],[Where do you work]],tblCountries[[Actual]:[Mapping]],2,FALSE) -> USA | L98: 4 to 6 hours a day | M98: 10 | N98: =VLOOKUP(IF(FLOOR(tblSalaries[[#This Row],[Salary in USD]]/salary_step,1)>19,19,FLOOR(tblSalaries[[#This Row],[Salary in USD]]/salary_step,1)),tblCountries4[#All],2,0) -> 10 | 125000 - 137500 | O98: =IF(VALUE(max_scatterplot)=0,tblSalaries[[#This Row],[Salary in USD]],IF(AND(tblSalaries[[#This Row],[Salary in USD]]>=VALUE(min_scatterplot),tblSalaries[[#This Row],[Salary in USD]]<=VALUE(max_scatterplot)),tblSalaries[[#This Row],[Salary in USD]],selection_false)) -> 125000
B99: ID1355 | C99: 2012-05-29T18:38:51 | D99: 125000 | E99: 125000 | F99: USD | G99: =tblSalaries[[#This Row],[clean Salary (in local currency)]]*VLOOKUP(tblSalaries[[#This Row],[Currency]],mapping!D:E,2,FALSE) -> 125000 | H99: Vice President of Performance Management | I99: Manager | J99: USA | K99: =VLOOKUP(tblSalaries[[#This Row],[Where do you work]],tblCountries[[Actual]:[Mapping]],2,FALSE) -> USA | L99: 4 to 6 hours a day | M99: 2 | N99: =VLOOKUP(IF(FLOOR(tblSalaries[[#This Row],[Salary in USD]]/salary_step,1)>19,19,FLOOR(tblSalaries[[#This Row],[Salary in USD]]/salary_step,1)),tblCountries4[#All],2,0) -> 10 | 125000 - 137500 | O99: =IF(VALUE(max_scatterplot)=0,tblSalaries[[#This Row],[Salary in USD]],IF(AND(tblSalaries[[#This Row],[Salary in USD]]>=VALUE(min_scatterplot),tblSalaries[[#This Row],[Salary in USD]]<=VALUE(max_scatterplot)),tblSalaries[[#This Row],[Salary in USD]],selection_false)) -> 125000
B100: ID1364 | C100: 2012-05-29T19:12:19 | D100: 125000 | E100: 125000 | F100: USD | G100: =tblSalaries[[#This Row],[clean Salary (in local currency)]]*VLOOKUP(tblSalaries[[#This Row],[Currency]],mapping!D:E,2,FALSE) -> 125000 | H100: Finance Manager | I100: Manager | J100: USA | K100: =VLOOKUP(tblSalaries[[#This Row],[Where do you work]],tblCountries[[Actual]:[Mapping]],2,FALSE) -> USA | L100: 4 to 6 hours a day | M100: 25 | N100: =VLOOKUP(IF(FLOOR(tblSalaries[[#This Row],[Salary in USD]]/salary_step,1)>19,19,FLOOR(tblSalaries[[#This Row],[Salary in USD]]/salary_step,1)),tblCountries4[#All],2,0) -> 10 | 125000 - 137500 | O100: =IF(VALUE(max_scatterplot)=0,tblSalaries[[#This Row],[Salary in USD]],IF(AND(tblSalaries[[#This Row],[Salary in USD]]>=VALUE(min_scatterplot),tblSalaries[[#This Row],[Salary in USD]]<=VALUE(max_scatterplot)),tblSalaries[[#This Row],[Salary in USD]],selection_false)) -> 125000
B101: ID1558 | C101: 2012-05-31T22:05:03 | D101: 125000 | E101: 125000 | F101: USD | G101: =tblSalaries[[#This Row],[clean Salary (in local currency)]]*VLOOKUP(tblSalaries[[#This Row],[Currency]],mapping!D:E,2,FALSE) -> 125000 | H101: Consultant | I101: Consultant | J101: USA | K101: =VLOOKUP(tblSalaries[[#This Row],[Where do you work]],tblCountries[[Actual]:[Mapping]],2,FALSE) -> USA | L101: All the 8 hours baby, all the 8! | M101: 8 | N101: =VLOOKUP(IF(FLOOR(tblSalaries[[#This Row],[Salary in USD]]/salary_step,1)>19,19,FLOOR(tblSalaries[[#This Row],[Salary in USD]]/salary_step,1)),tblCountries4[#All],2,0) -> 10 | 125000 - 137500 | O101: =IF(VALUE(max_scatterplot)=0,tblSalaries[[#This Row],[Salary in USD]],IF(AND(tblSalaries[[#This Row],[Salary in USD]]>=VALUE(min_scatterplot),tblSalaries[[#This Row],[Salary in USD]]<=VALUE(max_scatterplot)),tblSalaries[[#This Row],[Salary in USD]],selection_false)) -> 125000
B102: ID1778 | C102: 2012-06-10T12:31:48 | D102: 125000 | E102: 125000 | F102: USD | G102: =tblSalaries[[#This Row],[clean Salary (in local currency)]]*VLOOKUP(tblSalaries[[#This Row],[Currency]],mapping!D:E,2,FALSE) -> 125000 | H102: project manager | I102: Manager | J102: USA | K102: =VLOOKUP(tblSalaries[[#This Row],[Where do you work]],tblCountries[[Actual]:[Mapping]],2,FALSE) -> USA | L102: All the 8 hours baby, all the 8! | M102: 10 | N102: =VLOOKUP(IF(FLOOR(tblSalaries[[#This Row],[Salary in USD]]/salary_step,1)>19,19,FLOOR(tblSalaries[[#This Row],[Salary in USD]]/salary_step,1)),tblCountries4[#All],2,0) -> 10 | 125000 - 137500 | O102: =IF(VALUE(max_scatterplot)=0,tblSalaries[[#This Row],[Salary in USD]],IF(AND(tblSalaries[[#This Row],[Salary in USD]]>=VALUE(min_scatterplot),tblSalaries[[#This Row],[Salary in USD]]<=VALUE(max_scatterplot)),tblSalaries[[#This Row],[Salary in USD]],selection_false)) -> 125000
B103: ID1103 | C103: 2012-05-28T16:21:27 | D103: 79000 | E103: 79000 | F103: GBP | G103: =tblSalaries[[#This Row],[clean Salary (in local currency)]]*VLOOKUP(tblSalaries[[#This Row],[Currency]],mapping!D:E,2,FALSE) -> 124518.0835 | H103: Market Analyst | I103: Analyst | J103: UK | K103: =VLOOKUP(tblSalaries[[#This Row],[Where do you work]],tblCountries[[Actual]:[Mapping]],2,FALSE) -> UK | L103: 2 to 3 hours per day | M103: 14 | N103: =VLOOKUP(IF(FLOOR(tblSalaries[[#This Row],[Salary in USD]]/salary_step,1)>19,19,FLOOR(tblSalaries[[#This Row],[Salary in USD]]/salary_step,1)),tblCountries4[#All],2,0) -> 09 | 112500 - 125000 | O103: =IF(VALUE(max_scatterplot)=0,tblSalaries[[#This Row],[Salary in USD]],IF(AND(tblSalaries[[#This Row],[Salary in USD]]>=VALUE(min_scatterplot),tblSalaries[[#This Row],[Salary in USD]]<=VALUE(max_scatterplot)),tblSalaries[[#This Row],[Salary in USD]],selection_false)) -> 124518.0835
B104: ID0514 | C104: 2012-05-26T04:20:17 | D104: 78000 | E104: 78000 | F104: GBP | G104: =tblSalaries[[#This Row],[clean Salary (in local currency)]]*VLOOKUP(tblSalaries[[#This Row],[Currency]],mapping!D:E,2,FALSE) -> 122941.9052 | H104: Associate | I104: Analyst | J104: UK | K104: =VLOOKUP(tblSalaries[[#This Row],[Where do you work]],tblCountries[[Actual]:[Mapping]],2,FALSE) -> UK | L104: 1 or 2 hours a day | M104: Unknown | N104: =VLOOKUP(IF(FLOOR(tblSalaries[[#This Row],[Salary in USD]]/salary_step,1)>19,19,FLOOR(tblSalaries[[#This Row],[Salary in USD]]/salary_step,1)),tblCountries4[#All],2,0) -> 09 | 112500 - 125000 | O104: =IF(VALUE(max_scatterplot)=0,tblSalaries[[#This Row],[Salary in USD]],IF(AND(tblSalaries[[#This Row],[Salary in USD]]>=VALUE(min_scatterplot),tblSalaries[[#This Row],[Salary in USD]]<=VALUE(max_scatterplot)),tblSalaries[[#This Row],[Salary in USD]],selection_false)) -> 122941.9052
B105: ID0989 | C105: 2012-05-28T08:41:13 | D105: 120000 | E105: 120000 | F105: AUD | G105: =tblSalaries[[#This Row],[clean Salary (in local currency)]]*VLOOKUP(tblSalaries[[#This Row],[Currency]],mapping!D:E,2,FALSE) -> 122389.1588 | H105: analyst | I105: Analyst | J105: Australia | K105: =VLOOKUP(tblSalaries[[#This Row],[Where do you work]],tblCountries[[Actual]:[Mapping]],2,FALSE) -> Australia | L105: 4 to 6 hours a day | M105: 2 | N105: =VLOOKUP(IF(FLOOR(tblSalaries[[#This Row],[Salary in USD]]/salary_step,1)>19,19,FLOOR(tblSalaries[[#This Row],[Salary in USD]]/salary_step,1)),tblCountries4[#All],2,0) -> 09 | 112500 - 125000 | O105: =IF(VALUE(max_scatterplot)=0,tblSalaries[[#This Row],[Salary in USD]],IF(AND(tblSalaries[[#This Row],[Salary in USD]]>=VALUE(min_scatterplot),tblSalaries[[#This Row],[Salary in USD]]<=VALUE(max_scatterplot)),tblSalaries[[#This Row],[Salary in USD]],selection_false)) -> 122389.1588
B106: ID0995 | C106: 2012-05-28T09:26:10 | D106: 120000 | E106: 120000 | F106: AUD | G106: =tblSalaries[[#This Row],[clean Salary (in local currency)]]*VLOOKUP(tblSalaries[[#This Row],[Currency]],mapping!D:E,2,FALSE) -> 122389.1588 | H106: HSLP Data Analyst | I106: Analyst | J106: Australia | K106: =VLOOKUP(tblSalaries[[#This Row],[Where do you work]],tblCountries[[Actual]:[Mapping]],2,FALSE) -> Australia | L106: 4 to 6 hours a day | M106: 5 | N106: =VLOOKUP(IF(FLOOR(tblSalaries[[#This Row],[Salary in USD]]/salary_step,1)>19,19,FLOOR(tblSalaries[[#This Row],[Salary in USD]]/salary_step,1)),tblCountries4[#All],2,0) -> 09 | 112500 - 125000 | O106: =IF(VALUE(max_scatterplot)=0,tblSalaries[[#This Row],[Salary in USD]],IF(AND(tblSalaries[[#This Row],[Salary in USD]]>=VALUE(min_scatterplot),tblSalaries[[#This Row],[Salary in USD]]<=VALUE(max_scatterplot)),tblSalaries[[#This Row],[Salary in USD]],selection_false)) -> 122389.1588
B107: ID1587 | C107: 2012-06-01T10:55:27 | D107: AU $120000 | E107: 120000 | F107: AUD | G107: =tblSalaries[[#This Row],[clean Salary (in local currency)]]*VLOOKUP(tblSalaries[[#This Row],[Currency]],mapping!D:E,2,FALSE) -> 122389.1588 | H107: Reporting Analyst | I107: Analyst | J107: Australia | K107: =VLOOKUP(tblSalaries[[#This Row],[Where do you work]],tblCountries[[Actual]:[Mapping]],2,FALSE) -> Australia | L107: 2 to 3 hours per day | M107: 5 | N107: =VLOOKUP(IF(FLOOR(tblSalaries[[#This Row],[Salary in USD]]/salary_step,1)>19,19,FLOOR(tblSalaries[[#This Row],[Salary in USD]]/salary_step,1)),tblCountries4[#All],2,0) -> 09 | 112500 - 125000 | O107: =IF(VALUE(max_scatterplot)=0,tblSalaries[[#This Row],[Salary in USD]],IF(AND(tblSalaries[[#This Row],[Salary in USD]]>=VALUE(min_scatterplot),tblSalaries[[#This Row],[Salary in USD]]<=VALUE(max_scatterplot)),tblSalaries[[#This Row],[Salary in USD]],selection_false)) -> 122389.1588
B108: ID1901 | C108: 2012-06-19T07:59:00 | D108: 120000 | E108: 120000 | F108: AUD | G108: =tblSalaries[[#This Row],[clean Salary (in local currency)]]*VLOOKUP(tblSalaries[[#This Row],[Currency]],mapping!D:E,2,FALSE) -> 122389.1588 | H108: Manager | I108: Manager | J108: Australia | K108: =VLOOKUP(tblSalaries[[#This Row],[Where do you work]],tblCountries[[Actual]:[Mapping]],2,FALSE) -> Australia | L108: 1 or 2 hours a day | M108: 8 | N108: =VLOOKUP(IF(FLOOR(tblSalaries[[#This Row],[Salary in USD]]/salary_step,1)>19,19,FLOOR(tblSalaries[[#This Row],[Salary in USD]]/salary_step,1)),tblCountries4[#All],2,0) -> 09 | 112500 - 125000 | O108: =IF(VALUE(max_scatterplot)=0,tblSalaries[[#This Row],[Salary in USD]],IF(AND(tblSalaries[[#This Row],[Salary in USD]]>=VALUE(min_scatterplot),tblSalaries[[#This Row],[Salary in USD]]<=VALUE(max_scatterplot)),tblSalaries[[#This Row],[Salary in USD]],selection_false)) -> 122389.1588
B109: ID0535 | C109: 2012-05-26T05:18:12 | D109: 120k | E109: 120000 | F109: USD | G109: =tblSalaries[[#This Row],[clean Salary (in local currency)]]*VLOOKUP(tblSalaries[[#This Row],[Currency]],mapping!D:E,2,FALSE) -> 120000 | H109: manager | I109: Manager | J109: nz | K109: =VLOOKUP(tblSalaries[[#This Row],[Where do you work]],tblCountries[[Actual]:[Mapping]],2,FALSE) -> New Zealand | L109: 2 to 3 hours per day | M109: Unknown | N109: =VLOOKUP(IF(FLOOR(tblSalaries[[#This Row],[Salary in USD]]/salary_step,1)>19,19,FLOOR(tblSalaries[[#This Row],[Salary in USD]]/salary_step,1)),tblCountries4[#All],2,0) -> 09 | 112500 - 125000 | O109: =IF(VALUE(max_scatterplot)=0,tblSalaries[[#This Row],[Salary in USD]],IF(AND(tblSalaries[[#This Row],[Salary in USD]]>=VALUE(min_scatterplot),tblSalaries[[#This Row],[Salary in USD]]<=VALUE(max_scatterplot)),tblSalaries[[#This Row],[Salary in USD]],selection_false)) -> 120000
B110: ID1262 | C110: 2012-05-29T08:25:51 | D110: 120,000 US$ | E110: 120000 | F110: USD | G110: =tblSalaries[[#This Row],[clean Salary (in local currency)]]*VLOOKUP(tblSalaries[[#This Row],[Currency]],mapping!D:E,2,FALSE) -> 120000 | H110: Consultant - Process Improvement | I110: Consultant | J110: Singapore | K110: =VLOOKUP(tblSalaries[[#This Row],[Where do you work]],tblCountries[[Actual]:[Mapping]],2,FALSE) -> Singapore | L110: 1 or 2 hours a day | M110: 5 | N110: =VLOOKUP(IF(FLOOR(tblSalaries[[#This Row],[Salary in USD]]/salary_step,1)>19,19,FLOOR(tblSalaries[[#This Row],[Salary in USD]]/salary_step,1)),tblCountries4[#All],2,0) -> 09 | 112500 - 125000 | O110: =IF(VALUE(max_scatterplot)=0,tblSalaries[[#This Row],[Salary in USD]],IF(AND(tblSalaries[[#This Row],[Salary in USD]]>=VALUE(min_scatterplot),tblSalaries[[#This Row],[Salary in USD]]<=VALUE(max_scatterplot)),tblSalaries[[#This Row],[Salary in USD]],selection_false)) -> 120000
B111: ID0084 | C111: 2012-05-26T00:05:45 | D111: 120000 | E111: 120000 | F111: USD | G111: =tblSalaries[[#This Row],[clean Salary (in local currency)]]*VLOOKUP(tblSalaries[[#This Row],[Currency]],mapping!D:E,2,FALSE) -> 120000 | H111: Manager, Forecasts & Budgets | I111: Manager | J111: USA | K111: =VLOOKUP(tblSalaries[[#This Row],[Where do you work]],tblCountries[[Actual]:[Mapping]],2,FALSE) -> USA | L111: 4 to 6 hours a day | M111: Unknown | N111: =VLOOKUP(IF(FLOOR(tblSalaries[[#This Row],[Salary in USD]]/salary_step,1)>19,19,FLOOR(tblSalaries[[#This Row],[Salary in USD]]/salary_step,1)),tblCountries4[#All],2,0) -> 09 | 112500 - 125000 | O111: =IF(VALUE(max_scatterplot)=0,tblSalaries[[#This Row],[Salary in USD]],IF(AND(tblSalaries[[#This Row],[Salary in USD]]>=VALUE(min_scatterplot),tblSalaries[[#This Row],[Salary in USD]]<=VALUE(max_scatterplot)),tblSalaries[[#This Row],[Salary in USD]],selection_false)) -> 120000
B112: ID0440 | C112: 2012-05-26T02:39:56 | D112: 120000 | E112: 120000 | F112: USD | G112: =tblSalaries[[#This Row],[clean Salary (in local currency)]]*VLOOKUP(tblSalaries[[#This Row],[Currency]],mapping!D:E,2,FALSE) -> 120000 | H112: Director | I112: CXO or Top Mgmt. | J112: USA | K112: =VLOOKUP(tblSalaries[[#This Row],[Where do you work]],tblCountries[[Actual]:[Mapping]],2,FALSE) -> USA | L112: 1 or 2 hours a day | M112: Unknown | N112: =VLOOKUP(IF(FLOOR(tblSalaries[[#This Row],[Salary in USD]]/salary_step,1)>19,19,FLOOR(tblSalaries[[#This Row],[Salary in USD]]/salary_step,1)),tblCountries4[#All],2,0) -> 09 | 112500 - 125000 | O112: =IF(VALUE(max_scatterplot)=0,tblSalaries[[#This Row],[Salary in USD]],IF(AND(tblSalaries[[#This Row],[Salary in USD]]>=VALUE(min_scatterplot),tblSalaries[[#This Row],[Salary in USD]]<=VALUE(max_scatterplot)),tblSalaries[[#This Row],[Salary in USD]],selection_false)) -> 120000
B113: ID0554 | C113: 2012-05-26T05:48:10 | D113: 120000 | E113: 120000 | F113: USD | G113: =tblSalaries[[#This Row],[clean Salary (in local currency)]]*VLOOKUP(tblSalaries[[#This Row],[Currency]],mapping!D:E,2,FALSE) -> 120000 | H113: Director | I113: CXO or Top Mgmt. | J113: USA | K113: =VLOOKUP(tblSalaries[[#This Row],[Where do you work]],tblCountries[[Actual]:[Mapping]],2,FALSE) -> USA | L113: 4 to 6 hours a day | M113: Unknown | N113: =VLOOKUP(IF(FLOOR(tblSalaries[[#This Row],[Salary in USD]]/salary_step,1)>19,19,FLOOR(tblSalaries[[#This Row],[Salary in USD]]/salary_step,1)),tblCountries4[#All],2,0) -> 09 | 112500 - 125000 | O113: =IF(VALUE(max_scatterplot)=0,tblSalaries[[#This Row],[Salary in USD]],IF(AND(tblSalaries[[#This Row],[Salary in USD]]>=VALUE(min_scatterplot),tblSalaries[[#This Row],[Salary in USD]]<=VALUE(max_scatterplot)),tblSalaries[[#This Row],[Salary in USD]],selection_false)) -> 120000
B114: ID0592 | C114: 2012-05-26T08:08:43 | D114: 120000 | E114: 120000 | F114: USD | G114: =tblSalaries[[#This Row],[clean Salary (in local currency)]]*VLOOKUP(tblSalaries[[#This Row],[Currency]],mapping!D:E,2,FALSE) -> 120000 | H114: Sr. Analyst | I114: Analyst | J114: USA | K114: =VLOOKUP(tblSalaries[[#This Row],[Where do you work]],tblCountries[[Actual]:[Mapping]],2,FALSE) -> USA | L114: All the 8 hours baby, all the 8! | M114: 7 | N114: =VLOOKUP(IF(FLOOR(tblSalaries[[#This Row],[Salary in USD]]/salary_step,1)>19,19,FLOOR(tblSalaries[[#This Row],[Salary in USD]]/salary_step,1)),tblCountries4[#All],2,0) -> 09 | 112500 - 125000 | O114: =IF(VALUE(max_scatterplot)=0,tblSalaries[[#This Row],[Salary in USD]],IF(AND(tblSalaries[[#This Row],[Salary in USD]]>=VALUE(min_scatterplot),tblSalaries[[#This Row],[Salary in USD]]<=VALUE(max_scatterplot)),tblSalaries[[#This Row],[Salary in USD]],selection_false)) -> 120000
B115: ID1385 | C115: 2012-05-29T21:42:44 | D115: 120000 | E115: 120000 | F115: USD | G115: =tblSalaries[[#This Row],[clean Salary (in local currency)]]*VLOOKUP(tblSalaries[[#This Row],[Currency]],mapping!D:E,2,FALSE) -> 120000 | H115: Finance Manager | I115: Manager | J115: USA | K115: =VLOOKUP(tblSalaries[[#This Row],[Where do you work]],tblCountries[[Actual]:[Mapping]],2,FALSE) -> USA | L115: 2 to 3 hours per day | M115: 5 | N115: =VLOOKUP(IF(FLOOR(tblSalaries[[#This Row],[Salary in USD]]/salary_step,1)>19,19,FLOOR(tblSalaries[[#This Row],[Salary in USD]]/salary_step,1)),tblCountries4[#All],2,0) -> 09 | 112500 - 125000 | O115: =IF(VALUE(max_scatterplot)=0,tblSalaries[[#This Row],[Salary in USD]],IF(AND(tblSalaries[[#This Row],[Salary in USD]]>=VALUE(min_scatterplot),tblSalaries[[#This Row],[Salary in USD]]<=VALUE(max_scatterplot)),tblSalaries[[#This Row],[Salary in USD]],selection_false)) -> 120000
B116: ID1417 | C116: 2012-05-30T00:25:43 | D116: 120000 | E116: 120000 | F116: USD | G116: =tblSalaries[[#This Row],[clean Salary (in local currency)]]*VLOOKUP(tblSalaries[[#This Row],[Currency]],mapping!D:E,2,FALSE) -> 120000 | H116: Finance Manager | I116: Manager | J116: USA | K116: =VLOOKUP(tblSalaries[[#This Row],[Where do you work]],tblCountries[[Actual]:[Mapping]],2,FALSE) -> USA | L116: 2 to 3 hours per day | M116: 10 | N116: =VLOOKUP(IF(FLOOR(tblSalaries[[#This Row],[Salary in USD]]/salary_step,1)>19,19,FLOOR(tblSalaries[[#This Row],[Salary in USD]]/salary_step,1)),tblCountries4[#All],2,0) -> 09 | 112500 - 125000 | O116: =IF(VALUE(max_scatterplot)=0,tblSalaries[[#This Row],[Salary in USD]],IF(AND(tblSalaries[[#This Row],[Salary in USD]]>=VALUE(min_scatterplot),tblSalaries[[#This Row],[Salary in USD]]<=VALUE(max_scatterplot)),tblSalaries[[#This Row],[Salary in USD]],selection_false)) -> 120000
B117: ID1830 | C117: 2012-06-13T06:19:24 | D117: 120000 | E117: 120000 | F117: USD | G117: =tblSalaries[[#This Row],[clean Salary (in local currency)]]*VLOOKUP(tblSalaries[[#This Row],[Currency]],mapping!D:E,2,FALSE) -> 120000 | H117: Financial Modeler | I117: Accountant | J117: USA | K117: =VLOOKUP(tblSalaries[[#This Row],[Where do you work]],tblCountries[[Actual]:[Mapping]],2,FALSE) -> USA | L117: 4 to 6 hours a day | M117: 20 | N117: =VLOOKUP(IF(FLOOR(tblSalaries[[#This Row],[Salary in USD]]/salary_step,1)>19,19,FLOOR(tblSalaries[[#This Row],[Salary in USD]]/salary_step,1)),tblCountries4[#All],2,0) -> 09 | 112500 - 125000 | O117: =IF(VALUE(max_scatterplot)=0,tblSalaries[[#This Row],[Salary in USD]],IF(AND(tblSalaries[[#This Row],[Salary in USD]]>=VALUE(min_scatterplot),tblSalaries[[#This Row],[Salary in USD]]<=VALUE(max_scatterplot)),tblSalaries[[#This Row],[Salary in USD]],selection_false)) -> 120000
B118: ID1115 | C118: 2012-05-28T17:02:43 | D118: 75000 | E118: 75000 | F118: GBP | G118: =tblSalaries[[#This Row],[clean Salary (in local currency)]]*VLOOKUP(tblSalaries[[#This Row],[Currency]],mapping!D:E,2,FALSE) -> 118213.3704 | H118: Management Consultant | I118: Manager | J118: UK | K118: =VLOOKUP(tblSalaries[[#This Row],[Where do you work]],tblCountries[[Actual]:[Mapping]],2,FALSE) -> UK | L118: 2 to 3 hours per day | M118: 10 | N118: =VLOOKUP(IF(FLOOR(tblSalaries[[#This Row],[Salary in USD]]/salary_step,1)>19,19,FLOOR(tblSalaries[[#This Row],[Salary in USD]]/salary_step,1)),tblCountries4[#All],2,0) -> 09 | 112500 - 125000 | O118: =IF(VALUE(max_scatterplot)=0,tblSalaries[[#This Row],[Salary in USD]],IF(AND(tblSalaries[[#This Row],[Salary in USD]]>=VALUE(min_scatterplot),tblSalaries[[#This Row],[Salary in USD]]<=VALUE(max_scatterplot)),tblSalaries[[#This Row],[Salary in USD]],selection_false)) -> 118213.3704
B119: ID1240 | C119: 2012-05-29T03:51:28 | D119: 75000 | E119: 75000 | F119: GBP | G119: =tblSalaries[[#This Row],[clean Salary (in local currency)]]*VLOOKUP(tblSalaries[[#This Row],[Currency]],mapping!D:E,2,FALSE) -> 118213.3704 | H119: Finance Manager | I119: Manager | J119: UK | K119: =VLOOKUP(tblSalaries[[#This Row],[Where do you work]],tblCountries[[Actual]:[Mapping]],2,FALSE) -> UK | L119: 4 to 6 hours a day | M119: 20 | N119: =VLOOKUP(IF(FLOOR(tblSalaries[[#This Row],[Salary in USD]]/salary_step,1)>19,19,FLOOR(tblSalaries[[#This Row],[Salary in USD]]/salary_step,1)),tblCountries4[#All],2,0) -> 09 | 112500 - 125000 | O119: =IF(VALUE(max_scatterplot)=0,tblSalaries[[#This Row],[Salary in USD]],IF(AND(tblSalaries[[#This Row],[Salary in USD]]>=VALUE(min_scatterplot),tblSalaries[[#This Row],[Salary in USD]]<=VALUE(max_scatterplot)),tblSalaries[[#This Row],[Salary in USD]],selection_false)) -> 118213.3704
B120: ID1843 | C120: 2012-06-14T12:27:30 | D120: 118000 | E120: 118000 | F120: USD | G120: =tblSalaries[[#This Row],[clean Salary (in local currency)]]*VLOOKUP(tblSalaries[[#This Row],[Currency]],mapping!D:E,2,FALSE) -> 118000 | H120: AVP | I120: CXO or Top Mgmt. | J120: USA | K120: =VLOOKUP(tblSalaries[[#This Row],[Where do you work]],tblCountries[[Actual]:[Mapping]],2,FALSE) -> USA | L120: 4 to 6 hours a day | M120: 6 | N120: =VLOOKUP(IF(FLOOR(tblSalaries[[#This Row],[Salary in USD]]/salary_step,1)>19,19,FLOOR(tblSalaries[[#This Row],[Salary in USD]]/salary_step,1)),tblCountries4[#All],2,0) -> 09 | 112500 - 125000 | O120: =IF(VALUE(max_scatterplot)=0,tblSalaries[[#This Row],[Salary in USD]],IF(AND(tblSalaries[[#This Row],[Salary in USD]]>=VALUE(min_scatterplot),tblSalaries[[#This Row],[Salary in USD]]<=VALUE(max_scatterplot)),tblSalaries[[#This Row],[Salary in USD]],selection_false)) -> 118000
B121: ID0746 | C121: 2012-05-26T16:10:08 | D121: 74000 | E121: 74000 | F121: GBP | G121: =tblSalaries[[#This Row],[clean Salary (in local currency)]]*VLOOKUP(tblSalaries[[#This Row],[Currency]],mapping!D:E,2,FALSE) -> 116637.1921 | H121: Corporate Finance Manager | I121: Manager | J121: UK | K121: =VLOOKUP(tblSalaries[[#This Row],[Where do you work]],tblCountries[[Actual]:[Mapping]],2,FALSE) -> UK | L121: 4 to 6 hours a day | M121: 5 | N121: =VLOOKUP(IF(FLOOR(tblSalaries[[#This Row],[Salary in USD]]/salary_step,1)>19,19,FLOOR(tblSalaries[[#This Row],[Salary in USD]]/salary_step,1)),tblCountries4[#All],2,0) -> 09 | 112500 - 125000 | O121: =IF(VALUE(max_scatterplot)=0,tblSalaries[[#This Row],[Salary in USD]],IF(AND(tblSalaries[[#This Row],[Salary in USD]]>=VALUE(min_scatterplot),tblSalaries[[#This Row],[Salary in USD]]<=VALUE(max_scatterplot)),tblSalaries[[#This Row],[Salary in USD]],selection_false)) -> 116637.1921
B122: ID0538 | C122: 2012-05-26T05:23:20 | D122: 73,000 GBP | E122: 73000 | F122: GBP | G122: =tblSalaries[[#This Row],[clean Salary (in local currency)]]*VLOOKUP(tblSalaries[[#This Row],[Currency]],mapping!D:E,2,FALSE) -> 115061.0139 | H122: Finance Manager | I122: Manager | J122: UK | K122: =VLOOKUP(tblSalaries[[#This Row],[Where do you work]],tblCountries[[Actual]:[Mapping]],2,FALSE) -> UK | L122: 4 to 6 hours a day | M122: Unknown | N122: =VLOOKUP(IF(FLOOR(tblSalaries[[#This Row],[Salary in USD]]/salary_step,1)>19,19,FLOOR(tblSalaries[[#This Row],[Salary in USD]]/salary_step,1)),tblCountries4[#All],2,0) -> 09 | 112500 - 125000 | O122: =IF(VALUE(max_scatterplot)=0,tblSalaries[[#This Row],[Salary in USD]],IF(AND(tblSalaries[[#This Row],[Salary in USD]]>=VALUE(min_scatterplot),tblSalaries[[#This Row],[Salary in USD]]<=VALUE(max_scatterplot)),tblSalaries[[#This Row],[Salary in USD]],selection_false)) -> 115061.0139
B123: ID1739 | C123: 2012-06-07T20:48:04 | D123: Â£73000 | E123: 73000 | F123: GBP | G123: =tblSalaries[[#This Row],[clean Salary (in local currency)]]*VLOOKUP(tblSalaries[[#This Row],[Currency]],mapping!D:E,2,FALSE) -> 115061.0139 | H123: Financial Controller | I123: Controller | J123: UK | K123: =VLOOKUP(tblSalaries[[#This Row],[Where do you work]],tblCountries[[Actual]:[Mapping]],2,FALSE) -> UK | L123: 4 to 6 hours a day | M123: 8 | N123: =VLOOKUP(IF(FLOOR(tblSalaries[[#This Row],[Salary in USD]]/salary_step,1)>19,19,FLOOR(tblSalaries[[#This Row],[Salary in USD]]/salary_step,1)),tblCountries4[#All],2,0) -> 09 | 112500 - 125000 | O123: =IF(VALUE(max_scatterplot)=0,tblSalaries[[#This Row],[Salary in USD]],IF(AND(tblSalaries[[#This Row],[Salary in USD]]>=VALUE(min_scatterplot),tblSalaries[[#This Row],[Salary in USD]]<=VALUE(max_scatterplot)),tblSalaries[[#This Row],[Salary in USD]],selection_false)) -> 115061.0139
B124: ID0418 | C124: 2012-05-26T02:17:38 | D124: US$115000 | E124: 115000 | F124: USD | G124: =tblSalaries[[#This Row],[clean Salary (in local currency)]]*VLOOKUP(tblSalaries[[#This Row],[Currency]],mapping!D:E,2,FALSE) -> 115000 | H124: Consultant | I124: Consultant | J124: USA | K124: =VLOOKUP(tblSalaries[[#This Row],[Where do you work]],tblCountries[[Actual]:[Mapping]],2,FALSE) -> USA | L124: 2 to 3 hours per day | M124: Unknown | N124: =VLOOKUP(IF(FLOOR(tblSalaries[[#This Row],[Salary in USD]]/salary_step,1)>19,19,FLOOR(tblSalaries[[#This Row],[Salary in USD]]/salary_step,1)),tblCountries4[#All],2,0) -> 09 | 112500 - 125000 | O124: =IF(VALUE(max_scatterplot)=0,tblSalaries[[#This Row],[Salary in USD]],IF(AND(tblSalaries[[#This Row],[Salary in USD]]>=VALUE(min_scatterplot),tblSalaries[[#This Row],[Salary in USD]]<=VALUE(max_scatterplot)),tblSalaries[[#This Row],[Salary in USD]],selection_false)) -> 115000
B125: ID0586 | C125: 2012-05-26T07:50:50 | D125: 115000 | E125: 115000 | F125: USD | G125: =tblSalaries[[#This Row],[clean Salary (in local currency)]]*VLOOKUP(tblSalaries[[#This Row],[Currency]],mapping!D:E,2,FALSE) -> 115000 | H125: Mgr Op Excellence | I125: Manager | J125: USA | K125: =VLOOKUP(tblSalaries[[#This Row],[Where do you work]],tblCountries[[Actual]:[Mapping]],2,FALSE) -> USA | L125: 4 to 6 hours a day | M125: 15 | N125: =VLOOKUP(IF(FLOOR(tblSalaries[[#This Row],[Salary in USD]]/salary_step,1)>19,19,FLOOR(tblSalaries[[#This Row],[Salary in USD]]/salary_step,1)),tblCountries4[#All],2,0) -> 09 | 112500 - 125000 | O125: =IF(VALUE(max_scatterplot)=0,tblSalaries[[#This Row],[Salary in USD]],IF(AND(tblSalaries[[#This Row],[Salary in USD]]>=VALUE(min_scatterplot),tblSalaries[[#This Row],[Salary in USD]]<=VALUE(max_scatterplot)),tblSalaries[[#This Row],[Salary in USD]],selection_false)) -> 115000
B126: ID0873 | C126: 2012-05-27T08:55:36 | D126: 115000 | E126: 115000 | F126: USD | G126: =tblSalaries[[#This Row],[clean Salary (in local currency)]]*VLOOKUP(tblSalaries[[#This Row],[Currency]],mapping!D:E,2,FALSE) -> 115000 | H126: Principal Financial Analyst | I126: Analyst | J126: USA | K126: =VLOOKUP(tblSalaries[[#This Row],[Where do you work]],tblCountries[[Actual]:[Mapping]],2,FALSE) -> USA | L126: 4 to 6 hours a day | M126: 10 | N126: =VLOOKUP(IF(FLOOR(tblSalaries[[#This Row],[Salary in USD]]/salary_step,1)>19,19,FLOOR(tblSalaries[[#This Row],[Salary in USD]]/salary_step,1)),tblCountries4[#All],2,0) -> 09 | 112500 - 125000 | O126: =IF(VALUE(max_scatterplot)=0,tblSalaries[[#This Row],[Salary in USD]],IF(AND(tblSalaries[[#This Row],[Salary in USD]]>=VALUE(min_scatterplot),tblSalaries[[#This Row],[Salary in USD]]<=VALUE(max_scatterplot)),tblSalaries[[#This Row],[Salary in USD]],selection_false)) -> 115000
B127: ID1922 | C127: 2012-06-20T05:03:44 | D127: 115000 | E127: 115000 | F127: USD | G127: =tblSalaries[[#This Row],[clean Salary (in local currency)]]*VLOOKUP(tblSalaries[[#This Row],[Currency]],mapping!D:E,2,FALSE) -> 115000 | H127: Business Analyst | I127: Analyst | J127: USA | K127: =VLOOKUP(tblSalaries[[#This Row],[Where do you work]],tblCountries[[Actual]:[Mapping]],2,FALSE) -> USA | L127: All the 8 hours baby, all the 8! | M127: 15 | N127: =VLOOKUP(IF(FLOOR(tblSalaries[[#This Row],[Salary in USD]]/salary_step,1)>19,19,FLOOR(tblSalaries[[#This Row],[Salary in USD]]/salary_step,1)),tblCountries4[#All],2,0) -> 09 | 112500 - 125000 | O127: =IF(VALUE(max_scatterplot)=0,tblSalaries[[#This Row],[Salary in USD]],IF(AND(tblSalaries[[#This Row],[Salary in USD]]>=VALUE(min_scatterplot),tblSalaries[[#This Row],[Salary in USD]]<=VALUE(max_scatterplot)),tblSalaries[[#This Row],[Salary in USD]],selection_false)) -> 115000
B128: ID1147 | C128: 2012-05-28T19:25:35 | D128: 90000 | E128: 90000 | F128: EUR | G128: =tblSalaries[[#This Row],[clean Salary (in local currency)]]*VLOOKUP(tblSalaries[[#This Row],[Currency]],mapping!D:E,2,FALSE) -> 114335.9495 | H128: Management Information Manager | I128: Manager | J128: Continental Europe | K128: =VLOOKUP(tblSalaries[[#This Row],[Where do you work]],tblCountries[[Actual]:[Mapping]],2,FALSE) -> CEE | L128: 2 to 3 hours per day | M128: 20 | N128: =VLOOKUP(IF(FLOOR(tblSalaries[[#This Row],[Salary in USD]]/salary_step,1)>19,19,FLOOR(tblSalaries[[#This Row],[Salary in USD]]/salary_step,1)),tblCountries4[#All],2,0) -> 09 | 112500 - 125000 | O128: =IF(VALUE(max_scatterplot)=0,tblSalaries[[#This Row],[Salary in USD]],IF(AND(tblSalaries[[#This Row],[Salary in USD]]>=VALUE(min_scatterplot),tblSalaries[[#This Row],[Salary in USD]]<=VALUE(max_scatterplot)),tblSalaries[[#This Row],[Salary in USD]],selection_false)) -> 114335.9495
B129: ID1867 | C129: 2012-06-15T20:50:49 | D129: EUR 90000 | E129: 90000 | F129: EUR | G129: =tblSalaries[[#This Row],[clean Salary (in local currency)]]*VLOOKUP(tblSalaries[[#This Row],[Currency]],mapping!D:E,2,FALSE) -> 114335.9495 | H129: Controller | I129: Controller | J129: mainland Europe (Euro zone) | K129: =VLOOKUP(tblSalaries[[#This Row],[Where do you work]],tblCountries[[Actual]:[Mapping]],2,FALSE) -> Europe | L129: 2 to 3 hours per day | M129: 20 | N129: =VLOOKUP(IF(FLOOR(tblSalaries[[#This Row],[Salary in USD]]/salary_step,1)>19,19,FLOOR(tblSalaries[[#This Row],[Salary in USD]]/salary_step,1)),tblCountries4[#All],2,0) -> 09 | 112500 - 125000 | O129: =IF(VALUE(max_scatterplot)=0,tblSalaries[[#This Row],[Salary in USD]],IF(AND(tblSalaries[[#This Row],[Salary in USD]]>=VALUE(min_scatterplot),tblSalaries[[#This Row],[Salary in USD]]<=VALUE(max_scatterplot)),tblSalaries[[#This Row],[Salary in USD]],selection_false)) -> 114335.9495
B130: ID0232 | C130: 2012-05-26T00:59:09 | D130: 114000 | E130: 114000 | F130: USD | G130: =tblSalaries[[#This Row],[clean Salary (in local currency)]]*VLOOKUP(tblSalaries[[#This Row],[Currency]],mapping!D:E,2,FALSE) -> 114000 | H130: Director | I130: CXO or Top Mgmt. | J130: USA | K130: =VLOOKUP(tblSalaries[[#This Row],[Where do you work]],tblCountries[[Actual]:[Mapping]],2,FALSE) -> USA | L130: 2 to 3 hours per day | M130: Unknown | N130: =VLOOKUP(IF(FLOOR(tblSalaries[[#This Row],[Salary in USD]]/salary_step,1)>19,19,FLOOR(tblSalaries[[#This Row],[Salary in USD]]/salary_step,1)),tblCountries4[#All],2,0) -> 09 | 112500 - 125000 | O130: =IF(VALUE(max_scatterplot)=0,tblSalaries[[#This Row],[Salary in USD]],IF(AND(tblSalaries[[#This Row],[Salary in USD]]>=VALUE(min_scatterplot),tblSalaries[[#This Row],[Salary in USD]]<=VALUE(max_scatterplot)),tblSalaries[[#This Row],[Salary in USD]],selection_false)) -> 114000
B131: ID0983 | C131: 2012-05-28T07:59:49 | D131: 110000 | E131: 110000 | F131: AUD | G131: =tblSalaries[[#This Row],[clean Salary (in local currency)]]*VLOOKUP(tblSalaries[[#This Row],[Currency]],mapping!D:E,2,FALSE) -> 112190.0622 | H131: Sustainability Strategy Advisor | I131: Manager | J131: Australia | K131: =VLOOKUP(tblSalaries[[#This Row],[Where do you work]],tblCountries[[Actual]:[Mapping]],2,FALSE) -> Australia | L131: 2 to 3 hours per day | M131: 8 | N131: =VLOOKUP(IF(FLOOR(tblSalaries[[#This Row],[Salary in USD]]/salary_step,1)>19,19,FLOOR(tblSalaries[[#This Row],[Salary in USD]]/salary_step,1)),tblCountries4[#All],2,0) -> 08 | 100000 - 112500 | O131: =IF(VALUE(max_scatterplot)=0,tblSalaries[[#This Row],[Salary in USD]],IF(AND(tblSalaries[[#This Row],[Salary in USD]]>=VALUE(min_scatterplot),tblSalaries[[#This Row],[Salary in USD]]<=VALUE(max_scatterplot)),tblSalaries[[#This Row],[Salary in USD]],selection_false)) -> 112190.0622
B132: ID1264 | C132: 2012-05-29T08:41:14 | D132: 110000 | E132: 110000 | F132: AUD | G132: =tblSalaries[[#This Row],[clean Salary (in local currency)]]*VLOOKUP(tblSalaries[[#This Row],[Currency]],mapping!D:E,2,FALSE) -> 112190.0622 | H132: Analyst | I132: Analyst | J132: Australia | K132: =VLOOKUP(tblSalaries[[#This Row],[Where do you work]],tblCountries[[Actual]:[Mapping]],2,FALSE) -> Australia | L132: 2 to 3 hours per day | M132: 7 | N132: =VLOOKUP(IF(FLOOR(tblSalaries[[#This Row],[Salary in USD]]/salary_step,1)>19,19,FLOOR(tblSalaries[[#This Row],[Salary in USD]]/salary_step,1)),tblCountries4[#All],2,0) -> 08 | 100000 - 112500 | O132: =IF(VALUE(max_scatterplot)=0,tblSalaries[[#This Row],[Salary in USD]],IF(AND(tblSalaries[[#This Row],[Salary in USD]]>=VALUE(min_scatterplot),tblSalaries[[#This Row],[Salary in USD]]<=VALUE(max_scatterplot)),tblSalaries[[#This Row],[Salary in USD]],selection_false)) -> 112190.0622
B133: ID1865 | C133: 2012-06-15T18:13:12 | D133: 112000 | E133: 112000 | F133: USD | G133: =tblSalaries[[#This Row],[clean Salary (in local currency)]]*VLOOKUP(tblSalaries[[#This Row],[Currency]],mapping!D:E,2,FALSE) -> 112000 | H133: manager | I133: Manager | J133: USA | K133: =VLOOKUP(tblSalaries[[#This Row],[Where do you work]],tblCountries[[Actual]:[Mapping]],2,FALSE) -> USA | L133: 2 to 3 hours per day | M133: 8 | N133: =VLOOKUP(IF(FLOOR(tblSalaries[[#This Row],[Salary in USD]]/salary_step,1)>19,19,FLOOR(tblSalaries[[#This Row],[Salary in USD]]/salary_step,1)),tblCountries4[#All],2,0) -> 08 | 100000 - 112500 | O133: =IF(VALUE(max_scatterplot)=0,tblSalaries[[#This Row],[Salary in USD]],IF(AND(tblSalaries[[#This Row],[Salary in USD]]>=VALUE(min_scatterplot),tblSalaries[[#This Row],[Salary in USD]]<=VALUE(max_scatterplot)),tblSalaries[[#This Row],[Salary in USD]],selection_false)) -> 112000
B134: ID0181 | C134: 2012-05-26T00:49:59 | D134: 111680 | E134: 111680 | F134: USD | G134: =tblSalaries[[#This Row],[clean Salary (in local currency)]]*VLOOKUP(tblSalaries[[#This Row],[Currency]],mapping!D:E,2,FALSE) -> 111680 | H134: Director of Analytics | I134: Analyst | J134: USA | K134: =VLOOKUP(tblSalaries[[#This Row],[Where do you work]],tblCountries[[Actual]:[Mapping]],2,FALSE) -> USA | L134: 2 to 3 hours per day | M134: Unknown | N134: =VLOOKUP(IF(FLOOR(tblSalaries[[#This Row],[Salary in USD]]/salary_step,1)>19,19,FLOOR(tblSalaries[[#This Row],[Salary in USD]]/salary_step,1)),tblCountries4[#All],2,0) -> 08 | 100000 - 112500 | O134: =IF(VALUE(max_scatterplot)=0,tblSalaries[[#This Row],[Salary in USD]],IF(AND(tblSalaries[[#This Row],[Salary in USD]]>=VALUE(min_scatterplot),tblSalaries[[#This Row],[Salary in USD]]<=VALUE(max_scatterplot)),tblSalaries[[#This Row],[Salary in USD]],selection_false)) -> 111680
B135: ID0553 | C135: 2012-05-26T05:46:42 | D135: 111000 | E135: 111000 | F135: USD | G135: =tblSalaries[[#This Row],[clean Salary (in local currency)]]*VLOOKUP(tblSalaries[[#This Row],[Currency]],mapping!D:E,2,FALSE) -> 111000 | H135: Senior Financial Analyst | I135: Analyst | J135: Japan | K135: =VLOOKUP(tblSalaries[[#This Row],[Where do you work]],tblCountries[[Actual]:[Mapping]],2,FALSE) -> Japan | L135: All the 8 hours baby, all the 8! | M135: Unknown | N135: =VLOOKUP(IF(FLOOR(tblSalaries[[#This Row],[Salary in USD]]/salary_step,1)>19,19,FLOOR(tblSalaries[[#This Row],[Salary in USD]]/salary_step,1)),tblCountries4[#All],2,0) -> 08 | 100000 - 112500 | O135: =IF(VALUE(max_scatterplot)=0,tblSalaries[[#This Row],[Salary in USD]],IF(AND(tblSalaries[[#This Row],[Salary in USD]]>=VALUE(min_scatterplot),tblSalaries[[#This Row],[Salary in USD]]<=VALUE(max_scatterplot)),tblSalaries[[#This Row],[Salary in USD]],selection_false)) -> 111000
B136: ID1434 | C136: 2012-05-30T02:22:59 | D136: 111000 | E136: 111000 | F136: USD | G136: =tblSalaries[[#This Row],[clean Salary (in local currency)]]*VLOOKUP(tblSalaries[[#This Row],[Currency]],mapping!D:E,2,FALSE) -> 111000 | H136: Project Manager - Finance | I136: Manager | J136: USA | K136: =VLOOKUP(tblSalaries[[#This Row],[Where do you work]],tblCountries[[Actual]:[Mapping]],2,FALSE) -> USA | L136: 2 to 3 hours per day | M136: 10 | N136: =VLOOKUP(IF(FLOOR(tblSalaries[[#This Row],[Salary in USD]]/salary_step,1)>19,19,FLOOR(tblSalaries[[#This Row],[Salary in USD]]/salary_step,1)),tblCountries4[#All],2,0) -> 08 | 100000 - 112500 | O136: =IF(VALUE(max_scatterplot)=0,tblSalaries[[#This Row],[Salary in USD]],IF(AND(tblSalaries[[#This Row],[Salary in USD]]>=VALUE(min_scatterplot),tblSalaries[[#This Row],[Salary in USD]]<=VALUE(max_scatterplot)),tblSalaries[[#This Row],[Salary in USD]],selection_false)) -> 111000
B137: ID0134 | C137: 2012-05-26T00:43:03 | D137: 70000 | E137: 70000 | F137: GBP | G137: =tblSalaries[[#This Row],[clean Salary (in local currency)]]*VLOOKUP(tblSalaries[[#This Row],[Currency]],mapping!D:E,2,FALSE) -> 110332.479 | H137: Project Manager | I137: Manager | J137: UK | K137: =VLOOKUP(tblSalaries[[#This Row],[Where do you work]],tblCountries[[Actual]:[Mapping]],2,FALSE) -> UK | L137: 2 to 3 hours per day | M137: Unknown | N137: =VLOOKUP(IF(FLOOR(tblSalaries[[#This Row],[Salary in USD]]/salary_step,1)>19,19,FLOOR(tblSalaries[[#This Row],[Salary in USD]]/salary_step,1)),tblCountries4[#All],2,0) -> 08 | 100000 - 112500 | O137: =IF(VALUE(max_scatterplot)=0,tblSalaries[[#This Row],[Salary in USD]],IF(AND(tblSalaries[[#This Row],[Salary in USD]]>=VALUE(min_scatterplot),tblSalaries[[#This Row],[Salary in USD]]<=VALUE(max_scatterplot)),tblSalaries[[#This Row],[Salary in USD]],selection_false)) -> 110332.479
B138: ID1348 | C138: 2012-05-29T18:05:50 | D138: Â£70000 | E138: 70000 | F138: GBP | G138: =tblSalaries[[#This Row],[clean Salary (in local currency)]]*VLOOKUP(tblSalaries[[#This Row],[Currency]],mapping!D:E,2,FALSE) -> 110332.479 | H138: Consultant | I138: Consultant | J138: UK | K138: =VLOOKUP(tblSalaries[[#This Row],[Where do you work]],tblCountries[[Actual]:[Mapping]],2,FALSE) -> UK | L138: 4 to 6 hours a day | M138: 15 | N138: =VLOOKUP(IF(FLOOR(tblSalaries[[#This Row],[Salary in USD]]/salary_step,1)>19,19,FLOOR(tblSalaries[[#This Row],[Salary in USD]]/salary_step,1)),tblCountries4[#All],2,0) -> 08 | 100000 - 112500 | O138: =IF(VALUE(max_scatterplot)=0,tblSalaries[[#This Row],[Salary in USD]],IF(AND(tblSalaries[[#This Row],[Salary in USD]]>=VALUE(min_scatterplot),tblSalaries[[#This Row],[Salary in USD]]<=VALUE(max_scatterplot)),tblSalaries[[#This Row],[Salary in USD]],selection_false)) -> 110332.479
B139: ID0484 | C139: 2012-05-26T03:25:57 | D139: 110000 | E139: 110000 | F139: USD | G139: =tblSalaries[[#This Row],[clean Salary (in local currency)]]*VLOOKUP(tblSalaries[[#This Row],[Currency]],mapping!D:E,2,FALSE) -> 110000 | H139: Senior consultant accounting | I139: Accountant | J139: Norway | K139: =VLOOKUP(tblSalaries[[#This Row],[Where do you work]],tblCountries[[Actual]:[Mapping]],2,FALSE) -> Norway | L139: 2 to 3 hours per day | M139: Unknown | N139: =VLOOKUP(IF(FLOOR(tblSalaries[[#This Row],[Salary in USD]]/salary_step,1)>19,19,FLOOR(tblSalaries[[#This Row],[Salary in USD]]/salary_step,1)),tblCountries4[#All],2,0) -> 08 | 100000 - 112500 | O139: =IF(VALUE(max_scatterplot)=0,tblSalaries[[#This Row],[Salary in USD]],IF(AND(tblSalaries[[#This Row],[Salary in USD]]>=VALUE(min_scatterplot),tblSalaries[[#This Row],[Salary in USD]]<=VALUE(max_scatterplot)),tblSalaries[[#This Row],[Salary in USD]],selection_false)) -> 110000
B140: ID1556 | C140: 2012-05-31T21:47:37 | D140: 110000 | E140: 110000 | F140: USD | G140: =tblSalaries[[#This Row],[clean Salary (in local currency)]]*VLOOKUP(tblSalaries[[#This Row],[Currency]],mapping!D:E,2,FALSE) -> 110000 | H140: Business Controller | I140: Controller | J140: Norway | K140: =VLOOKUP(tblSalaries[[#This Row],[Where do you work]],tblCountries[[Actual]:[Mapping]],2,FALSE) -> Norway | L140: All the 8 hours baby, all the 8! | M140: 5 | N140: =VLOOKUP(IF(FLOOR(tblSalaries[[#This Row],[Salary in USD]]/salary_step,1)>19,19,FLOOR(tblSalaries[[#This Row],[Salary in USD]]/salary_step,1)),tblCountries4[#All],2,0) -> 08 | 100000 - 112500 | O140: =IF(VALUE(max_scatterplot)=0,tblSalaries[[#This Row],[Salary in USD]],IF(AND(tblSalaries[[#This Row],[Salary in USD]]>=VALUE(min_scatterplot),tblSalaries[[#This Row],[Salary in USD]]<=VALUE(max_scatterplot)),tblSalaries[[#This Row],[Salary in USD]],selection_false)) -> 110000
B141: ID0087 | C141: 2012-05-26T00:15:17 | D141: 110000 | E141: 110000 | F141: USD | G141: =tblSalaries[[#This Row],[clean Salary (in local currency)]]*VLOOKUP(tblSalaries[[#This Row],[Currency]],mapping!D:E,2,FALSE) -> 110000 | H141: Senior Scheduling Engineer | I141: Engineer | J141: USA | K141: =VLOOKUP(tblSalaries[[#This Row],[Where do you work]],tblCountries[[Actual]:[Mapping]],2,FALSE) -> USA | L141: 2 to 3 hours per day | M141: Unknown | N141: =VLOOKUP(IF(FLOOR(tblSalaries[[#This Row],[Salary in USD]]/salary_step,1)>19,19,FLOOR(tblSalaries[[#This Row],[Salary in USD]]/salary_step,1)),tblCountries4[#All],2,0) -> 08 | 100000 - 112500 | O141: =IF(VALUE(max_scatterplot)=0,tblSalaries[[#This Row],[Salary in USD]],IF(AND(tblSalaries[[#This Row],[Salary in USD]]>=VALUE(min_scatterplot),tblSalaries[[#This Row],[Salary in USD]]<=VALUE(max_scatterplot)),tblSalaries[[#This Row],[Salary in USD]],selection_false)) -> 110000
B142: ID1361 | C142: 2012-05-29T19:08:37 | D142: 110000 | E142: 110000 | F142: USD | G142: =tblSalaries[[#This Row],[clean Salary (in local currency)]]*VLOOKUP(tblSalaries[[#This Row],[Currency]],mapping!D:E,2,FALSE) -> 110000 | H142: Business Analytics Associate | I142: Analyst | J142: USA | K142: =VLOOKUP(tblSalaries[[#This Row],[Where do you work]],tblCountries[[Actual]:[Mapping]],2,FALSE) -> USA | L142: 1 or 2 hours a day | M142: 10 | N142: =VLOOKUP(IF(FLOOR(tblSalaries[[#This Row],[Salary in USD]]/salary_step,1)>19,19,FLOOR(tblSalaries[[#This Row],[Salary in USD]]/salary_step,1)),tblCountries4[#All],2,0) -> 08 | 100000 - 112500 | O142: =IF(VALUE(max_scatterplot)=0,tblSalaries[[#This Row],[Salary in USD]],IF(AND(tblSalaries[[#This Row],[Salary in USD]]>=VALUE(min_scatterplot),tblSalaries[[#This Row],[Salary in USD]]<=VALUE(max_scatterplot)),tblSalaries[[#This Row],[Salary in USD]],selection_false)) -> 110000
B143: ID1919 | C143: 2012-06-20T02:31:52 | D143: 110000 | E143: 110000 | F143: USD | G143: =tblSalaries[[#This Row],[clean Salary (in local currency)]]*VLOOKUP(tblSalaries[[#This Row],[Currency]],mapping!D:E,2,FALSE) -> 110000 | H143: Vice President - Finance | I143: CXO or Top Mgmt. | J143: USA | K143: =VLOOKUP(tblSalaries[[#This Row],[Where do you work]],tblCountries[[Actual]:[Mapping]],2,FALSE) -> USA | L143: 4 to 6 hours a day | M143: 10 | N143: =VLOOKUP(IF(FLOOR(tblSalaries[[#This Row],[Salary in USD]]/salary_step,1)>19,19,FLOOR(tblSalaries[[#This Row],[Salary in USD]]/salary_step,1)),tblCountries4[#All],2,0) -> 08 | 100000 - 112500 | O143: =IF(VALUE(max_scatterplot)=0,tblSalaries[[#This Row],[Salary in USD]],IF(AND(tblSalaries[[#This Row],[Salary in USD]]>=VALUE(min_scatterplot),tblSalaries[[#This Row],[Salary in USD]]<=VALUE(max_scatterplot)),tblSalaries[[#This Row],[Salary in USD]],selection_false)) -> 110000
B144: ID0804 | C144: 2012-05-26T21:24:39 | D144: ZAR900,000 | E144: 900000 | F144: ZAR | G144: =tblSalaries[[#This Row],[clean Salary (in local currency)]]*VLOOKUP(tblSalaries[[#This Row],[Currency]],mapping!D:E,2,FALSE) -> 109729.6019 | H144: Business Analyst | I144: Analyst | J144: South Africa | K144: =VLOOKUP(tblSalaries[[#This Row],[Where do you work]],tblCountries[[Actual]:[Mapping]],2,FALSE) -> South Africa | L144: All the 8 hours baby, all the 8! | M144: 40 | N144: =VLOOKUP(IF(FLOOR(tblSalaries[[#This Row],[Salary in USD]]/salary_step,1)>19,19,FLOOR(tblSalaries[[#This Row],[Salary in USD]]/salary_step,1)),tblCountries4[#All],2,0) -> 08 | 100000 - 112500 | O144: =IF(VALUE(max_scatterplot)=0,tblSalaries[[#This Row],[Salary in USD]],IF(AND(tblSalaries[[#This Row],[Salary in USD]]>=VALUE(min_scatterplot),tblSalaries[[#This Row],[Salary in USD]]<=VALUE(max_scatterplot)),tblSalaries[[#This Row],[Salary in USD]],selection_false)) -> 109729.6019
B145: ID0987 | C145: 2012-05-28T08:35:32 | D145: A$107000 | E145: 107000 | F145: AUD | G145: =tblSalaries[[#This Row],[clean Salary (in local currency)]]*VLOOKUP(tblSalaries[[#This Row],[Currency]],mapping!D:E,2,FALSE) -> 109130.3332 | H145: Management Accountant | I145: Manager | J145: Australia | K145: =VLOOKUP(tblSalaries[[#This Row],[Where do you work]],tblCountries[[Actual]:[Mapping]],2,FALSE) -> Australia | L145: 4 to 6 hours a day | M145: 35 | N145: =VLOOKUP(IF(FLOOR(tblSalaries[[#This Row],[Salary in USD]]/salary_step,1)>19,19,FLOOR(tblSalaries[[#This Row],[Salary in USD]]/salary_step,1)),tblCountries4[#All],2,0) -> 08 | 100000 - 112500 | O145: =IF(VALUE(max_scatterplot)=0,tblSalaries[[#This Row],[Salary in USD]],IF(AND(tblSalaries[[#This Row],[Salary in USD]]>=VALUE(min_scatterplot),tblSalaries[[#This Row],[Salary in USD]]<=VALUE(max_scatterplot)),tblSalaries[[#This Row],[Salary in USD]],selection_false)) -> 109130.3332
B146: ID1484 | C146: 2012-05-30T19:04:44 | D146: 109000 | E146: 109000 | F146: USD | G146: =tblSalaries[[#This Row],[clean Salary (in local currency)]]*VLOOKUP(tblSalaries[[#This Row],[Currency]],mapping!D:E,2,FALSE) -> 109000 | H146: Mgr Technology | I146: Manager | J146: USA | K146: =VLOOKUP(tblSalaries[[#This Row],[Where do you work]],tblCountries[[Actual]:[Mapping]],2,FALSE) -> USA | L146: 4 to 6 hours a day | M146: 15 | N146: =VLOOKUP(IF(FLOOR(tblSalaries[[#This Row],[Salary in USD]]/salary_step,1)>19,19,FLOOR(tblSalaries[[#This Row],[Salary in USD]]/salary_step,1)),tblCountries4[#All],2,0) -> 08 | 100000 - 112500 | O146: =IF(VALUE(max_scatterplot)=0,tblSalaries[[#This Row],[Salary in USD]],IF(AND(tblSalaries[[#This Row],[Salary in USD]]>=VALUE(min_scatterplot),tblSalaries[[#This Row],[Salary in USD]]<=VALUE(max_scatterplot)),tblSalaries[[#This Row],[Salary in USD]],selection_false)) -> 109000
B147: ID0446 | C147: 2012-05-26T02:48:32 | D147: 110000 | E147: 110000 | F147: CAD | G147: =tblSalaries[[#This Row],[clean Salary (in local currency)]]*VLOOKUP(tblSalaries[[#This Row],[Currency]],mapping!D:E,2,FALSE) -> 108169.7675 | H147: Continuos improvment | I147: Controller | J147: Canad | K147: =VLOOKUP(tblSalaries[[#This Row],[Where do you work]],tblCountries[[Actual]:[Mapping]],2,FALSE) -> Canada | L147: 2 to 3 hours per day | M147: Unknown | N147: =VLOOKUP(IF(FLOOR(tblSalaries[[#This Row],[Salary in USD]]/salary_step,1)>19,19,FLOOR(tblSalaries[[#This Row],[Salary in USD]]/salary_step,1)),tblCountries4[#All],2,0) -> 08 | 100000 - 112500 | O147: =IF(VALUE(max_scatterplot)=0,tblSalaries[[#This Row],[Salary in USD]],IF(AND(tblSalaries[[#This Row],[Salary in USD]]>=VALUE(min_scatterplot),tblSalaries[[#This Row],[Salary in USD]]<=VALUE(max_scatterplot)),tblSalaries[[#This Row],[Salary in USD]],selection_false)) -> 108169.7675
B148: ID0209 | C148: 2012-05-26T00:54:16 | D148: 108160 | E148: 108160 | F148: USD | G148: =tblSalaries[[#This Row],[clean Salary (in local currency)]]*VLOOKUP(tblSalaries[[#This Row],[Currency]],mapping!D:E,2,FALSE) -> 108160 | H148: Sr. Financial Analyst | I148: Analyst | J148: USA | K148: =VLOOKUP(tblSalaries[[#This Row],[Where do you work]],tblCountries[[Actual]:[Mapping]],2,FALSE) -> USA | L148: 4 to 6 hours a day | M148: Unknown | N148: =VLOOKUP(IF(FLOOR(tblSalaries[[#This Row],[Salary in USD]]/salary_step,1)>19,19,FLOOR(tblSalaries[[#This Row],[Salary in USD]]/salary_step,1)),tblCountries4[#All],2,0) -> 08 | 100000 - 112500 | O148: =IF(VALUE(max_scatterplot)=0,tblSalaries[[#This Row],[Salary in USD]],IF(AND(tblSalaries[[#This Row],[Salary in USD]]>=VALUE(min_scatterplot),tblSalaries[[#This Row],[Salary in USD]]<=VALUE(max_scatterplot)),tblSalaries[[#This Row],[Salary in USD]],selection_false)) -> 108160
B149: ID0588 | C149: 2012-05-26T07:57:04 | D149: 106000 | E149: 106000 | F149: AUD | G149: =tblSalaries[[#This Row],[clean Salary (in local currency)]]*VLOOKUP(tblSalaries[[#This Row],[Currency]],mapping!D:E,2,FALSE) -> 108110.4236 | H149: Pricing and Strategy Specialist | I149: Specialist | J149: Australia | K149: =VLOOKUP(tblSalaries[[#This Row],[Where do you work]],tblCountries[[Actual]:[Mapping]],2,FALSE) -> Australia | L149: 4 to 6 hours a day | M149: 16 | N149: =VLOOKUP(IF(FLOOR(tblSalaries[[#This Row],[Salary in USD]]/salary_step,1)>19,19,FLOOR(tblSalaries[[#This Row],[Salary in USD]]/salary_step,1)),tblCountries4[#All],2,0) -> 08 | 100000 - 112500 | O149: =IF(VALUE(max_scatterplot)=0,tblSalaries[[#This Row],[Salary in USD]],IF(AND(tblSalaries[[#This Row],[Salary in USD]]>=VALUE(min_scatterplot),tblSalaries[[#This Row],[Salary in USD]]<=VALUE(max_scatterplot)),tblSalaries[[#This Row],[Salary in USD]],selection_false)) -> 108110.4236
B150: ID0496 | C150: 2012-05-26T03:48:42 | D150: USD 108,000 | E150: 108000 | F150: USD | G150: =tblSalaries[[#This Row],[clean Salary (in local currency)]]*VLOOKUP(tblSalaries[[#This Row],[Currency]],mapping!D:E,2,FALSE) -> 108000 | H150: Manager | I150: Manager | J150: Norway | K150: =VLOOKUP(tblSalaries[[#This Row],[Where do you work]],tblCountries[[Actual]:[Mapping]],2,FALSE) -> Norway | L150: 4 to 6 hours a day | M150: Unknown | N150: =VLOOKUP(IF(FLOOR(tblSalaries[[#This Row],[Salary in USD]]/salary_step,1)>19,19,FLOOR(tblSalaries[[#This Row],[Salary in USD]]/salary_step,1)),tblCountries4[#All],2,0) -> 08 | 100000 - 112500 | O150: =IF(VALUE(max_scatterplot)=0,tblSalaries[[#This Row],[Salary in USD]],IF(AND(tblSalaries[[#This Row],[Salary in USD]]>=VALUE(min_scatterplot),tblSalaries[[#This Row],[Salary in USD]]<=VALUE(max_scatterplot)),tblSalaries[[#This Row],[Salary in USD]],selection_false)) -> 108000
B151: ID0331 | C151: 2012-05-26T01:31:58 | D151: 108000 | E151: 108000 | F151: USD | G151: =tblSalaries[[#This Row],[clean Salary (in local currency)]]*VLOOKUP(tblSalaries[[#This Row],[Currency]],mapping!D:E,2,FALSE) -> 108000 | H151: Database Architect | I151: Manager | J151: USA | K151: =VLOOKUP(tblSalaries[[#This Row],[Where do you work]],tblCountries[[Actual]:[Mapping]],2,FALSE) -> USA | L151: 2 to 3 hours per day | M151: Unknown | N151: =VLOOKUP(IF(FLOOR(tblSalaries[[#This Row],[Salary in USD]]/salary_step,1)>19,19,FLOOR(tblSalaries[[#This Row],[Salary in USD]]/salary_step,1)),tblCountries4[#All],2,0) -> 08 | 100000 - 112500 | O151: =IF(VALUE(max_scatterplot)=0,tblSalaries[[#This Row],[Salary in USD]],IF(AND(tblSalaries[[#This Row],[Salary in USD]]>=VALUE(min_scatterplot),tblSalaries[[#This Row],[Salary in USD]]<=VALUE(max_scatterplot)),tblSalaries[[#This Row],[Salary in USD]],selection_false)) -> 108000
B152: ID0596 | C152: 2012-05-26T08:43:07 | D152: 108000 | E152: 108000 | F152: USD | G152: =tblSalaries[[#This Row],[clean Salary (in local currency)]]*VLOOKUP(tblSalaries[[#This Row],[Currency]],mapping!D:E,2,FALSE) -> 108000 | H152: Technology consultant | I152: Consultant | J152: USA | K152: =VLOOKUP(tblSalaries[[#This Row],[Where do you work]],tblCountries[[Actual]:[Mapping]],2,FALSE) -> USA | L152: 2 to 3 hours per day | M152: 7 | N152: =VLOOKUP(IF(FLOOR(tblSalaries[[#This Row],[Salary in USD]]/salary_step,1)>19,19,FLOOR(tblSalaries[[#This Row],[Salary in USD]]/salary_step,1)),tblCountries4[#All],2,0) -> 08 | 100000 - 112500 | O152: =IF(VALUE(max_scatterplot)=0,tblSalaries[[#This Row],[Salary in USD]],IF(AND(tblSalaries[[#This Row],[Salary in USD]]>=VALUE(min_scatterplot),tblSalaries[[#This Row],[Salary in USD]]<=VALUE(max_scatterplot)),tblSalaries[[#This Row],[Salary in USD]],selection_false)) -> 108000
B153: ID0017 | C153: 2012-05-25T04:10:11 | D153: 107000 | E153: 107000 | F153: USD | G153: =tblSalaries[[#This Row],[clean Salary (in local currency)]]*VLOOKUP(tblSalaries[[#This Row],[Currency]],mapping!D:E,2,FALSE) -> 107000 | H153: Business Development | I153: Manager | J153: Switzerland | K153: =VLOOKUP(tblSalaries[[#This Row],[Where do you work]],tblCountries[[Actual]:[Mapping]],2,FALSE) -> Switzerland | L153: 4 to 6 hours a day | M153: Unknown | N153: =VLOOKUP(IF(FLOOR(tblSalaries[[#This Row],[Salary in USD]]/salary_step,1)>19,19,FLOOR(tblSalaries[[#This Row],[Salary in USD]]/salary_step,1)),tblCountries4[#All],2,0) -> 08 | 100000 - 112500 | O153: =IF(VALUE(max_scatterplot)=0,tblSalaries[[#This Row],[Salary in USD]],IF(AND(tblSalaries[[#This Row],[Salary in USD]]>=VALUE(min_scatterplot),tblSalaries[[#This Row],[Salary in USD]]<=VALUE(max_scatterplot)),tblSalaries[[#This Row],[Salary in USD]],selection_false)) -> 107000
B154: ID1266 | C154: 2012-05-29T08:59:41 | D154: 107000 | E154: 107000 | F154: USD | G154: =tblSalaries[[#This Row],[clean Salary (in local currency)]]*VLOOKUP(tblSalaries[[#This Row],[Currency]],mapping!D:E,2,FALSE) -> 107000 | H154: Certified Public Accountant | I154: Accountant | J154: USA | K154: =VLOOKUP(tblSalaries[[#This Row],[Where do you work]],tblCountries[[Actual]:[Mapping]],2,FALSE) -> USA | L154: 4 to 6 hours a day | M154: 12 | N154: =VLOOKUP(IF(FLOOR(tblSalaries[[#This Row],[Salary in USD]]/salary_step,1)>19,19,FLOOR(tblSalaries[[#This Row],[Salary in USD]]/salary_step,1)),tblCountries4[#All],2,0) -> 08 | 100000 - 112500 | O154: =IF(VALUE(max_scatterplot)=0,tblSalaries[[#This Row],[Salary in USD]],IF(AND(tblSalaries[[#This Row],[Salary in USD]]>=VALUE(min_scatterplot),tblSalaries[[#This Row],[Salary in USD]]<=VALUE(max_scatterplot)),tblSalaries[[#This Row],[Salary in USD]],selection_false)) -> 107000
B155: ID1418 | C155: 2012-05-30T00:34:53 | D155: 107000 | E155: 107000 | F155: USD | G155: =tblSalaries[[#This Row],[clean Salary (in local currency)]]*VLOOKUP(tblSalaries[[#This Row],[Currency]],mapping!D:E,2,FALSE) -> 107000 | H155: Tax Manager | I155: Manager | J155: USA | K155: =VLOOKUP(tblSalaries[[#This Row],[Where do you work]],tblCountries[[Actual]:[Mapping]],2,FALSE) -> USA | L155: All the 8 hours baby, all the 8! | M155: 29 | N155: =VLOOKUP(IF(FLOOR(tblSalaries[[#This Row],[Salary in USD]]/salary_step,1)>19,19,FLOOR(tblSalaries[[#This Row],[Salary in USD]]/salary_step,1)),tblCountries4[#All],2,0) -> 08 | 100000 - 112500 | O155: =IF(VALUE(max_scatterplot)=0,tblSalaries[[#This Row],[Salary in USD]],IF(AND(tblSalaries[[#This Row],[Salary in USD]]>=VALUE(min_scatterplot),tblSalaries[[#This Row],[Salary in USD]]<=VALUE(max_scatterplot)),tblSalaries[[#This Row],[Salary in USD]],selection_false)) -> 107000
B156: ID1213 | C156: 2012-05-29T00:26:21 | D156: DKK 625000 | E156: 625000 | F156: DKK | G156: =tblSalaries[[#This Row],[clean Salary (in local currency)]]*VLOOKUP(tblSalaries[[#This Row],[Currency]],mapping!D:E,2,FALSE) -> 106815.1483 | H156: Manager Business Controlling | I156: Manager | J156: Denmark | K156: =VLOOKUP(tblSalaries[[#This Row],[Where do you work]],tblCountries[[Actual]:[Mapping]],2,FALSE) -> Denmark | L156: 4 to 6 hours a day | M156: 25 | N156: =VLOOKUP(IF(FLOOR(tblSalaries[[#This Row],[Salary in USD]]/salary_step,1)>19,19,FLOOR(tblSalaries[[#This Row],[Salary in USD]]/salary_step,1)),tblCountries4[#All],2,0) -> 08 | 100000 - 112500 | O156: =IF(VALUE(max_scatterplot)=0,tblSalaries[[#This Row],[Salary in USD]],IF(AND(tblSalaries[[#This Row],[Salary in USD]]>=VALUE(min_scatterplot),tblSalaries[[#This Row],[Salary in USD]]<=VALUE(max_scatterplot)),tblSalaries[[#This Row],[Salary in USD]],selection_false)) -> 106815.1483
B157: ID1637 | C157: 2012-06-03T04:42:54 | D157: 106000 | E157: 106000 | F157: USD | G157: =tblSalaries[[#This Row],[clean Salary (in local currency)]]*VLOOKUP(tblSalaries[[#This Row],[Currency]],mapping!D:E,2,FALSE) -> 106000 | H157: IT Developer | I157: Analyst | J157: Denmark | K157: =VLOOKUP(tblSalaries[[#This Row],[Where do you work]],tblCountries[[Actual]:[Mapping]],2,FALSE) -> Denmark | L157: 1 or 2 hours a day | M157: 7 | N157: =VLOOKUP(IF(FLOOR(tblSalaries[[#This Row],[Salary in USD]]/salary_step,1)>19,19,FLOOR(tblSalaries[[#This Row],[Salary in USD]]/salary_step,1)),tblCountries4[#All],2,0) -> 08 | 100000 - 112500 | O157: =IF(VALUE(max_scatterplot)=0,tblSalaries[[#This Row],[Salary in USD]],IF(AND(tblSalaries[[#This Row],[Salary in USD]]>=VALUE(min_scatterplot),tblSalaries[[#This Row],[Salary in USD]]<=VALUE(max_scatterplot)),tblSalaries[[#This Row],[Salary in USD]],selection_false)) -> 106000
B158: ID0166 | C158: 2012-05-26T00:47:50 | D158: 107000 | E158: 107000 | F158: CAD | G158: =tblSalaries[[#This Row],[clean Salary (in local currency)]]*VLOOKUP(tblSalaries[[#This Row],[Currency]],mapping!D:E,2,FALSE) -> 105219.683 | H158: Manager, Asset Optimization | I158: Manager | J158: Canada | K158: =VLOOKUP(tblSalaries[[#This Row],[Where do you work]],tblCountries[[Actual]:[Mapping]],2,FALSE) -> Canada | L158: 2 to 3 hours per day | M158: Unknown | N158: =VLOOKUP(IF(FLOOR(tblSalaries[[#This Row],[Salary in USD]]/salary_step,1)>19,19,FLOOR(tblSalaries[[#This Row],[Salary in USD]]/salary_step,1)),tblCountries4[#All],2,0) -> 08 | 100000 - 112500 | O158: =IF(VALUE(max_scatterplot)=0,tblSalaries[[#This Row],[Salary in USD]],IF(AND(tblSalaries[[#This Row],[Salary in USD]]>=VALUE(min_scatterplot),tblSalaries[[#This Row],[Salary in USD]]<=VALUE(max_scatterplot)),tblSalaries[[#This Row],[Salary in USD]],selection_false)) -> 105219.683
B159: ID0677 | C159: 2012-05-26T13:01:44 | D159: 105000 | E159: 105000 | F159: USD | G159: =tblSalaries[[#This Row],[clean Salary (in local currency)]]*VLOOKUP(tblSalaries[[#This Row],[Currency]],mapping!D:E,2,FALSE) -> 105000 | H159: Senior Consultant | I159: Consultant | J159: USA | K159: =VLOOKUP(tblSalaries[[#This Row],[Where do you work]],tblCountries[[Actual]:[Mapping]],2,FALSE) -> USA | L159: 2 to 3 hours per day | M159: 15 | N159: =VLOOKUP(IF(FLOOR(tblSalaries[[#This Row],[Salary in USD]]/salary_step,1)>19,19,FLOOR(tblSalaries[[#This Row],[Salary in USD]]/salary_step,1)),tblCountries4[#All],2,0) -> 08 | 100000 - 112500 | O159: =IF(VALUE(max_scatterplot)=0,tblSalaries[[#This Row],[Salary in USD]],IF(AND(tblSalaries[[#This Row],[Salary in USD]]>=VALUE(min_scatterplot),tblSalaries[[#This Row],[Salary in USD]]<=VALUE(max_scatterplot)),tblSalaries[[#This Row],[Salary in USD]],selection_false)) -> 105000
B160: ID0930 | C160: 2012-05-27T21:49:55 | D160: 105000 | E160: 105000 | F160: USD | G160: =tblSalaries[[#This Row],[clean Salary (in local currency)]]*VLOOKUP(tblSalaries[[#This Row],[Currency]],mapping!D:E,2,FALSE) -> 105000 | H160: business analyst | I160: Analyst | J160: USA | K160: =VLOOKUP(tblSalaries[[#This Row],[Where do you work]],tblCountries[[Actual]:[Mapping]],2,FALSE) -> USA | L160: 4 to 6 hours a day | M160: 20 | N160: =VLOOKUP(IF(FLOOR(tblSalaries[[#This Row],[Salary in USD]]/salary_step,1)>19,19,FLOOR(tblSalaries[[#This Row],[Salary in USD]]/salary_step,1)),tblCountries4[#All],2,0) -> 08 | 100000 - 112500 | O160: =IF(VALUE(max_scatterplot)=0,tblSalaries[[#This Row],[Salary in USD]],IF(AND(tblSalaries[[#This Row],[Salary in USD]]>=VALUE(min_scatterplot),tblSalaries[[#This Row],[Salary in USD]]<=VALUE(max_scatterplot)),tblSalaries[[#This Row],[Salary in USD]],selection_false)) -> 105000
B161: ID1357 | C161: 2012-05-29T18:55:20 | D161: 105000 | E161: 105000 | F161: USD | G161: =tblSalaries[[#This Row],[clean Salary (in local currency)]]*VLOOKUP(tblSalaries[[#This Row],[Currency]],mapping!D:E,2,FALSE) -> 105000 | H161: Director of Technology | I161: CXO or Top Mgmt. | J161: USA | K161: =VLOOKUP(tblSalaries[[#This Row],[Where do you work]],tblCountries[[Actual]:[Mapping]],2,FALSE) -> USA | L161: 1 or 2 hours a day | M161: 15 | N161: =VLOOKUP(IF(FLOOR(tblSalaries[[#This Row],[Salary in USD]]/salary_step,1)>19,19,FLOOR(tblSalaries[[#This Row],[Salary in USD]]/salary_step,1)),tblCountries4[#All],2,0) -> 08 | 100000 - 112500 | O161: =IF(VALUE(max_scatterplot)=0,tblSalaries[[#This Row],[Salary in USD]],IF(AND(tblSalaries[[#This Row],[Salary in USD]]>=VALUE(min_scatterplot),tblSalaries[[#This Row],[Salary in USD]]<=VALUE(max_scatterplot)),tblSalaries[[#This Row],[Salary in USD]],selection_false)) -> 105000
B162: ID1534 | C162: 2012-05-31T10:37:38 | D162: 105000 | E162: 105000 | F162: USD | G162: =tblSalaries[[#This Row],[clean Salary (in local currency)]]*VLOOKUP(tblSalaries[[#This Row],[Currency]],mapping!D:E,2,FALSE) -> 105000 | H162: Business Banker | I162: Manager | J162: USA | K162: =VLOOKUP(tblSalaries[[#This Row],[Where do you work]],tblCountries[[Actual]:[Mapping]],2,FALSE) -> USA | L162: 1 or 2 hours a day | M162: 30 | N162: =VLOOKUP(IF(FLOOR(tblSalaries[[#This Row],[Salary in USD]]/salary_step,1)>19,19,FLOOR(tblSalaries[[#This Row],[Salary in USD]]/salary_step,1)),tblCountries4[#All],2,0) -> 08 | 100000 - 112500 | O162: =IF(VALUE(max_scatterplot)=0,tblSalaries[[#This Row],[Salary in USD]],IF(AND(tblSalaries[[#This Row],[Salary in USD]]>=VALUE(min_scatterplot),tblSalaries[[#This Row],[Salary in USD]]<=VALUE(max_scatterplot)),tblSalaries[[#This Row],[Salary in USD]],selection_false)) -> 105000
B163: ID1197 | C163: 2012-05-28T23:25:32 | D163: 82.000 Euro (pre-tax) | E163: 82000 | F163: EUR | G163: =tblSalaries[[#This Row],[clean Salary (in local currency)]]*VLOOKUP(tblSalaries[[#This Row],[Currency]],mapping!D:E,2,FALSE) -> 104172.754 | H163: Finance Project Manager | I163: Manager | J163: Netherlands | K163: =VLOOKUP(tblSalaries[[#This Row],[Where do you work]],tblCountries[[Actual]:[Mapping]],2,FALSE) -> Netherlands | L163: All the 8 hours baby, all the 8! | M163: 25 | N163: =VLOOKUP(IF(FLOOR(tblSalaries[[#This Row],[Salary in USD]]/salary_step,1)>19,19,FLOOR(tblSalaries[[#This Row],[Salary in USD]]/salary_step,1)),tblCountries4[#All],2,0) -> 08 | 100000 - 112500 | O163: =IF(VALUE(max_scatterplot)=0,tblSalaries[[#This Row],[Salary in USD]],IF(AND(tblSalaries[[#This Row],[Salary in USD]]>=VALUE(min_scatterplot),tblSalaries[[#This Row],[Salary in USD]]<=VALUE(max_scatterplot)),tblSalaries[[#This Row],[Salary in USD]],selection_false)) -> 104172.754
B164: ID0585 | C164: 2012-05-26T07:48:29 | D164: 102000 | E164: 102000 | F164: AUD | G164: =tblSalaries[[#This Row],[clean Salary (in local currency)]]*VLOOKUP(tblSalaries[[#This Row],[Currency]],mapping!D:E,2,FALSE) -> 104030.785 | H164: coordinator lismore regional airport | I164: Manager | J164: Australia | K164: =VLOOKUP(tblSalaries[[#This Row],[Where do you work]],tblCountries[[Actual]:[Mapping]],2,FALSE) -> Australia | L164: 1 or 2 hours a day | M164: 10 | N164: =VLOOKUP(IF(FLOOR(tblSalaries[[#This Row],[Salary in USD]]/salary_step,1)>19,19,FLOOR(tblSalaries[[#This Row],[Salary in USD]]/salary_step,1)),tblCountries4[#All],2,0) -> 08 | 100000 - 112500 | O164: =IF(VALUE(max_scatterplot)=0,tblSalaries[[#This Row],[Salary in USD]],IF(AND(tblSalaries[[#This Row],[Salary in USD]]>=VALUE(min_scatterplot),tblSalaries[[#This Row],[Salary in USD]]<=VALUE(max_scatterplot)),tblSalaries[[#This Row],[Salary in USD]],selection_false)) -> 104030.785
B165: ID0419 | C165: 2012-05-26T02:18:03 | D165: Â£66000 | E165: 66000 | F165: GBP | G165: =tblSalaries[[#This Row],[clean Salary (in local currency)]]*VLOOKUP(tblSalaries[[#This Row],[Currency]],mapping!D:E,2,FALSE) -> 104027.766 | H165: IT Project Manager, EMEA | I165: Manager | J165: UK | K165: =VLOOKUP(tblSalaries[[#This Row],[Where do you work]],tblCountries[[Actual]:[Mapping]],2,FALSE) -> UK | L165: 1 or 2 hours a day | M165: Unknown | N165: =VLOOKUP(IF(FLOOR(tblSalaries[[#This Row],[Salary in USD]]/salary_step,1)>19,19,FLOOR(tblSalaries[[#This Row],[Salary in USD]]/salary_step,1)),tblCountries4[#All],2,0) -> 08 | 100000 - 112500 | O165: =IF(VALUE(max_scatterplot)=0,tblSalaries[[#This Row],[Salary in USD]],IF(AND(tblSalaries[[#This Row],[Salary in USD]]>=VALUE(min_scatterplot),tblSalaries[[#This Row],[Salary in USD]]<=VALUE(max_scatterplot)),tblSalaries[[#This Row],[Salary in USD]],selection_false)) -> 104027.766
B166: ID0143 | C166: 2012-05-26T00:43:49 | D166: 104000 | E166: 104000 | F166: USD | G166: =tblSalaries[[#This Row],[clean Salary (in local currency)]]*VLOOKUP(tblSalaries[[#This Row],[Currency]],mapping!D:E,2,FALSE) -> 104000 | H166: Finance Director | I166: CXO or Top Mgmt. | J166: USA | K166: =VLOOKUP(tblSalaries[[#This Row],[Where do you work]],tblCountries[[Actual]:[Mapping]],2,FALSE) -> USA | L166: 2 to 3 hours per day | M166: Unknown | N166: =VLOOKUP(IF(FLOOR(tblSalaries[[#This Row],[Salary in USD]]/salary_step,1)>19,19,FLOOR(tblSalaries[[#This Row],[Salary in USD]]/salary_step,1)),tblCountries4[#All],2,0) -> 08 | 100000 - 112500 | O166: =IF(VALUE(max_scatterplot)=0,tblSalaries[[#This Row],[Salary in USD]],IF(AND(tblSalaries[[#This Row],[Salary in USD]]>=VALUE(min_scatterplot),tblSalaries[[#This Row],[Salary in USD]]<=VALUE(max_scatterplot)),tblSalaries[[#This Row],[Salary in USD]],selection_false)) -> 104000
B167: ID0525 | C167: 2012-05-26T04:44:26 | D167: 104000 | E167: 104000 | F167: USD | G167: =tblSalaries[[#This Row],[clean Salary (in local currency)]]*VLOOKUP(tblSalaries[[#This Row],[Currency]],mapping!D:E,2,FALSE) -> 104000 | H167: Vice President, Analyst | I167: Analyst | J167: USA | K167: =VLOOKUP(tblSalaries[[#This Row],[Where do you work]],tblCountries[[Actual]:[Mapping]],2,FALSE) -> USA | L167: 4 to 6 hours a day | M167: Unknown | N167: =VLOOKUP(IF(FLOOR(tblSalaries[[#This Row],[Salary in USD]]/salary_step,1)>19,19,FLOOR(tblSalaries[[#This Row],[Salary in USD]]/salary_step,1)),tblCountries4[#All],2,0) -> 08 | 100000 - 112500 | O167: =IF(VALUE(max_scatterplot)=0,tblSalaries[[#This Row],[Salary in USD]],IF(AND(tblSalaries[[#This Row],[Salary in USD]]>=VALUE(min_scatterplot),tblSalaries[[#This Row],[Salary in USD]]<=VALUE(max_scatterplot)),tblSalaries[[#This Row],[Salary in USD]],selection_false)) -> 104000
B168: ID0270 | C168: 2012-05-26T01:09:32 | D168: 103000 | E168: 103000 | F168: USD | G168: =tblSalaries[[#This Row],[clean Salary (in local currency)]]*VLOOKUP(tblSalaries[[#This Row],[Currency]],mapping!D:E,2,FALSE) -> 103000 | H168: VP / Credit Administrator | I168: CXO or Top Mgmt. | J168: USA | K168: =VLOOKUP(tblSalaries[[#This Row],[Where do you work]],tblCountries[[Actual]:[Mapping]],2,FALSE) -> USA | L168: 2 to 3 hours per day | M168: Unknown | N168: =VLOOKUP(IF(FLOOR(tblSalaries[[#This Row],[Salary in USD]]/salary_step,1)>19,19,FLOOR(tblSalaries[[#This Row],[Salary in USD]]/salary_step,1)),tblCountries4[#All],2,0) -> 08 | 100000 - 112500 | O168: =IF(VALUE(max_scatterplot)=0,tblSalaries[[#This Row],[Salary in USD]],IF(AND(tblSalaries[[#This Row],[Salary in USD]]>=VALUE(min_scatterplot),tblSalaries[[#This Row],[Salary in USD]]<=VALUE(max_scatterplot)),tblSalaries[[#This Row],[Salary in USD]],selection_false)) -> 103000
B169: ID1379 | C169: 2012-05-29T21:25:03 | D169: 103000 | E169: 103000 | F169: USD | G169: =tblSalaries[[#This Row],[clean Salary (in local currency)]]*VLOOKUP(tblSalaries[[#This Row],[Currency]],mapping!D:E,2,FALSE) -> 103000 | H169: Controller | I169: Controller | J169: USA | K169: =VLOOKUP(tblSalaries[[#This Row],[Where do you work]],tblCountries[[Actual]:[Mapping]],2,FALSE) -> USA | L169: 4 to 6 hours a day | M169: 22 | N169: =VLOOKUP(IF(FLOOR(tblSalaries[[#This Row],[Salary in USD]]/salary_step,1)>19,19,FLOOR(tblSalaries[[#This Row],[Salary in USD]]/salary_step,1)),tblCountries4[#All],2,0) -> 08 | 100000 - 112500 | O169: =IF(VALUE(max_scatterplot)=0,tblSalaries[[#This Row],[Salary in USD]],IF(AND(tblSalaries[[#This Row],[Salary in USD]]>=VALUE(min_scatterplot),tblSalaries[[#This Row],[Salary in USD]]<=VALUE(max_scatterplot)),tblSalaries[[#This Row],[Salary in USD]],selection_false)) -> 103000
B170: ID1890 | C170: 2012-06-18T05:42:18 | D170: 600000 | E170: 600000 | F170: DKK | G170: =tblSalaries[[#This Row],[clean Salary (in local currency)]]*VLOOKUP(tblSalaries[[#This Row],[Currency]],mapping!D:E,2,FALSE) -> 102542.5423 | H170: Engineer | I170: Engineer | J170: DK | K170: =VLOOKUP(tblSalaries[[#This Row],[Where do you work]],tblCountries[[Actual]:[Mapping]],2,FALSE) -> Denmark | L170: 2 to 3 hours per day | M170: 20 | N170: =VLOOKUP(IF(FLOOR(tblSalaries[[#This Row],[Salary in USD]]/salary_step,1)>19,19,FLOOR(tblSalaries[[#This Row],[Salary in USD]]/salary_step,1)),tblCountries4[#All],2,0) -> 08 | 100000 - 112500 | O170: =IF(VALUE(max_scatterplot)=0,tblSalaries[[#This Row],[Salary in USD]],IF(AND(tblSalaries[[#This Row],[Salary in USD]]>=VALUE(min_scatterplot),tblSalaries[[#This Row],[Salary in USD]]<=VALUE(max_scatterplot)),tblSalaries[[#This Row],[Salary in USD]],selection_false)) -> 102542.5423
B171: ID0433 | C171: 2012-05-26T02:33:10 | D171: Â£65000 | E171: 65000 | F171: GBP | G171: =tblSalaries[[#This Row],[clean Salary (in local currency)]]*VLOOKUP(tblSalaries[[#This Row],[Currency]],mapping!D:E,2,FALSE) -> 102451.5877 | H171: Financial Controller | I171: Controller | J171: UK | K171: =VLOOKUP(tblSalaries[[#This Row],[Where do you work]],tblCountries[[Actual]:[Mapping]],2,FALSE) -> UK | L171: 2 to 3 hours per day | M171: Unknown | N171: =VLOOKUP(IF(FLOOR(tblSalaries[[#This Row],[Salary in USD]]/salary_step,1)>19,19,FLOOR(tblSalaries[[#This Row],[Salary in USD]]/salary_step,1)),tblCountries4[#All],2,0) -> 08 | 100000 - 112500 | O171: =IF(VALUE(max_scatterplot)=0,tblSalaries[[#This Row],[Salary in USD]],IF(AND(tblSalaries[[#This Row],[Salary in USD]]>=VALUE(min_scatterplot),tblSalaries[[#This Row],[Salary in USD]]<=VALUE(max_scatterplot)),tblSalaries[[#This Row],[Salary in USD]],selection_false)) -> 102451.5877
B172: ID0748 | C172: 2012-05-26T16:16:39 | D172: 65000 | E172: 65000 | F172: GBP | G172: =tblSalaries[[#This Row],[clean Salary (in local currency)]]*VLOOKUP(tblSalaries[[#This Row],[Currency]],mapping!D:E,2,FALSE) -> 102451.5877 | H172: compliance manager | I172: Manager | J172: UK | K172: =VLOOKUP(tblSalaries[[#This Row],[Where do you work]],tblCountries[[Actual]:[Mapping]],2,FALSE) -> UK | L172: 4 to 6 hours a day | M172: 15 | N172: =VLOOKUP(IF(FLOOR(tblSalaries[[#This Row],[Salary in USD]]/salary_step,1)>19,19,FLOOR(tblSalaries[[#This Row],[Salary in USD]]/salary_step,1)),tblCountries4[#All],2,0) -> 08 | 100000 - 112500 | O172: =IF(VALUE(max_scatterplot)=0,tblSalaries[[#This Row],[Salary in USD]],IF(AND(tblSalaries[[#This Row],[Salary in USD]]>=VALUE(min_scatterplot),tblSalaries[[#This Row],[Salary in USD]]<=VALUE(max_scatterplot)),tblSalaries[[#This Row],[Salary in USD]],selection_false)) -> 102451.5877
B173: ID0916 | C173: 2012-05-27T17:17:24 | D173: Â£65000 | E173: 65000 | F173: GBP | G173: =tblSalaries[[#This Row],[clean Salary (in local currency)]]*VLOOKUP(tblSalaries[[#This Row],[Currency]],mapping!D:E,2,FALSE) -> 102451.5877 | H173: Manager | I173: Manager | J173: UK | K173: =VLOOKUP(tblSalaries[[#This Row],[Where do you work]],tblCountries[[Actual]:[Mapping]],2,FALSE) -> UK | L173: 1 or 2 hours a day | M173: 15 | N173: =VLOOKUP(IF(FLOOR(tblSalaries[[#This Row],[Salary in USD]]/salary_step,1)>19,19,FLOOR(tblSalaries[[#This Row],[Salary in USD]]/salary_step,1)),tblCountries4[#All],2,0) -> 08 | 100000 - 112500 | O173: =IF(VALUE(max_scatterplot)=0,tblSalaries[[#This Row],[Salary in USD]],IF(AND(tblSalaries[[#This Row],[Salary in USD]]>=VALUE(min_scatterplot),tblSalaries[[#This Row],[Salary in USD]]<=VALUE(max_scatterplot)),tblSalaries[[#This Row],[Salary in USD]],selection_false)) -> 102451.5877
B174: ID1445 | C174: 2012-05-30T10:57:38 | D174: 8500 | E174: 102000 | F174: USD | G174: =tblSalaries[[#This Row],[clean Salary (in local currency)]]*VLOOKUP(tblSalaries[[#This Row],[Currency]],mapping!D:E,2,FALSE) -> 102000 | H174: Sales Analyst | I174: Analyst | J174: USA | K174: =VLOOKUP(tblSalaries[[#This Row],[Where do you work]],tblCountries[[Actual]:[Mapping]],2,FALSE) -> USA | L174: 4 to 6 hours a day | M174: 5 | N174: =VLOOKUP(IF(FLOOR(tblSalaries[[#This Row],[Salary in USD]]/salary_step,1)>19,19,FLOOR(tblSalaries[[#This Row],[Salary in USD]]/salary_step,1)),tblCountries4[#All],2,0) -> 08 | 100000 - 112500 | O174: =IF(VALUE(max_scatterplot)=0,tblSalaries[[#This Row],[Salary in USD]],IF(AND(tblSalaries[[#This Row],[Salary in USD]]>=VALUE(min_scatterplot),tblSalaries[[#This Row],[Salary in USD]]<=VALUE(max_scatterplot)),tblSalaries[[#This Row],[Salary in USD]],selection_false)) -> 102000
B175: ID0073 | C175: 2012-05-25T22:59:05 | D175: $AUD100000 | E175: 100000 | F175: AUD | G175: =tblSalaries[[#This Row],[clean Salary (in local currency)]]*VLOOKUP(tblSalaries[[#This Row],[Currency]],mapping!D:E,2,FALSE) -> 101990.9656 | H175: technical trainer | I175: Manager | J175: Australia | K175: =VLOOKUP(tblSalaries[[#This Row],[Where do you work]],tblCountries[[Actual]:[Mapping]],2,FALSE) -> Australia | L175: 4 to 6 hours a day | M175: Unknown | N175: =VLOOKUP(IF(FLOOR(tblSalaries[[#This Row],[Salary in USD]]/salary_step,1)>19,19,FLOOR(tblSalaries[[#This Row],[Salary in USD]]/salary_step,1)),tblCountries4[#All],2,0) -> 08 | 100000 - 112500 | O175: =IF(VALUE(max_scatterplot)=0,tblSalaries[[#This Row],[Salary in USD]],IF(AND(tblSalaries[[#This Row],[Salary in USD]]>=VALUE(min_scatterplot),tblSalaries[[#This Row],[Salary in USD]]<=VALUE(max_scatterplot)),tblSalaries[[#This Row],[Salary in USD]],selection_false)) -> 101990.9656
B176: ID0609 | C176: 2012-05-26T09:52:22 | D176: 100000 | E176: 100000 | F176: AUD | G176: =tblSalaries[[#This Row],[clean Salary (in local currency)]]*VLOOKUP(tblSalaries[[#This Row],[Currency]],mapping!D:E,2,FALSE) -> 101990.9656 | H176: Purchasing Manager | I176: Manager | J176: Australia | K176: =VLOOKUP(tblSalaries[[#This Row],[Where do you work]],tblCountries[[Actual]:[Mapping]],2,FALSE) -> Australia | L176: 2 to 3 hours per day | M176: 20 | N176: =VLOOKUP(IF(FLOOR(tblSalaries[[#This Row],[Salary in USD]]/salary_step,1)>19,19,FLOOR(tblSalaries[[#This Row],[Salary in USD]]/salary_step,1)),tblCountries4[#All],2,0) -> 08 | 100000 - 112500 | O176: =IF(VALUE(max_scatterplot)=0,tblSalaries[[#This Row],[Salary in USD]],IF(AND(tblSalaries[[#This Row],[Salary in USD]]>=VALUE(min_scatterplot),tblSalaries[[#This Row],[Salary in USD]]<=VALUE(max_scatterplot)),tblSalaries[[#This Row],[Salary in USD]],selection_false)) -> 101990.9656
B177: ID0626 | C177: 2012-05-26T11:05:45 | D177: 100000 | E177: 100000 | F177: AUD | G177: =tblSalaries[[#This Row],[clean Salary (in local currency)]]*VLOOKUP(tblSalaries[[#This Row],[Currency]],mapping!D:E,2,FALSE) -> 101990.9656 | H177: Business Analyst | I177: Analyst | J177: Australia | K177: =VLOOKUP(tblSalaries[[#This Row],[Where do you work]],tblCountries[[Actual]:[Mapping]],2,FALSE) -> Australia | L177: All the 8 hours baby, all the 8! | M177: 1 | N177: =VLOOKUP(IF(FLOOR(tblSalaries[[#This Row],[Salary in USD]]/salary_step,1)>19,19,FLOOR(tblSalaries[[#This Row],[Salary in USD]]/salary_step,1)),tblCountries4[#All],2,0) -> 08 | 100000 - 112500 | O177: =IF(VALUE(max_scatterplot)=0,tblSalaries[[#This Row],[Salary in USD]],IF(AND(tblSalaries[[#This Row],[Salary in USD]]>=VALUE(min_scatterplot),tblSalaries[[#This Row],[Salary in USD]]<=VALUE(max_scatterplot)),tblSalaries[[#This Row],[Salary in USD]],selection_false)) -> 101990.9656
B178: ID0681 | C178: 2012-05-26T13:03:58 | D178: 100000 | E178: 100000 | F178: AUD | G178: =tblSalaries[[#This Row],[clean Salary (in local currency)]]*VLOOKUP(tblSalaries[[#This Row],[Currency]],mapping!D:E,2,FALSE) -> 101990.9656 | H178: principal developer | I178: Manager | J178: Australia | K178: =VLOOKUP(tblSalaries[[#This Row],[Where do you work]],tblCountries[[Actual]:[Mapping]],2,FALSE) -> Australia | L178: 1 or 2 hours a day | M178: 20 | N178: =VLOOKUP(IF(FLOOR(tblSalaries[[#This Row],[Salary in USD]]/salary_step,1)>19,19,FLOOR(tblSalaries[[#This Row],[Salary in USD]]/salary_step,1)),tblCountries4[#All],2,0) -> 08 | 100000 - 112500 | O178: =IF(VALUE(max_scatterplot)=0,tblSalaries[[#This Row],[Salary in USD]],IF(AND(tblSalaries[[#This Row],[Salary in USD]]>=VALUE(min_scatterplot),tblSalaries[[#This Row],[Salary in USD]]<=VALUE(max_scatterplot)),tblSalaries[[#This Row],[Salary in USD]],selection_false)) -> 101990.9656
B179: ID0969 | C179: 2012-05-28T06:35:50 | D179: 100000 | E179: 100000 | F179: AUD | G179: =tblSalaries[[#This Row],[clean Salary (in local currency)]]*VLOOKUP(tblSalaries[[#This Row],[Currency]],mapping!D:E,2,FALSE) -> 101990.9656 | H179: Senior Consultant | I179: Consultant | J179: Australia | K179: =VLOOKUP(tblSalaries[[#This Row],[Where do you work]],tblCountries[[Actual]:[Mapping]],2,FALSE) -> Australia | L179: All the 8 hours baby, all the 8! | M179: 6 | N179: =VLOOKUP(IF(FLOOR(tblSalaries[[#This Row],[Salary in USD]]/salary_step,1)>19,19,FLOOR(tblSalaries[[#This Row],[Salary in USD]]/salary_step,1)),tblCountries4[#All],2,0) -> 08 | 100000 - 112500 | O179: =IF(VALUE(max_scatterplot)=0,tblSalaries[[#This Row],[Salary in USD]],IF(AND(tblSalaries[[#This Row],[Salary in USD]]>=VALUE(min_scatterplot),tblSalaries[[#This Row],[Salary in USD]]<=VALUE(max_scatterplot)),tblSalaries[[#This Row],[Salary in USD]],selection_false)) -> 101990.9656
B180: ID0994 | C180: 2012-05-28T09:21:56 | D180: 100000 | E180: 100000 | F180: AUD | G180: =tblSalaries[[#This Row],[clean Salary (in local currency)]]*VLOOKUP(tblSalaries[[#This Row],[Currency]],mapping!D:E,2,FALSE) -> 101990.9656 | H180: Reporting Analyst | I180: Analyst | J180: Australia | K180: =VLOOKUP(tblSalaries[[#This Row],[Where do you work]],tblCountries[[Actual]:[Mapping]],2,FALSE) -> Australia | L180: 4 to 6 hours a day | M180: 20 | N180: =VLOOKUP(IF(FLOOR(tblSalaries[[#This Row],[Salary in USD]]/salary_step,1)>19,19,FLOOR(tblSalaries[[#This Row],[Salary in USD]]/salary_step,1)),tblCountries4[#All],2,0) -> 08 | 100000 - 112500 | O180: =IF(VALUE(max_scatterplot)=0,tblSalaries[[#This Row],[Salary in USD]],IF(AND(tblSalaries[[#This Row],[Salary in USD]]>=VALUE(min_scatterplot),tblSalaries[[#This Row],[Salary in USD]]<=VALUE(max_scatterplot)),tblSalaries[[#This Row],[Salary in USD]],selection_false)) -> 101990.9656
B181: ID1268 | C181: 2012-05-29T09:25:31 | D181: 100000 | E181: 100000 | F181: AUD | G181: =tblSalaries[[#This Row],[clean Salary (in local currency)]]*VLOOKUP(tblSalaries[[#This Row],[Currency]],mapping!D:E,2,FALSE) -> 101990.9656 | H181: Contractor/Consultant | I181: Consultant | J181: Australia | K181: =VLOOKUP(tblSalaries[[#This Row],[Where do you work]],tblCountries[[Actual]:[Mapping]],2,FALSE) -> Australia | L181: 4 to 6 hours a day | M181: 15 | N181: =VLOOKUP(IF(FLOOR(tblSalaries[[#This Row],[Salary in USD]]/salary_step,1)>19,19,FLOOR(tblSalaries[[#This Row],[Salary in USD]]/salary_step,1)),tblCountries4[#All],2,0) -> 08 | 100000 - 112500 | O181: =IF(VALUE(max_scatterplot)=0,tblSalaries[[#This Row],[Salary in USD]],IF(AND(tblSalaries[[#This Row],[Salary in USD]]>=VALUE(min_scatterplot),tblSalaries[[#This Row],[Salary in USD]]<=VALUE(max_scatterplot)),tblSalaries[[#This Row],[Salary in USD]],selection_false)) -> 101990.9656
B182: ID1356 | C182: 2012-05-29T18:55:18 | D182: 100000 | E182: 100000 | F182: AUD | G182: =tblSalaries[[#This Row],[clean Salary (in local currency)]]*VLOOKUP(tblSalaries[[#This Row],[Currency]],mapping!D:E,2,FALSE) -> 101990.9656 | H182: Principal advisor | I182: Consultant | J182: Australia | K182: =VLOOKUP(tblSalaries[[#This Row],[Where do you work]],tblCountries[[Actual]:[Mapping]],2,FALSE) -> Australia | L182: 1 or 2 hours a day | M182: 30 | N182: =VLOOKUP(IF(FLOOR(tblSalaries[[#This Row],[Salary in USD]]/salary_step,1)>19,19,FLOOR(tblSalaries[[#This Row],[Salary in USD]]/salary_step,1)),tblCountries4[#All],2,0) -> 08 | 100000 - 112500 | O182: =IF(VALUE(max_scatterplot)=0,tblSalaries[[#This Row],[Salary in USD]],IF(AND(tblSalaries[[#This Row],[Salary in USD]]>=VALUE(min_scatterplot),tblSalaries[[#This Row],[Salary in USD]]<=VALUE(max_scatterplot)),tblSalaries[[#This Row],[Salary in USD]],selection_false)) -> 101990.9656
B183: ID1584 | C183: 2012-06-01T07:22:36 | D183: 100000 | E183: 100000 | F183: AUD | G183: =tblSalaries[[#This Row],[clean Salary (in local currency)]]*VLOOKUP(tblSalaries[[#This Row],[Currency]],mapping!D:E,2,FALSE) -> 101990.9656 | H183: Management Accountant | I183: Manager | J183: Australia | K183: =VLOOKUP(tblSalaries[[#This Row],[Where do you work]],tblCountries[[Actual]:[Mapping]],2,FALSE) -> Australia | L183: 4 to 6 hours a day | M183: 20 | N183: =VLOOKUP(IF(FLOOR(tblSalaries[[#This Row],[Salary in USD]]/salary_step,1)>19,19,FLOOR(tblSalaries[[#This Row],[Salary in USD]]/salary_step,1)),tblCountries4[#All],2,0) -> 08 | 100000 - 112500 | O183: =IF(VALUE(max_scatterplot)=0,tblSalaries[[#This Row],[Salary in USD]],IF(AND(tblSalaries[[#This Row],[Salary in USD]]>=VALUE(min_scatterplot),tblSalaries[[#This Row],[Salary in USD]]<=VALUE(max_scatterplot)),tblSalaries[[#This Row],[Salary in USD]],selection_false)) -> 101990.9656
B184: ID0918 | C184: 2012-05-27T18:19:31 | D184: 64210.1 | E184: 64210 | F184: GBP | G184: =tblSalaries[[#This Row],[clean Salary (in local currency)]]*VLOOKUP(tblSalaries[[#This Row],[Currency]],mapping!D:E,2,FALSE) -> 101206.4068 | H184: HR Advisor - Systems & MI | I184: Consultant | J184: UK | K184: =VLOOKUP(tblSalaries[[#This Row],[Where do you work]],tblCountries[[Actual]:[Mapping]],2,FALSE) -> UK | L184: 4 to 6 hours a day | M184: 16 | N184: =VLOOKUP(IF(FLOOR(tblSalaries[[#This Row],[Salary in USD]]/salary_step,1)>19,19,FLOOR(tblSalaries[[#This Row],[Salary in USD]]/salary_step,1)),tblCountries4[#All],2,0) -> 08 | 100000 - 112500 | O184: =IF(VALUE(max_scatterplot)=0,tblSalaries[[#This Row],[Salary in USD]],IF(AND(tblSalaries[[#This Row],[Salary in USD]]>=VALUE(min_scatterplot),tblSalaries[[#This Row],[Salary in USD]]<=VALUE(max_scatterplot)),tblSalaries[[#This Row],[Salary in USD]],selection_false)) -> 101206.4068
B185: ID1928 | C185: 2012-06-20T20:58:23 | D185: 8400 | E185: 100800 | F185: USD | G185: =tblSalaries[[#This Row],[clean Salary (in local currency)]]*VLOOKUP(tblSalaries[[#This Row],[Currency]],mapping!D:E,2,FALSE) -> 100800 | H185: AVP | I185: CXO or Top Mgmt. | J185: Oman | K185: =VLOOKUP(tblSalaries[[#This Row],[Where do you work]],tblCountries[[Actual]:[Mapping]],2,FALSE) -> Oman | L185: 4 to 6 hours a day | M185: 4 | N185: =VLOOKUP(IF(FLOOR(tblSalaries[[#This Row],[Salary in USD]]/salary_step,1)>19,19,FLOOR(tblSalaries[[#This Row],[Salary in USD]]/salary_step,1)),tblCountries4[#All],2,0) -> 08 | 100000 - 112500 | O185: =IF(VALUE(max_scatterplot)=0,tblSalaries[[#This Row],[Salary in USD]],IF(AND(tblSalaries[[#This Row],[Salary in USD]]>=VALUE(min_scatterplot),tblSalaries[[#This Row],[Salary in USD]]<=VALUE(max_scatterplot)),tblSalaries[[#This Row],[Salary in USD]],selection_false)) -> 100800
B186: ID1585 | C186: 2012-06-01T08:06:34 | D186: 5.65 lac per annum | E186: 5650000 | F186: INR | G186: =tblSalaries[[#This Row],[clean Salary (in local currency)]]*VLOOKUP(tblSalaries[[#This Row],[Currency]],mapping!D:E,2,FALSE) -> 100614.7293 | H186: MIS | I186: Reporting | J186: India | K186: =VLOOKUP(tblSalaries[[#This Row],[Where do you work]],tblCountries[[Actual]:[Mapping]],2,FALSE) -> India | L186: 2 to 3 hours per day | M186: 6 | N186: =VLOOKUP(IF(FLOOR(tblSalaries[[#This Row],[Salary in USD]]/salary_step,1)>19,19,FLOOR(tblSalaries[[#This Row],[Salary in USD]]/salary_step,1)),tblCountries4[#All],2,0) -> 08 | 100000 - 112500 | O186: =IF(VALUE(max_scatterplot)=0,tblSalaries[[#This Row],[Salary in USD]],IF(AND(tblSalaries[[#This Row],[Salary in USD]]>=VALUE(min_scatterplot),tblSalaries[[#This Row],[Salary in USD]]<=VALUE(max_scatterplot)),tblSalaries[[#This Row],[Salary in USD]],selection_false)) -> 100614.7293
B187: ID0050 | C187: 2012-05-25T06:04:57 | D187: 100000 USD | E187: 100000 | F187: USD | G187: =tblSalaries[[#This Row],[clean Salary (in local currency)]]*VLOOKUP(tblSalaries[[#This Row],[Currency]],mapping!D:E,2,FALSE) -> 100000 | H187: Seinor Financial Analyst | I187: Analyst | J187: Germany | K187: =VLOOKUP(tblSalaries[[#This Row],[Where do you work]],tblCountries[[Actual]:[Mapping]],2,FALSE) -> Germany | L187: All the 8 hours baby, all the 8! | M187: Unknown | N187: =VLOOKUP(IF(FLOOR(tblSalaries[[#This Row],[Salary in USD]]/salary_step,1)>19,19,FLOOR(tblSalaries[[#This Row],[Salary in USD]]/salary_step,1)),tblCountries4[#All],2,0) -> 08 | 100000 - 112500 | O187: =IF(VALUE(max_scatterplot)=0,tblSalaries[[#This Row],[Salary in USD]],IF(AND(tblSalaries[[#This Row],[Salary in USD]]>=VALUE(min_scatterplot),tblSalaries[[#This Row],[Salary in USD]]<=VALUE(max_scatterplot)),tblSalaries[[#This Row],[Salary in USD]],selection_false)) -> 100000
B188: ID0893 | C188: 2012-05-27T13:52:53 | D188: 100,000 usd | E188: 100000 | F188: USD | G188: =tblSalaries[[#This Row],[clean Salary (in local currency)]]*VLOOKUP(tblSalaries[[#This Row],[Currency]],mapping!D:E,2,FALSE) -> 100000 | H188: Director | I188: CXO or Top Mgmt. | J188: MÃ©xico | K188: =VLOOKUP(tblSalaries[[#This Row],[Where do you work]],tblCountries[[Actual]:[Mapping]],2,FALSE) -> Mexico | L188: All the 8 hours baby, all the 8! | M188: 10 | N188: =VLOOKUP(IF(FLOOR(tblSalaries[[#This Row],[Salary in USD]]/salary_step,1)>19,19,FLOOR(tblSalaries[[#This Row],[Salary in USD]]/salary_step,1)),tblCountries4[#All],2,0) -> 08 | 100000 - 112500 | O188: =IF(VALUE(max_scatterplot)=0,tblSalaries[[#This Row],[Salary in USD]],IF(AND(tblSalaries[[#This Row],[Salary in USD]]>=VALUE(min_scatterplot),tblSalaries[[#This Row],[Salary in USD]]<=VALUE(max_scatterplot)),tblSalaries[[#This Row],[Salary in USD]],selection_false)) -> 100000
B189: ID1235 | C189: 2012-05-29T02:26:28 | D189: 100000 USD | E189: 100000 | F189: USD | G189: =tblSalaries[[#This Row],[clean Salary (in local currency)]]*VLOOKUP(tblSalaries[[#This Row],[Currency]],mapping!D:E,2,FALSE) -> 100000 | H189: Controller | I189: Controller | J189: Norway | K189: =VLOOKUP(tblSalaries[[#This Row],[Where do you work]],tblCountries[[Actual]:[Mapping]],2,FALSE) -> Norway | L189: 4 to 6 hours a day | M189: 12 | N189: =VLOOKUP(IF(FLOOR(tblSalaries[[#This Row],[Salary in USD]]/salary_step,1)>19,19,FLOOR(tblSalaries[[#This Row],[Salary in USD]]/salary_step,1)),tblCountries4[#All],2,0) -> 08 | 100000 - 112500 | O189: =IF(VALUE(max_scatterplot)=0,tblSalaries[[#This Row],[Salary in USD]],IF(AND(tblSalaries[[#This Row],[Salary in USD]]>=VALUE(min_scatterplot),tblSalaries[[#This Row],[Salary in USD]]<=VALUE(max_scatterplot)),tblSalaries[[#This Row],[Salary in USD]],selection_false)) -> 100000
B190: ID1723 | C190: 2012-06-06T21:18:51 | D190: 100000 | E190: 100000 | F190: USD | G190: =tblSalaries[[#This Row],[clean Salary (in local currency)]]*VLOOKUP(tblSalaries[[#This Row],[Currency]],mapping!D:E,2,FALSE) -> 100000 | H190: financial analyst (real estate) | I190: Analyst | J190: Russia | K190: =VLOOKUP(tblSalaries[[#This Row],[Where do you work]],tblCountries[[Actual]:[Mapping]],2,FALSE) -> Russia | L190: All the 8 hours baby, all the 8! | M190: 6 | N190: =VLOOKUP(IF(FLOOR(tblSalaries[[#This Row],[Salary in USD]]/salary_step,1)>19,19,FLOOR(tblSalaries[[#This Row],[Salary in USD]]/salary_step,1)),tblCountries4[#All],2,0) -> 08 | 100000 - 112500 | O190: =IF(VALUE(max_scatterplot)=0,tblSalaries[[#This Row],[Salary in USD]],IF(AND(tblSalaries[[#This Row],[Salary in USD]]>=VALUE(min_scatterplot),tblSalaries[[#This Row],[Salary in USD]]<=VALUE(max_scatterplot)),tblSalaries[[#This Row],[Salary in USD]],selection_false)) -> 100000
B191: ID0070 | C191: 2012-05-25T07:47:00 | D191: 100000 | E191: 100000 | F191: USD | G191: =tblSalaries[[#This Row],[clean Salary (in local currency)]]*VLOOKUP(tblSalaries[[#This Row],[Currency]],mapping!D:E,2,FALSE) -> 100000 | H191: Mngr MI | I191: Manager | J191: RSA | K191: =VLOOKUP(tblSalaries[[#This Row],[Where do you work]],tblCountries[[Actual]:[Mapping]],2,FALSE) -> South Africa | L191: 4 to 6 hours a day | M191: Unknown | N191: =VLOOKUP(IF(FLOOR(tblSalaries[[#This Row],[Salary in USD]]/salary_step,1)>19,19,FLOOR(tblSalaries[[#This Row],[Salary in USD]]/salary_step,1)),tblCountries4[#All],2,0) -> 08 | 100000 - 112500 | O191: =IF(VALUE(max_scatterplot)=0,tblSalaries[[#This Row],[Salary in USD]],IF(AND(tblSalaries[[#This Row],[Salary in USD]]>=VALUE(min_scatterplot),tblSalaries[[#This Row],[Salary in USD]]<=VALUE(max_scatterplot)),tblSalaries[[#This Row],[Salary in USD]],selection_false)) -> 100000
B192: ID1382 | C192: 2012-05-29T21:29:36 | D192: 100000 | E192: 100000 | F192: USD | G192: =tblSalaries[[#This Row],[clean Salary (in local currency)]]*VLOOKUP(tblSalaries[[#This Row],[Currency]],mapping!D:E,2,FALSE) -> 100000 | H192: Vice Head of Dpt in Education | I192: CXO or Top Mgmt. | J192: Sweden | K192: =VLOOKUP(tblSalaries[[#This Row],[Where do you work]],tblCountries[[Actual]:[Mapping]],2,FALSE) -> Sweden | L192: 2 to 3 hours per day | M192: 20 | N192: =VLOOKUP(IF(FLOOR(tblSalaries[[#This Row],[Salary in USD]]/salary_step,1)>19,19,FLOOR(tblSalaries[[#This Row],[Salary in USD]]/salary_step,1)),tblCountries4[#All],2,0) -> 08 | 100000 - 112500 | O192: =IF(VALUE(max_scatterplot)=0,tblSalaries[[#This Row],[Salary in USD]],IF(AND(tblSalaries[[#This Row],[Salary in USD]]>=VALUE(min_scatterplot),tblSalaries[[#This Row],[Salary in USD]]<=VALUE(max_scatterplot)),tblSalaries[[#This Row],[Salary in USD]],selection_false)) -> 100000
B193: ID1884 | C193: 2012-06-17T04:02:00 | D193: US$100,000 | E193: 100000 | F193: USD | G193: =tblSalaries[[#This Row],[clean Salary (in local currency)]]*VLOOKUP(tblSalaries[[#This Row],[Currency]],mapping!D:E,2,FALSE) -> 100000 | H193: Senior Manager MIS | I193: Manager | J193: UAE | K193: =VLOOKUP(tblSalaries[[#This Row],[Where do you work]],tblCountries[[Actual]:[Mapping]],2,FALSE) -> UAE | L193: All the 8 hours baby, all the 8! | M193: 15 | N193: =VLOOKUP(IF(FLOOR(tblSalaries[[#This Row],[Salary in USD]]/salary_step,1)>19,19,FLOOR(tblSalaries[[#This Row],[Salary in USD]]/salary_step,1)),tblCountries4[#All],2,0) -> 08 | 100000 - 112500 | O193: =IF(VALUE(max_scatterplot)=0,tblSalaries[[#This Row],[Salary in USD]],IF(AND(tblSalaries[[#This Row],[Salary in USD]]>=VALUE(min_scatterplot),tblSalaries[[#This Row],[Salary in USD]]<=VALUE(max_scatterplot)),tblSalaries[[#This Row],[Salary in USD]],selection_false)) -> 100000
B194: ID1305 | C194: 2012-05-29T13:58:30 | D194: US$ 100,000 | E194: 100000 | F194: USD | G194: =tblSalaries[[#This Row],[clean Salary (in local currency)]]*VLOOKUP(tblSalaries[[#This Row],[Currency]],mapping!D:E,2,FALSE) -> 100000 | H194: Business Analyst | I194: Analyst | J194: Uganda | K194: =VLOOKUP(tblSalaries[[#This Row],[Where do you work]],tblCountries[[Actual]:[Mapping]],2,FALSE) -> Uganda | L194: 4 to 6 hours a day | M194: 17 | N194: =VLOOKUP(IF(FLOOR(tblSalaries[[#This Row],[Salary in USD]]/salary_step,1)>19,19,FLOOR(tblSalaries[[#This Row],[Salary in USD]]/salary_step,1)),tblCountries4[#All],2,0) -> 08 | 100000 - 112500 | O194: =IF(VALUE(max_scatterplot)=0,tblSalaries[[#This Row],[Salary in USD]],IF(AND(tblSalaries[[#This Row],[Salary in USD]]>=VALUE(min_scatterplot),tblSalaries[[#This Row],[Salary in USD]]<=VALUE(max_scatterplot)),tblSalaries[[#This Row],[Salary in USD]],selection_false)) -> 100000
B195: ID0346 | C195: 2012-05-26T01:38:51 | D195: 100,000 US$ equiv | E195: 100000 | F195: USD | G195: =tblSalaries[[#This Row],[clean Salary (in local currency)]]*VLOOKUP(tblSalaries[[#This Row],[Currency]],mapping!D:E,2,FALSE) -> 100000 | H195: Senior Data Analyst | I195: Analyst | J195: UK | K195: =VLOOKUP(tblSalaries[[#This Row],[Where do you work]],tblCountries[[Actual]:[Mapping]],2,FALSE) -> UK | L195: 4 to 6 hours a day | M195: Unknown | N195: =VLOOKUP(IF(FLOOR(tblSalaries[[#This Row],[Salary in USD]]/salary_step,1)>19,19,FLOOR(tblSalaries[[#This Row],[Salary in USD]]/salary_step,1)),tblCountries4[#All],2,0) -> 08 | 100000 - 112500 | O195: =IF(VALUE(max_scatterplot)=0,tblSalaries[[#This Row],[Salary in USD]],IF(AND(tblSalaries[[#This Row],[Salary in USD]]>=VALUE(min_scatterplot),tblSalaries[[#This Row],[Salary in USD]]<=VALUE(max_scatterplot)),tblSalaries[[#This Row],[Salary in USD]],selection_false)) -> 100000
B196: ID0158 | C196: 2012-05-26T00:45:49 | D196: 100000 | E196: 100000 | F196: USD | G196: =tblSalaries[[#This Row],[clean Salary (in local currency)]]*VLOOKUP(tblSalaries[[#This Row],[Currency]],mapping!D:E,2,FALSE) -> 100000 | H196: COST ACCOUNTANT | I196: Accountant | J196: USA | K196: =VLOOKUP(tblSalaries[[#This Row],[Where do you work]],tblCountries[[Actual]:[Mapping]],2,FALSE) -> USA | L196: All the 8 hours baby, all the 8! | M196: Unknown | N196: =VLOOKUP(IF(FLOOR(tblSalaries[[#This Row],[Salary in USD]]/salary_step,1)>19,19,FLOOR(tblSalaries[[#This Row],[Salary in USD]]/salary_step,1)),tblCountries4[#All],2,0) -> 08 | 100000 - 112500 | O196: =IF(VALUE(max_scatterplot)=0,tblSalaries[[#This Row],[Salary in USD]],IF(AND(tblSalaries[[#This Row],[Salary in USD]]>=VALUE(min_scatterplot),tblSalaries[[#This Row],[Salary in USD]]<=VALUE(max_scatterplot)),tblSalaries[[#This Row],[Salary in USD]],selection_false)) -> 100000
B197: ID0204 | C197: 2012-05-26T00:53:42 | D197: 100000 | E197: 100000 | F197: USD | G197: =tblSalaries[[#This Row],[clean Salary (in local currency)]]*VLOOKUP(tblSalaries[[#This Row],[Currency]],mapping!D:E,2,FALSE) -> 100000 | H197: Strategic Sourcing Manager | I197: Manager | J197: USA | K197: =VLOOKUP(tblSalaries[[#This Row],[Where do you work]],tblCountries[[Actual]:[Mapping]],2,FALSE) -> USA | L197: All the 8 hours baby, all the 8! | M197: Unknown | N197: =VLOOKUP(IF(FLOOR(tblSalaries[[#This Row],[Salary in USD]]/salary_step,1)>19,19,FLOOR(tblSalaries[[#This Row],[Salary in USD]]/salary_step,1)),tblCountries4[#All],2,0) -> 08 | 100000 - 112500 | O197: =IF(VALUE(max_scatterplot)=0,tblSalaries[[#This Row],[Salary in USD]],IF(AND(tblSalaries[[#This Row],[Salary in USD]]>=VALUE(min_scatterplot),tblSalaries[[#This Row],[Salary in USD]]<=VALUE(max_scatterplot)),tblSalaries[[#This Row],[Salary in USD]],selection_false)) -> 100000
B198: ID0215 | C198: 2012-05-26T00:55:06 | D198: 100000 | E198: 100000 | F198: USD | G198: =tblSalaries[[#This Row],[clean Salary (in local currency)]]*VLOOKUP(tblSalaries[[#This Row],[Currency]],mapping!D:E,2,FALSE) -> 100000 | H198: Director of Finance | I198: CXO or Top Mgmt. | J198: USA | K198: =VLOOKUP(tblSalaries[[#This Row],[Where do you work]],tblCountries[[Actual]:[Mapping]],2,FALSE) -> USA | L198: 4 to 6 hours a day | M198: Unknown | N198: =VLOOKUP(IF(FLOOR(tblSalaries[[#This Row],[Salary in USD]]/salary_step,1)>19,19,FLOOR(tblSalaries[[#This Row],[Salary in USD]]/salary_step,1)),tblCountries4[#All],2,0) -> 08 | 100000 - 112500 | O198: =IF(VALUE(max_scatterplot)=0,tblSalaries[[#This Row],[Salary in USD]],IF(AND(tblSalaries[[#This Row],[Salary in USD]]>=VALUE(min_scatterplot),tblSalaries[[#This Row],[Salary in USD]]<=VALUE(max_scatterplot)),tblSalaries[[#This Row],[Salary in USD]],selection_false)) -> 100000
B199: ID0397 | C199: 2012-05-26T02:04:01 | D199: 100000 | E199: 100000 | F199: USD | G199: =tblSalaries[[#This Row],[clean Salary (in local currency)]]*VLOOKUP(tblSalaries[[#This Row],[Currency]],mapping!D:E,2,FALSE) -> 100000 | H199: Sales Operations Analyst | I199: Analyst | J199: USA | K199: =VLOOKUP(tblSalaries[[#This Row],[Where do you work]],tblCountries[[Actual]:[Mapping]],2,FALSE) -> USA | L199: All the 8 hours baby, all the 8! | M199: Unknown | N199: =VLOOKUP(IF(FLOOR(tblSalaries[[#This Row],[Salary in USD]]/salary_step,1)>19,19,FLOOR(tblSalaries[[#This Row],[Salary in USD]]/salary_step,1)),tblCountries4[#All],2,0) -> 08 | 100000 - 112500 | O199: =IF(VALUE(max_scatterplot)=0,tblSalaries[[#This Row],[Salary in USD]],IF(AND(tblSalaries[[#This Row],[Salary in USD]]>=VALUE(min_scatterplot),tblSalaries[[#This Row],[Salary in USD]]<=VALUE(max_scatterplot)),tblSalaries[[#This Row],[Salary in USD]],selection_false)) -> 100000
B200: ID0505 | C200: 2012-05-26T04:05:08 | D200: 100000 | E200: 100000 | F200: USD | G200: =tblSalaries[[#This Row],[clean Salary (in local currency)]]*VLOOKUP(tblSalaries[[#This Row],[Currency]],mapping!D:E,2,FALSE) -> 100000 | H200: Analyst | I200: Analyst | J200: USA | K200: =VLOOKUP(tblSalaries[[#This Row],[Where do you work]],tblCountries[[Actual]:[Mapping]],2,FALSE) -> USA | L200: 4 to 6 hours a day | M200: Unknown | N200: =VLOOKUP(IF(FLOOR(tblSalaries[[#This Row],[Salary in USD]]/salary_step,1)>19,19,FLOOR(tblSalaries[[#This Row],[Salary in USD]]/salary_step,1)),tblCountries4[#All],2,0) -> 08 | 100000 - 112500 | O200: =IF(VALUE(max_scatterplot)=0,tblSalaries[[#This Row],[Salary in USD]],IF(AND(tblSalaries[[#This Row],[Salary in USD]]>=VALUE(min_scatterplot),tblSalaries[[#This Row],[Salary in USD]]<=VALUE(max_scatterplot)),tblSalaries[[#This Row],[Salary in USD]],selection_false)) -> 100000
B201: ID0524 | C201: 2012-05-26T04:41:20 | D201: 100000 | E201: 100000 | F201: USD | G201: =tblSalaries[[#This Row],[clean Salary (in local currency)]]*VLOOKUP(tblSalaries[[#This Row],[Currency]],mapping!D:E,2,FALSE) -> 100000 | H201: Director | I201: CXO or Top Mgmt. | J201: USA | K201: =VLOOKUP(tblSalaries[[#This Row],[Where do you work]],tblCountries[[Actual]:[Mapping]],2,FALSE) -> USA | L201: 2 to 3 hours per day | M201: Unknown | N201: =VLOOKUP(IF(FLOOR(tblSalaries[[#This Row],[Salary in USD]]/salary_step,1)>19,19,FLOOR(tblSalaries[[#This Row],[Salary in USD]]/salary_step,1)),tblCountries4[#All],2,0) -> 08 | 100000 - 112500 | O201: =IF(VALUE(max_scatterplot)=0,tblSalaries[[#This Row],[Salary in USD]],IF(AND(tblSalaries[[#This Row],[Salary in USD]]>=VALUE(min_scatterplot),tblSalaries[[#This Row],[Salary in USD]]<=VALUE(max_scatterplot)),tblSalaries[[#This Row],[Salary in USD]],selection_false)) -> 100000
B202: ID0829 | C202: 2012-05-26T23:04:02 | D202: 100000 | E202: 100000 | F202: USD | G202: =tblSalaries[[#This Row],[clean Salary (in local currency)]]*VLOOKUP(tblSalaries[[#This Row],[Currency]],mapping!D:E,2,FALSE) -> 100000 | H202: director | I202: CXO or Top Mgmt. | J202: USA | K202: =VLOOKUP(tblSalaries[[#This Row],[Where do you work]],tblCountries[[Actual]:[Mapping]],2,FALSE) -> USA | L202: 4 to 6 hours a day | M202: 10 | N202: =VLOOKUP(IF(FLOOR(tblSalaries[[#This Row],[Salary in USD]]/salary_step,1)>19,19,FLOOR(tblSalaries[[#This Row],[Salary in USD]]/salary_step,1)),tblCountries4[#All],2,0) -> 08 | 100000 - 112500 | O202: =IF(VALUE(max_scatterplot)=0,tblSalaries[[#This Row],[Salary in USD]],IF(AND(tblSalaries[[#This Row],[Salary in USD]]>=VALUE(min_scatterplot),tblSalaries[[#This Row],[Salary in USD]]<=VALUE(max_scatterplot)),tblSalaries[[#This Row],[Salary in USD]],selection_false)) -> 100000
... 1686 more rows

Sheet Rules & Help
B2: Goals for analysis:
B3: ● | C3: While you are free to analyze the data in any way, your output must meet these goals
B4: ● | C4: Help us understand how much Excel professionals make all over the world
B5: ● | C5: Help us understand relationship between salary and role, experience, country & hours of Excel work.
B7: The Rules
B8: ● | C8: You can make a dashboard or 1 page report
B9: ● | C9: You can make several individual charts (or tables) too as long as they all fit in to one window.
B10: ● | C10: You can make interactive or static charts
B11: ● | C11: You can also use VBA to add interaction to the charts.
B12: ● | C12: Even though you can use add-ins to make your report, user should be able to view your output without installing any add-ins
B13: ● | C13: You can use Excel 2010, 2007 or 2003. Please note that this contest requires use of Excel.
B14: ● | C14: You can submit more than one entry.
B15: ● | C15: Your files must be unlocked & any macros you use must have enough comments so that others can learn.
B16: ● | C16: You can add data to this dataset (for example, PPP adjusted salaries, established salary benchmarks from public sources like govt. databases or websites)
B20: Values & Data:
B21: ● | C21: All salaries are shown in USD.
B22: ● | C22: Currency calculations are as of 06-21-2012 provided by Xrates and XE.com.
B23: ● | C23: Data has been provided by participants of the online survey conducted by Chandoo.org.
B24: ● | C24: Due to the large variety of countries and currencies. Total salaries may vary a lot although they are calculated back to USD.
B25: ● | C25: Using a 'Scatterplot' concluded me to exclude all salaries larger then $200,000.00. This can be adjusted at antytime in the Scatterplot graph.
B27: Functions
B28: ● | C28: Use the main data filters to filter the data the graphs on the right use.
B29: ● | C29: Check the Auto Clear function to autoreset all filters when viewing the sheet again.
B30: ● | C30: Select different values to show within the graphs using the dropdow boxes.
B31: ● | C31: Use the calculator below to return an average salary acording to the filters you chose.
B32: ● | C32: Use the optionbuttons to switch between graphs.
B33: ● | C33: In the World map (at section Country Graph) click on any continent to see their country's and average salaries.

Sheet Map
BP3: Avg. value/continent | BT3: North America | BX3: South America | CB3: Europe | CF3: Africa | CJ3: Asia | CN3: Australia | CS3: Cross Continent
BP4: Continent | BQ4: Value | BT4: Country | BU4: Value | BX4: Country | BY4: Value | CB4: Country | CC4: Value | CF4: Country | CG4: Value | CJ4: Country | CK4: Value | CN4: Country | CO4: Value | CS4: Country | CT4: Value
BP5: North America | BQ5: =AVERAGEIF(Data_Dash!$X:$X,BP5,Data_Dash!$W:$W) -> 44162.66861 | BT5: Aruba | BU5: =VLOOKUP(BT5,Data_Dash!$V:$W,2,0) -> 5000 | BX5: Argentina | BY5: =VLOOKUP(BX5,Data_Dash!$V:$W,2,0) -> 24000 | CB5: Albania | CC5: =VLOOKUP(CB5,Data_Dash!$V:$W,2,0) -> 20571 | CF5: Egypt | CG5: =VLOOKUP(CF5,Data_Dash!$V:$W,2,0) -> 19831.43282 | CJ5: Arabian Gulf | CK5: =VLOOKUP(CJ5,Data_Dash!$V:$W,2,0) -> 21000 | CN5: Australia | CO5: =VLOOKUP(CN5,Data_Dash!$V:$W,2,0) -> 91468.57609 | CS5: =IF(INDEX(Data_Dash!$V$4:$V$107,Dashboard!AB29,)="…","",INDEX(Data_Dash!$V$4:$V$107,Dashboard!AB29,)) -> Austria | CT5: =VLOOKUP(CS5,Data_Dash!$V:$W,2,0) -> 50815.97756
BP6: South America | BQ6: =AVERAGEIF(Data_Dash!$X:$X,BP6,Data_Dash!$W:$W) -> 17833.79375 | BT6: Bermuda | BU6: =VLOOKUP(BT6,Data_Dash!$V:$W,2,0) -> 78000 | BX6: Bolivia | BY6: =VLOOKUP(BX6,Data_Dash!$V:$W,2,0) -> 9600 | CB6: Austria | CC6: =VLOOKUP(CB6,Data_Dash!$V:$W,2,0) -> 50815.97756 | CF6: Ethiopia | CG6: =VLOOKUP(CF6,Data_Dash!$V:$W,2,0) -> 2953.846154 | CJ6: Armenia | CK6: =VLOOKUP(CJ6,Data_Dash!$V:$W,2,0) -> 6000 | CN6: New Zealand | CO6: =VLOOKUP(CN6,Data_Dash!$V:$W,2,0) -> 70287.55497 | CS6: =IF(INDEX(Data_Dash!$V$4:$V$107,Dashboard!AB31,)="…","",INDEX(Data_Dash!$V$4:$V$107,Dashboard!AB31,)) -> Argentina | CT6: =VLOOKUP(CS6,Data_Dash!$V:$W,2,0) -> 24000
BP7: Europe | BQ7: =AVERAGEIF(Data_Dash!$X:$X,BP7,Data_Dash!$W:$W) -> 46464.89668 | BT7: Canada | BU7: =VLOOKUP(BT7,Data_Dash!$V:$W,2,0) -> 66666.612 | BX7: Brazil | BY7: =VLOOKUP(BX7,Data_Dash!$V:$W,2,0) -> 33302.14376 | CB7: Baltic | CC7: =VLOOKUP(CB7,Data_Dash!$V:$W,2,0) -> 8400 | CF7: Ghana | CG7: =VLOOKUP(CF7,Data_Dash!$V:$W,2,0) -> 18000 | CJ7: Asia | CK7: =VLOOKUP(CJ7,Data_Dash!$V:$W,2,0) -> 12000 | CS7: =IF(INDEX(Data_Dash!$V$4:$V$107,Dashboard!AB33,)="…","",INDEX(Data_Dash!$V$4:$V$107,Dashboard!AB33,)) -> Albania | CT7: =VLOOKUP(CS7,Data_Dash!$V:$W,2,0) -> 20571
BP8: Africa | BQ8: =AVERAGEIF(Data_Dash!$X:$X,BP8,Data_Dash!$W:$W) -> 40207.42263 | BT8: Central America | BU8: =VLOOKUP(BT8,Data_Dash!$V:$W,2,0) -> 95000 | BX8: Colombia | BY8: =VLOOKUP(BX8,Data_Dash!$V:$W,2,0) -> 12362 | CB8: Belgium | CC8: =VLOOKUP(CB8,Data_Dash!$V:$W,2,0) -> 41707.21358 | CF8: Kenya | CG8: =VLOOKUP(CF8,Data_Dash!$V:$W,2,0) -> 51497.00599 | CJ8: Azerbaijan | CK8: =VLOOKUP(CJ8,Data_Dash!$V:$W,2,0) -> 36000 | CS8: =IF(INDEX(Data_Dash!$V$4:$V$107,Dashboard!AB35,)="…","",INDEX(Data_Dash!$V$4:$V$107,Dashboard!AB35,)) -> Armenia | CT8: =VLOOKUP(CS8,Data_Dash!$V:$W,2,0) -> 6000
BP9: Asia | BQ9: =AVERAGEIF(Data_Dash!$X:$X,BP9,Data_Dash!$W:$W) -> 29396.2022 | BT9: Costa Rica | BU9: =VLOOKUP(BT9,Data_Dash!$V:$W,2,0) -> 28109.62755 | BX9: Guyana | BY9: =VLOOKUP(BX9,Data_Dash!$V:$W,2,0) -> 6000 | CB9: Bulgaria | CC9: =VLOOKUP(CB9,Data_Dash!$V:$W,2,0) -> 14400 | CF9: Lesotho | CG9: =VLOOKUP(CF9,Data_Dash!$V:$W,2,0) -> 177600 | CJ9: Bangladesh | CK9: =VLOOKUP(CJ9,Data_Dash!$V:$W,2,0) -> 10299.00865 | CS9: =IF(INDEX(Data_Dash!$V$4:$V$107,Dashboard!AB37,)="…","",INDEX(Data_Dash!$V$4:$V$107,Dashboard!AB37,)) ->  | CT9: =VLOOKUP(CS9,Data_Dash!$V:$W,2,0) -> 
BP10: Australia | BQ10: =AVERAGEIF(Data_Dash!$X:$X,BP10,Data_Dash!$W:$W) -> 80878.06553 | BT10: Dominican Republic | BU10: =VLOOKUP(BT10,Data_Dash!$V:$W,2,0) -> 6629 | BX10: Latin America | BY10: =VLOOKUP(BX10,Data_Dash!$V:$W,2,0) -> 4400 | CB10: CEE | CC10: =VLOOKUP(CB10,Data_Dash!$V:$W,2,0) -> 87167.97475 | CF10: Libya | CG10: =VLOOKUP(CF10,Data_Dash!$V:$W,2,0) -> 24864 | CJ10: Bhutan | CK10: =VLOOKUP(CJ10,Data_Dash!$V:$W,2,0) -> 4800 | CS10: =IF(INDEX(Data_Dash!$V$4:$V$107,Dashboard!AO29,)="…","",INDEX(Data_Dash!$V$4:$V$107,Dashboard!AO29,)) ->  | CT10: =VLOOKUP(CS10,Data_Dash!$V:$W,2,0) -> 
BT11: Mexico | BU11: =VLOOKUP(BT11,Data_Dash!$V:$W,2,0) -> 32138.49829 | BX11: Paraguay | BY11: =VLOOKUP(BX11,Data_Dash!$V:$W,2,0) -> 20000 | CB11: Croatia | CC11: =VLOOKUP(CB11,Data_Dash!$V:$W,2,0) -> 43489.58654 | CF11: Mauritius | CG11: =VLOOKUP(CF11,Data_Dash!$V:$W,2,0) -> 9376.251388 | CJ11: Cambodia | CK11: =VLOOKUP(CJ11,Data_Dash!$V:$W,2,0) -> 3000 | CS11: =IF(INDEX(Data_Dash!$V$4:$V$107,Dashboard!AO31,)="…","",INDEX(Data_Dash!$V$4:$V$107,Dashboard!AO31,)) ->  | CT11: =VLOOKUP(CS11,Data_Dash!$V:$W,2,0) -> 
BT12: Panama | BU12: =VLOOKUP(BT12,Data_Dash!$V:$W,2,0) -> 44759.98597 | BX12: Peru | BY12: =VLOOKUP(BX12,Data_Dash!$V:$W,2,0) -> 15840 | CB12: Czech Republic | CC12: =VLOOKUP(CB12,Data_Dash!$V:$W,2,0) -> 36000 | CF12: Morocco | CG12: =VLOOKUP(CF12,Data_Dash!$V:$W,2,0) -> 13745.70447 | CJ12: China | CK12: =VLOOKUP(CJ12,Data_Dash!$V:$W,2,0) -> 17046.0901 | CS12: =IF(INDEX(Data_Dash!$V$4:$V$107,Dashboard!AO33,)="…","",INDEX(Data_Dash!$V$4:$V$107,Dashboard!AO33,)) ->  | CT12: =VLOOKUP(CS12,Data_Dash!$V:$W,2,0) -> 
BT13: Republica Dominicana | BU13: =VLOOKUP(BT13,Data_Dash!$V:$W,2,0) -> 15404.36457 | BX13: Uruguay | BY13: =VLOOKUP(BX13,Data_Dash!$V:$W,2,0) -> 35000 | CB13: Denmark | CC13: =VLOOKUP(CB13,Data_Dash!$V:$W,2,0) -> 82525.5254 | CF13: Mozambique | CG13: =VLOOKUP(CF13,Data_Dash!$V:$W,2,0) -> 24000 | CJ13: Dubai | CK13: =VLOOKUP(CJ13,Data_Dash!$V:$W,2,0) -> 32166.95919 | CS13: =IF(INDEX(Data_Dash!$V$4:$V$107,Dashboard!AO35,)="…","",INDEX(Data_Dash!$V$4:$V$107,Dashboard!AO35,)) ->  | CT13: =VLOOKUP(CS13,Data_Dash!$V:$W,2,0) -> 
BT14: USA | BU14: =VLOOKUP(BT14,Data_Dash!$V:$W,2,0) -> 69918.5977 | CB14: Estonia | CC14: =VLOOKUP(CB14,Data_Dash!$V:$W,2,0) -> 12000 | CF14: Nigeria | CG14: =VLOOKUP(CF14,Data_Dash!$V:$W,2,0) -> 13494.89625 | CJ14: Hong Kong | CK14: =VLOOKUP(CJ14,Data_Dash!$V:$W,2,0) -> 20000 | CS14: =IF(INDEX(Data_Dash!$V$4:$V$107,Dashboard!AO37,)="…","",INDEX(Data_Dash!$V$4:$V$107,Dashboard!AO37,)) ->  | CT14: =VLOOKUP(CS14,Data_Dash!$V:$W,2,0) -> 
CB15: Europe | CC15: =VLOOKUP(CB15,Data_Dash!$V:$W,2,0) -> 97693.71686 | CF15: Somalia | CG15: =VLOOKUP(CF15,Data_Dash!$V:$W,2,0) -> 78000 | CJ15: India | CK15: =VLOOKUP(CJ15,Data_Dash!$V:$W,2,0) -> 13529.43089
CB16: Finland | CC16: =VLOOKUP(CB16,Data_Dash!$V:$W,2,0) -> 75389.41554 | CF16: South Africa | CG16: =VLOOKUP(CF16,Data_Dash!$V:$W,2,0) -> 49555.62499 | CJ16: Indonesia | CK16: =VLOOKUP(CJ16,Data_Dash!$V:$W,2,0) -> 28872.8368
CB17: France | CC17: =VLOOKUP(CB17,Data_Dash!$V:$W,2,0) -> 56952.72505 | CF17: Tunisia | CG17: =VLOOKUP(CF17,Data_Dash!$V:$W,2,0) -> 11000 | CJ17: iran | CK17: =VLOOKUP(CJ17,Data_Dash!$V:$W,2,0) -> 18000
CB18: Germany | CC18: =VLOOKUP(CB18,Data_Dash!$V:$W,2,0) -> 79637.14702 | CF18: Uganda | CG18: =VLOOKUP(CF18,Data_Dash!$V:$W,2,0) -> 100000 | CJ18: Israel | CK18: =VLOOKUP(CJ18,Data_Dash!$V:$W,2,0) -> 66840
CB19: Greece | CC19: =VLOOKUP(CB19,Data_Dash!$V:$W,2,0) -> 30066.12006 | CF19: Zambia | CG19: =VLOOKUP(CF19,Data_Dash!$V:$W,2,0) -> 13000 | CJ19: Japan | CK19: =VLOOKUP(CJ19,Data_Dash!$V:$W,2,0) -> 67564.77404
CB20: Hungary | CC20: =VLOOKUP(CB20,Data_Dash!$V:$W,2,0) -> 24716.34725 | CF20: Zimbabwe | CG20: =VLOOKUP(CF20,Data_Dash!$V:$W,2,0) -> 36400 | CJ20: Kuwait | CK20: =VLOOKUP(CJ20,Data_Dash!$V:$W,2,0) -> 42666.66667
CB21: Iceland | CC21: =VLOOKUP(CB21,Data_Dash!$V:$W,2,0) -> 41731 | CJ21: Malaysia | CK21: =VLOOKUP(CJ21,Data_Dash!$V:$W,2,0) -> 24996.13322
CB22: Ireland | CC22: =VLOOKUP(CB22,Data_Dash!$V:$W,2,0) -> 61652.48477 | CJ22: Mongolia | CK22: =VLOOKUP(CJ22,Data_Dash!$V:$W,2,0) -> 7261.72466
CB23: italy | CC23: =VLOOKUP(CB23,Data_Dash!$V:$W,2,0) -> 47258.85913 | CJ23: Myanmar | CK23: =VLOOKUP(CJ23,Data_Dash!$V:$W,2,0) -> 17700
CB24: Lithuania | CC24: =VLOOKUP(CB24,Data_Dash!$V:$W,2,0) -> 15000 | CJ24: MYS | CK24: =VLOOKUP(CJ24,Data_Dash!$V:$W,2,0) -> 12000
CB25: Montenegro | CC25: =VLOOKUP(CB25,Data_Dash!$V:$W,2,0) -> 13500 | CJ25: Oman | CK25: =VLOOKUP(CJ25,Data_Dash!$V:$W,2,0) -> 100800
CB26: Netherlands | CC26: =VLOOKUP(CB26,Data_Dash!$V:$W,2,0) -> 64775.81954 | CJ26: Pakistan | CK26: =VLOOKUP(CJ26,Data_Dash!$V:$W,2,0) -> 11873.55259
CB27: Norway | CC27: =VLOOKUP(CB27,Data_Dash!$V:$W,2,0) -> 99016.17437 | CJ27: Philippines | CK27: =VLOOKUP(CJ27,Data_Dash!$V:$W,2,0) -> 17479.29236
CB28: Poland | CC28: =VLOOKUP(CB28,Data_Dash!$V:$W,2,0) -> 34210.34538 | CJ28: Qatar | CK28: =VLOOKUP(CJ28,Data_Dash!$V:$W,2,0) -> 53066.66667
CB29: Portugal | CC29: =VLOOKUP(CB29,Data_Dash!$V:$W,2,0) -> 32907.76341 | CJ29: Saudi Arabia | CK29: =VLOOKUP(CJ29,Data_Dash!$V:$W,2,0) -> 35832.12121
CB30: Republic of Georgia | CC30: =VLOOKUP(CB30,Data_Dash!$V:$W,2,0) -> 5250 | CJ30: Singapore | CK30: =VLOOKUP(CJ30,Data_Dash!$V:$W,2,0) -> 52154.75405
CB31: Romania | CC31: =VLOOKUP(CB31,Data_Dash!$V:$W,2,0) -> 16449.97676 | CJ31: Sri Lanka | CK31: =VLOOKUP(CJ31,Data_Dash!$V:$W,2,0) -> 22921.15479
CB32: Russia | CC32: =VLOOKUP(CB32,Data_Dash!$V:$W,2,0) -> 55905.22222 | CJ32: Thailand | CK32: =VLOOKUP(CJ32,Data_Dash!$V:$W,2,0) -> 73000
CB33: Slovakia | CC33: =VLOOKUP(CB33,Data_Dash!$V:$W,2,0) -> 13000 | CJ33: UAE | CK33: =VLOOKUP(CJ33,Data_Dash!$V:$W,2,0) -> 43014.90019
CB34: Slovenia | CC34: =VLOOKUP(CB34,Data_Dash!$V:$W,2,0) -> 19055.99158 | CJ34: Vietnam | CK34: =VLOOKUP(CJ34,Data_Dash!$V:$W,2,0) -> 10000
CB35: Spain | CC35: =VLOOKUP(CB35,Data_Dash!$V:$W,2,0) -> 46235.66011
CB36: Sweden | CC36: =VLOOKUP(CB36,Data_Dash!$V:$W,2,0) -> 84477.26009
CB37: Switzerland | CC37: =VLOOKUP(CB37,Data_Dash!$V:$W,2,0) -> 137525.5572
CB38: Turkey | CC38: =VLOOKUP(CB38,Data_Dash!$V:$W,2,0) -> 48000
CB39: UK | CC39: =VLOOKUP(CB39,Data_Dash!$V:$W,2,0) -> 63601.41628
CB40: Ukraine | CC40: =VLOOKUP(CB40,Data_Dash!$V:$W,2,0) -> 11650
